{"text_format":"1","workbook":"xlsx","n_sheets":6,"sheets":["Explications","FICHE évaluateur","FICHE CLUB","SYNTHESE","CORINNE","Feuil3"],"not_rendered":{"charts":5,"images":5,"macros":1,"external_links":0,"defined_names":11,"comments":0,"pivot_tables":0},"unopened":[],"bounds":{"document_bytes":16777216,"sheet_cells":100000,"rows_first":2000,"rows_last":500,"rows_between":2000,"halvings":0,"cell_chars":16384,"cell_head_chars":4096},"cells_cut":0,"cells_raw":0,"read":"whole","date_system":"1900"}

{"sheet":"Explications","index":0,"n_rows":49,"n_cols":6,"rows_kept":49,"cut":false,"hidden":false,"merged":[[31,2,31,3],[28,2,28,4],[48,2,48,4],[15,3,15,4],[22,0,22,1],[33,0,33,1],[47,2,47,3],[16,2,16,4],[27,3,27,4],[46,2,46,4],[25,3,25,4],[30,3,30,4],[29,2,29,3],[19,2,19,3],[20,3,20,4],[34,2,34,4],[35,2,35,4],[41,5,44,5],[39,3,39,4],[40,2,40,4],[0,0,0,5],[38,0,38,1],[3,0,3,1],[13,2,13,4],[12,2,12,4],[1,0,1,5],[5,2,5,4],[17,2,17,4],[7,2,11,2],[7,3,11,3],[7,4,11,4],[36,2,36,5],[14,2,14,4]]}
["LABEL SENIORS"]
["Cette page à pour objectif de vous expliquer toutes les questions et de vous apporter, si besoin, un complément d'informations. \nVous pouvez également voir les critères en fonction des 3 niveaux de label (les questions avec une * sont les critères incontournables pour tous les niveaux)\nVous pouvez rentrer vos réponses dans l'onglet \"FICHE CLUB\" ou l'évaluation se fait automatiquement et retourner ensuite le document avant le 15 janvier 2019 à cranque@lfna.fff.fr\nMême si le fichier vous indique que vous êtes non éligible, merci de nous retourner le document quand même, car ce qui compte c'est le jour de la visite. \nCela vous laisse ainsi plus de temps pour par exemple passer les formations incontournables"]
[]
["1 - Projet ASSOCIATIF",null,"ESPOIR","EXCELLENCE ","ELITE","COMMENTAIRES"]
[1,"Nombre de licenciés (U19, Seniors et vétérans, garçons et filles) *","18 licenciés (es) par équipe","22 licenciés (es) par équipe","25 licenciés (es) par équipe","Merci de noter votre nombre de licenciés garçons et filles U19, Senior et Vétérans. Vous retrouvez cette donnée dans Footclubs rubrique \"Licence\" puis \"statistiques\""]
[2,"Dirigeants licenciés (accompagnateurs) PAR EQUIPES le week-end *","2 dirigeants par équipe",null,null,"C'est vraiment l'accompagnateur qui suit l'équipe le week-end (il doit être licencié au club et être intégré, si possible, dans l'organigramme du club). Toutes les équipes Seniors du club doivent avoir 2 accompaganteurs dirigeants licenciés dans le club"]
[3,"Nombre DIRIGEANTES dans le club *","15% du nombre de dirigeants","20% du nombre de dirigeants","25% du nombre de dirigeants","Merci de noter votre nombre de licenciés dirigeantes. Vous retrouvez cette donnée dans Footclubs rubrique \"Licence\" puis \"statistiques\". La féminisation du football et surtout la prise de licence des nombreuses femmes qui entourent et donnent un coup de main au club est important."]
[4,"Nombre de licenciés joueurs joueuses total du club *","20 % : Ratio nombre de dirigeants + Educateurs / licenciés total","22 % : Ratio nombre de dirigeants + Educateurs / licenciés total","25 % : Ratio nombre de dirigeants + Educateurs / licenciés total","Merci de noter votre nombre de licenciés joueurs joueuses toutes catégories confondu (de U6 à vétérans, libre futsal….). Vous retrouvez cette donnée dans Footclubs rubrique \"Licence\" puis \"statistiques\""]
[5,"Nombre de DIRIGEANTS dans le club *",null,null,null,"Merci de noter votre nombre de licenciés dirigeants sans compter les diriegantes. Vous retrouvez cette donnée dans Footclubs rubrique \"Licence\" puis \"statistiques\""]
[6,"Combien d'éducateurs ayant une licence TECHNIQUE le club possède-t-il ? *",null,null,null,"Merci de noter votre nombre de licenciés Technique (personnes possédant un diplôme du type DES, BEF ou BMF). Vous retrouvez cette donnée dans Footclubs rubrique \"Licence\" puis \"statistiques\""]
[7,"Combien d'éducateurs ayant une licence TECHNIQUE FEDERALE le club possède-t-il ? *",null,null,null,"Merci de noter votre nombre de licenciés Technique Fédérale (personnes possédant un diplôme du type CFF1, CFF2, CFF3 ou anciennes versions). Vous retrouvez cette donnée dans Footclubs rubrique \"Licence\" puis \"statistiques\""]
[8,"Combien d'éducateurs ayant une licence ANIMATEUR le club possède-t-il ? *",null,null,null,"Merci de noter votre nombre de licenciés Animateurs (personnes ayant passé un module de formation du type Module U7, . Vous retrouvez cette donnée dans Footclubs rubrique \"Licence\" puis \"statistiques\""]
[9,"Il y a-t-il un défibrilateur cardiaque à proximité des terrains ? (moins de 5 min) *","Oui",null,null,"Cet équipement essentiel pour la sécurité de vos licenciés doit être à moins de 5 min des terrains. Les Communes ont une obligation de mise en place"]
[10,"Le club dispose-t-il d'une salle de convivialité ? *","Oui",null,null,"Le club house est essentiel dans la vie d'un club, il existe des aides au niveau fédéral pour les constructions ou autre (FAFA)"]
[11,"Le club est-il régulièrement représenté aux réunions organisées par les instances fédérales (Ligue et District) ? *","Oui",null,null,"Ce type de réunion vous permet d'obtenir des informations importantes sur différents thèmes"]
[12,"Le club organise-t-il des réunions de coordination général (déplacements, repas…) ?","Non","Oui",null,"Vous devrez fournir des PV, ordre du jour ou autre. Le PV est une trace écrite de ce qui est dit en rénion. Il vous aidera en cas de difficulté au sein du club"]
[13,"Le club a-t-il un organigramme général du club affiché dans le club house ? *","Oui",null,null,"L'organigramme est un élément essentiel dans la structuration du club. En l'affichant dans votre lieu de vie, cela vous assure que toutes personnes soient au courant de votre organisation."]
[14,"Le club met-il en place des manifestations extra sportives (loto, repas…) ? *","Oui",null,null,"Les manifestations extrasportives sont souvent incontournables pour gagner un peu d'argent. Merci de fournir affiches ou photos…"]
[15,"Le club a-t'il obtenu le label jeune ?","Non","Autodiagnostic","Oui","Le label jeunes et là aussi une aide à la structuration de l'ensemble de votre club. La première étape est un diagnostic qui vous permet de connaître les points à améliorer et vos points forts. Un accompagnement personnalisé est fait."]
[16,"Le club est-il en règle avec le statut des jeunes ?","Non",null,"Oui","Avoir des jeunes dans son club s'est assurer la pérénité du club"]
[17,"Le club a -t-il une page Facebook ?","Non","Oui",null,"La Facebook est désormais un incontoubrnable pour la communication interne et externe des clubs"]
[]
["2 - Projet SPORTIF",null,"ESPOIR","EXCELLENCE ","ELITE","COMMENTAIRES"]
[1,"Nombre d'équipes *",1,2,3,"En fonction du nombre d'équipes, le niveau de label varie"]
[2,"Nombre d'entrainement par semaine *",1,2,3,"Merci de nous fournir le planing de vos entrainements"]
[3,"Programmation annuelle","Non","Oui",null,"Elaboration pratique des contenus de séances compte tenu de la planification. Elle sert à se projetter sur la saison"]
[4,"Réunions techniques","Non",2,"3 ou plus","Vous devez fournir des PV, ordre du jour ou autre. Ces réunions permettent à tous les éducateurs d'avoir une politique technique commune à l'ensemble des équipes Senior"]
[5,"Terrains","Non","1 terrain par groupe d'entrainement",null,"1 groupe d'entrainement ne correspond pas aux équipes, mais à un ensemble de personnes qui s'entrainent aux même horaires"]
[6,"Spécifique gardien de but *","Oui",null,null,"Le poste gardien de but est essentiel, il mérite donc un entrainement spécifique"]
[7,"Accompagnement médical du joueur (médecin, Kiné…)","Non",null,"Oui","Est-ce que le club à un médecin et ou kiné partenaire (présent sur le terrain ou qui consulte les joueurs en priorité) ?"]
[8,"Pratiques diversifiées (futsal, beach, loisir, vétéran) compétition ou entrainement","Non","Oui",null,"La société évolue et les joueurs désirent avoir une offre de pratique varié"]
[9,"Equipe Senior féminine ","Non",null,"Oui","La féminisation est un point important dans le développement du football "]
[]
["3 - Projet EDUCATIF",null,"ESPOIR","EXCELLENCE ","ELITE","COMMENTAIRES"]
[1,"Charte des joueurs *","Oui",null,null,"Une charte auprès des joueurs (si elle est suivie) peut limiter les incivilités"]
[2,"Sensibilisation aux lois du jeu *","Oui",null,null,"L'application des lois du jeu est en perpetuelle évolution, il est indispensable que les joueurs (ses) soient sensibilisés à ces évolutions. Cette sensibilisation doit-être faite par un CTRA (ou à défaut une personne misssionée par celui-ci). Nous vous demanderons de fournir, un article et photo de cette sensibilisation. Vous trouverez les coordonées dans les calendriers de formations."]
[3,"Cas disciplinaires (rapporteur ou fait de l'entraineur) *","Le club ne doit pas avoir était sanctionné pour un fait grave. Dans le cas ou une sanction a été donné, si le club a tout mis en œuvre (exclusion du club de la personne par exemple) le label peut être attribué. Tous les cas, seront etudiés en fonction des attendus de la commission de discipline"]
[]
["4 - Projet ENCADREMENT et FORMATION",null,"ESPOIR","EXCELLENCE ","ELITE","COMMENTAIRES"]
[1,"Responsable technique Senior","Non","Oui",null,"La mise en place d'un responsable technique Senior permet de coordonner les actions et l'application de la politique sportive du club envers les seniors"]
[2,"Référent en arbitrage *","Oui",null,null,"Chaque club désigne un « référent en arbitrage ». Ce référent sera le contact privilégié pour tout ce qui a un lien avec l’arbitrage. Il sera ainsi le responsable de l’arbitrage dans le club :\nson organisation, son recrutement, sa valorisation, l’intégration et la fidélisation de ses arbitres.\nRIEN N'OBLIGE QUE CE REFERENT SOIT UN (ANCIEN) ARBITRE !\nLes CTRA mettent en place une formation annuelle de 2 heures dans chaque district."]
[2,"Educateur équipe 1ère *","Module Senior","CFF3","BEF","Il est important que chaque équipe soit encadré par une personne ayant, à minima, suivi une formation. On vous demandera de nous fournir l'organigramme technique (ou général) du club"]
[3,"Educateur équipe réserve",null,"Module Senior","CFF3"]
[4,"Educateur équipe inférieure",null,null,"Module Senior"]
[5,"Responsable Gardien du but *","Module Découverte","Module Perfectionnement","CFF GB "]
["6 - 7","Formation des dirigeants  (2 modules aux choix obligatoires)*","1 personne","2 personnes","3 personnes (dont le président et/ou secrétaire et/ou trésorier)","La gestion du football est en perpétuelle évolution il est donc nécessaire que les dirigeants soient formés à leurs fonctions"]
[8,"Respect du statut des éducateurs *","Oui",null,null,"Le statut des éducateurs existe au niveau Ligue et dans certains de District"]
["10 - 11","Nombre d'aribtres *","En D2 et dessous : 1 arbitre\nEn R3 et D1 : 2 arbitres\nEn R2 : 3 arbitres\nEn R1 : 4 arbitres",null,"Nbe obligatoire dont 1 fille","En fonction du niveau de compétition du club, les obligations sont différentes."]
[12,"Type de licence en rapport avec la fonction (Animateur, Educateur Fédéral, Technique régional, Technique National, dirigeant) *","Oui",null,null,"Chaque fonction à sa licence, il est indispensable en matières d'assurance que les personnes aient la bonne licence"]

{"sheet":"FICHE évaluateur","index":1,"n_rows":131,"n_cols":15,"rows_kept":131,"cut":false,"hidden":true,"merged":[[95,6,95,10],[93,6,93,10],[105,2,105,4],[105,6,105,10],[111,2,111,4],[97,2,97,4],[114,4,114,10],[116,1,116,2],[116,4,116,6],[111,6,111,10],[93,2,93,4],[102,1,102,10],[100,1,100,10],[107,6,107,10],[108,1,108,10],[109,2,109,4],[109,6,109,10],[40,2,40,4],[40,6,40,10],[41,1,41,10],[42,2,42,4],[91,2,91,4],[91,6,91,10],[97,6,97,10],[67,6,67,10],[69,2,69,4],[69,6,69,10],[71,2,71,4],[71,6,71,10],[82,6,82,10],[84,2,84,4],[84,6,84,10],[68,1,68,10],[70,1,70,10],[74,1,74,10],[82,2,82,4],[73,2,73,4],[73,6,73,10],[72,1,72,10],[75,6,75,10],[95,2,95,4],[42,6,42,10],[43,1,43,10],[44,2,44,4],[44,6,44,10],[64,1,64,10],[52,6,52,10],[54,2,54,4],[60,1,60,10],[61,2,61,4],[52,2,52,4],[63,6,63,10],[48,2,48,4],[48,6,48,10],[50,2,50,4],[50,6,50,10],[45,1,45,10],[46,2,46,4],[46,6,46,10],[47,1,47,10],[59,6,59,10],[0,0,0,10],[23,1,23,10],[22,2,22,4],[22,6,22,10],[4,3,4,8],[24,2,24,4],[25,1,25,10],[21,1,21,10],[29,1,29,10],[24,6,24,10],[26,2,26,4],[26,6,26,10],[28,2,28,4],[28,6,28,10],[15,0,15,1],[17,0,17,1],[6,3,6,8],[27,1,27,10],[2,3,2,8],[8,3,8,8],[89,2,89,4],[89,6,89,10],[75,2,75,4],[67,2,67,4],[80,2,80,4],[80,6,80,10],[61,6,61,10],[63,2,63,4],[66,1,66,10],[62,1,62,10],[30,6,30,10],[30,2,30,4],[31,1,31,10],[15,2,15,4],[15,5,15,6],[15,7,15,10],[17,2,17,4],[17,6,17,10],[122,0,122,4],[65,2,65,4],[65,6,65,10],[54,6,54,10],[58,1,58,10],[59,2,59,4],[38,2,38,4],[38,6,38,10],[36,2,36,4],[36,6,36,10],[34,2,34,4],[34,6,34,10],[32,2,32,4],[32,6,32,10],[33,1,33,10],[83,1,83,10],[124,0,124,4],[130,0,130,10],[131,0,131,10],[119,0,119,10],[116,8,116,10],[110,1,110,10],[99,2,99,4],[99,6,99,10],[101,2,101,4],[101,6,101,10],[103,2,103,4],[103,6,103,10],[107,2,107,4]]}
["LABEL SENIOR\nLFNA - Saison 2018/2019"]
[]
["N° affiliation :",null,null,{"$f":"'FICHE CLUB'!$E$3","v":0}]
[]
["Nom du club :",null,null,{"$f":"'FICHE CLUB'!$T$3","v":""}]
[]
["District :",null,null,{"$f":"'FICHE CLUB'!$A$5","v":""},null,null,null,null,null,null,null,null,null,{"$f":"VLOOKUP(District,Feuil3!F1:G12,2)","v":{"$error":"#N/A"}}]
[]
["Type de club :",null,null,{"$f":"'FICHE CLUB'!$T$5","v":""}]
[]
["Niveau de compétition du club :"]
["Régional",null,null,"R1",{"$f":"'FICHE CLUB'!$E$8","v":0},"R2",{"$f":"'FICHE CLUB'!$G$8","v":0},"R3",{"$f":"'FICHE CLUB'!$I$8","v":0},null,null,null,null,{"$f":"IF(E12=\"x\",D12,IF(G12=\"x\",F12,IF(I12=\"x\",H12,IF(D14=\"x\",C14,IF(F14=\"x\",E14,IF(H14=\"x\",G14,IF(K14=\"x\",J14,\"\")))))))","v":""}]
[]
["District",null,"D1",{"$f":"'FICHE CLUB'!$S$8","v":0},"D2",{"$f":"'FICHE CLUB'!$U$8","v":0},"D3",{"$f":"'FICHE CLUB'!$W$8","v":0},null,"D4 ou +",{"$f":"'FICHE CLUB'!$Y$8","v":0}]
["Coordonnées de la personne qui suit le dossier label Seniors dans le club :"]
["Nom :",null,{"$f":"'FICHE CLUB'!$D$11","v":0},null,null,"Prénom :",null,{"$f":"'FICHE CLUB'!$L$11","v":0}]
[]
["Tel :",null,{"$f":"'FICHE CLUB'!$T$11","v":0},null,null,"Mail :",{"$f":"'FICHE CLUB'!$AA$11","v":0}]
[]
["1 - PROJET ASSOCIATIF",null,null,null,null,null,null,null,null,null,null,null,{"$f":"MIN(M23:M55)","v":0}]
[]
[1,"Combien de licenciés (es) U19, Seniors et vétérans le club possède-t-il ? *"]
[null,null,{"$f":"'FICHE CLUB'!AA15","v":0},null,null,{"$f":"(C23/C60)","v":{"$error":"#DIV/0!"}},{"$f":"IFERROR(IF(F23>=25,\"Elite\",IF(F23>=22,\"Excellence\",IF(F23>=18,\"Espoir\",\"Non éligible\"))),\"\")","v":""},{"$f":"IFERROR(IF(G23>=25,\"Elite\",IF(G23>=22,\"Excellence\",IF(G23>=18,\"Espoir\",\"Non éligible\"))),\"\")","v":"Elite"},{"$f":"IFERROR(IF(H23>=25,\"Elite\",IF(H23>=22,\"Excellence\",IF(H23>=18,\"Espoir\",\"Non éligible\"))),\"\")","v":"Elite"},{"$f":"IFERROR(IF(I23>=25,\"Elite\",IF(I23>=22,\"Excellence\",IF(I23>=18,\"Espoir\",\"Non éligible\"))),\"\")","v":"Elite"},{"$f":"IFERROR(IF(J23>=25,\"Elite\",IF(J23>=22,\"Excellence\",IF(J23>=18,\"Espoir\",\"Non éligible\"))),\"\")","v":"Elite"},null,{"$f":"IF(G23=\"Elite\",3,IF(G23=\"Excellence\",2,IF(G23=\"Espoir\",1,0)))","v":0}]
[2,"Combien de dirigeants licenciés (accompaganteurs) PAR EQUIPES le club a-t-il les week-end ? *"]
[null,null,{"$f":"'FICHE CLUB'!AA17","v":0},null,null,null,{"$f":"IFERROR(IF(C25>=2,\"Elite\",\"Non éligible\"),\"\")","v":"Non éligible"},{"$f":"IFERROR(IF(F25>=2,\"Elite\",\"Non éligible\"),\"\")","v":"Non éligible"},{"$f":"IFERROR(IF(G25>=2,\"Elite\",\"Non éligible\"),\"\")","v":"Elite"},{"$f":"IFERROR(IF(H25>=2,\"Elite\",\"Non éligible\"),\"\")","v":"Elite"},{"$f":"IFERROR(IF(I25>=2,\"Elite\",\"Non éligible\"),\"\")","v":"Elite"},null,{"$f":"IF(G25=\"Elite\",3,IF(G25=\"Excellence\",2,IF(G25=\"Espoir\",1,0)))","v":0}]
[3,"Combien de dirigeantes licenciées le club possède-t-il ? *"]
[null,null,{"$f":"'FICHE CLUB'!AA19","v":0},null,null,{"$f":"+C27/C31","v":{"$error":"#DIV/0!"}},{"$f":"IFERROR(IF(F27>=25%,\"Elite\",IF(F27>=20%,\"Excellence\",IF(F27>=15%,\"Espoir\",\"Non éligible\"))),\"\")","v":""},{"$f":"IFERROR(IF(G27>=25%,\"Elite\",IF(G27>=20%,\"Excellence\",IF(G27>=15%,\"Espoir\",\"Non éligible\"))),\"\")","v":"Elite"},{"$f":"IFERROR(IF(H27>=25%,\"Elite\",IF(H27>=20%,\"Excellence\",IF(H27>=15%,\"Espoir\",\"Non éligible\"))),\"\")","v":"Elite"},{"$f":"IFERROR(IF(I27>=25%,\"Elite\",IF(I27>=20%,\"Excellence\",IF(I27>=15%,\"Espoir\",\"Non éligible\"))),\"\")","v":"Elite"},{"$f":"IFERROR(IF(J27>=25%,\"Elite\",IF(J27>=20%,\"Excellence\",IF(J27>=15%,\"Espoir\",\"Non éligible\"))),\"\")","v":"Elite"},null,{"$f":"IF(G31=\"Elite\",3,IF(G31=\"Excellence\",2,IF(G31=\"Espoir\",1,0)))","v":0}]
[4,"Combien de LICENCIES (toutes catégories) joueurs joueuses le club possède-t-il ? *"]
[null,null,{"$f":"'FICHE CLUB'!AA21","v":0},null,null,{"$f":"(C27+C31+C33+C37+C35)/C29","v":{"$error":"#DIV/0!"}},{"$f":"IFERROR(IF($F$29>=25%,\"Elite\",IF($F$29>=22%,\"Excellence\",IF($F$29>=20%,\"Espoir\",\"Non éligible\"))),\"\")","v":""},null,null,null,null,null,{"$f":"IF(G25=\"Elite\",3,IF(G25=\"Excellence\",2,IF(G25=\"Espoir\",1,0)))","v":0}]
[5,"Combien de DIRIGEANTS (sans compter les dirigeantes) licenciés le clubs possède-t-il ? *"]
[null,null,{"$f":"'FICHE CLUB'!AA23","v":0},null,null,null,{"$f":"IFERROR(IF($F$29>=25%,\"Elite\",IF($F$29>=22%,\"Excellence\",IF($F$29>=20%,\"Espoir\",\"Non éligible\"))),\"\")","v":""},null,null,null,null,null,{"$f":"IF(G27=\"Elite\",3,IF(G27=\"Excellence\",2,IF(G27=\"Espoir\",1,0)))","v":0}]
[6,"Combien d'éducateurs ayant une licence TECHNIQUE le club possède-t-il ? *"]
[null,null,{"$f":"'FICHE CLUB'!$AA$25","v":0},null,null,null,{"$f":"IFERROR(IF($F$29>=25%,\"Elite\",IF($F$29>=22%,\"Excellence\",IF($F$29>=20%,\"Espoir\",\"Non éligible\"))),\"\")","v":""},null,null,null,null,null,{"$f":"IF(G33=\"Elite\",3,IF(G33=\"Excellence\",2,IF(G33=\"Espoir\",1,0)))","v":0}]
[7,"Combien d'éducateurs ayant une licence TECHNIQUE FEDERALE le club possède-t-il ? *"]
[null,null,{"$f":"'FICHE CLUB'!$AA$27","v":0},null,null,null,{"$f":"IFERROR(IF($F$29>=25%,\"Elite\",IF($F$29>=22%,\"Excellence\",IF($F$29>=20%,\"Espoir\",\"Non éligible\"))),\"\")","v":""},null,null,null,null,null,{"$f":"IF(G35=\"Elite\",3,IF(G35=\"Excellence\",2,IF(G35=\"Espoir\",1,0)))","v":0}]
[8,"Combien d'éducateurs ayant une licence ANIMATEUR le club possède-t-il ? *"]
[null,null,{"$f":"'FICHE CLUB'!$AA$29","v":0},null,null,null,{"$f":"IFERROR(IF($F$29>=25%,\"Elite\",IF($F$29>=22%,\"Excellence\",IF($F$29>=20%,\"Espoir\",\"Non éligible\"))),\"\")","v":""},null,null,null,null,null,{"$f":"IF(G37=\"Elite\",3,IF(G37=\"Excellence\",2,IF(G37=\"Espoir\",1,0)))","v":0}]
[9,"Il y a-t-il un défibrilateur cardiaque à proximité des terrains ? * (moins de 5 min)"]
[null,null,{"$f":"'FICHE CLUB'!$AA$31","v":0},null,null,null,{"$f":"IF(C39=\"Oui\",\"Elite\",\"Non éligible\")","v":"Non éligible"},null,null,null,null,null,{"$f":"IF(G39=\"Elite\",3,IF(G39=\"Excellence\",2,IF(G39=\"Espoir\",1,0)))","v":0}]
[10,"Le club dispose-t-il d'une salle de convivialité ? *"]
[null,null,{"$f":"'FICHE CLUB'!$AA$33","v":0},null,null,null,{"$f":"IF(C41=\"Oui\",\"Elite\",\"Non éligible\")","v":"Non éligible"},null,null,null,null,null,{"$f":"IF(G41=\"Elite\",3,IF(G41=\"Excellence\",2,IF(G41=\"Espoir\",1,0)))","v":0}]
[11,"Le club est-il régulièrement représenté aux réunions organisées par les instances fédérales (Ligue et District) ? *"]
[null,null,{"$f":"'FICHE CLUB'!$AA$35","v":0},null,null,null,{"$f":"IF(C43=\"Oui\",\"Elite\",\"Non éligible\")","v":"Non éligible"},null,null,null,null,null,{"$f":"IF(G43=\"Elite\",3,IF(G43=\"Excellence\",2,IF(G43=\"Espoir\",1,0)))","v":0}]
[12,"Le club organise-t-il des réunions de coordination général (déplacements, repas…) ?"]
[null,null,{"$f":"'FICHE CLUB'!AA37","v":0},null,null,null,{"$f":"IF(C45=\"Oui\",\"Elite\",\"Espoir\")","v":"Espoir"},null,null,null,null,null,{"$f":"IF(G45=\"Elite\",3,IF(G45=\"Excellence\",2,IF(G45=\"Espoir\",1,0)))","v":1}]
[13,"Le club a-t-il un organigramme général du club affiché dans le club house ? *"]
[null,null,{"$f":"'FICHE CLUB'!$AA$39","v":0},null,null,null,{"$f":"IF(C47=\"Oui\",\"Elite\",\"Non éligible\")","v":"Non éligible"},null,null,null,null,null,{"$f":"IF(G47=\"Elite\",3,IF(G47=\"Excellence\",2,IF(G47=\"Espoir\",1,0)))","v":0}]
[14,"Le club met-il en place des manifestations extra sportives (loto, repas…) ? *"]
[null,null,{"$f":"'FICHE CLUB'!$AA$41","v":0},null,null,null,{"$f":"IF(C49=\"Oui\",\"Elite\",\"Non éligible\")","v":"Non éligible"},null,null,null,null,null,{"$f":"IF(G49=\"Elite\",3,IF(G49=\"Excellence\",2,IF(G49=\"Espoir\",1,0)))","v":0}]
[15,"Le club a-t-il obtenu le label jeune ?"]
[null,null,{"$f":"'FICHE CLUB'!$AA$43","v":0},null,null,null,{"$f":"IF(C51=\"Oui\",\"Elite\",IF(C51=\"Autodiagnostic\",\"Excellence\",\"Espoir\"))","v":"Espoir"},null,null,null,null,null,{"$f":"IF(G51=\"Elite\",3,IF(G51=\"Excellence\",2,IF(G51=\"Espoir\",1,0)))","v":1}]
[16,"Le club est-il en règle avec le statut des jeunes ?"]
[null,null,{"$f":"'FICHE CLUB'!$AA$45","v":0},null,null,null,{"$f":"IF(C53=\"Oui\",\"Elite\",\"Espoir\")","v":"Espoir"},null,null,null,null,null,{"$f":"IF(G53=\"Elite\",3,IF(G53=\"Excellence\",2,IF(G53=\"Espoir\",1,0)))","v":1}]
[17,"Le club a-t-il une page Facebook ?"]
[null,null,{"$f":"'FICHE CLUB'!$AA$47","v":0},null,null,null,{"$f":"IF(C55=\"Oui\",\"Elite\",\"Excellence\")","v":"Excellence"},null,null,null,null,null,{"$f":"IF(G55=\"Elite\",3,IF(G55=\"Excellence\",2,IF(G55=\"Espoir\",1,0)))","v":2}]
[]
["2 - PROJET SPORTIF",null,null,null,null,null,null,null,null,null,null,null,{"$f":"MIN(M60:M76)","v":0}]
[]
[1,"Combien d’équipes Seniors (garçons et filles) avez-vous d'engagées ? *"]
[null,null,{"$f":"'FICHE CLUB'!$AA$51","v":0},null,null,null,{"$f":"IF(C60>=3,\"Elite\",IF(C60>=2,\"Excellence\",IF(C60>=1,\"Espoir\",\"Non éligible\")))","v":"Non éligible"},{"$f":"IF(F60>=3,\"Elite\",IF(F60>=2,\"Excellence\",IF(F60>=1,\"Espoir\",\"Non éligible\")))","v":"Non éligible"},{"$f":"IF(G60>=3,\"Elite\",IF(G60>=2,\"Excellence\",IF(G60>=1,\"Espoir\",\"Non éligible\")))","v":"Elite"},{"$f":"IF(H60>=3,\"Elite\",IF(H60>=2,\"Excellence\",IF(H60>=1,\"Espoir\",\"Non éligible\")))","v":"Elite"},{"$f":"IF(I60>=3,\"Elite\",IF(I60>=2,\"Excellence\",IF(I60>=1,\"Espoir\",\"Non éligible\")))","v":"Elite"},null,{"$f":"IF(G60=\"Elite\",3,IF(G60=\"Excellence\",2,IF(G60=\"Espoir\",1,0)))","v":0}]
[2,"Combien l'équipe 1ère de votre club a-t-il d'entrainement par semaine ? *"]
[null,null,{"$f":"'FICHE CLUB'!$AA$53","v":0},null,null,null,{"$f":"IF(C62>=3,\"Elite\",IF(C62=2,\"Excellence\",IF(C62=1,\"Espoir\",\"Non éligible\")))","v":"Non éligible"},null,null,null,null,null,{"$f":"IF(G62=\"Elite\",3,IF(G62=\"Excellence\",2,IF(G62=\"Espoir\",1,0)))","v":0}]
[3,"Le club a-t-il mis en place une programmation annuelle pour ses équipes Seniors (garçons et filles) ?"]
[null,null,{"$f":"'FICHE CLUB'!$AA$55","v":0},null,null,null,{"$f":"IF(C64=\"Oui\",\"Elite\",\"Espoir\")","v":"Espoir"},null,null,null,null,null,{"$f":"IF(G64=\"Elite\",3,IF(G64=\"Excellence\",2,IF(G64=\"Espoir\",1,0)))","v":1}]
[4,"Combien de réunions techniques, par saison, le club met-il en place ?"]
[null,null,{"$f":"'FICHE CLUB'!$AA$57","v":0},null,null,null,{"$f":"IF(C66>=3,\"Elite\",IF(C66=2,\"Excellence\",\"Espoir\"))","v":"Espoir"},null,null,null,null,null,{"$f":"IF(G66=\"Elite\",3,IF(G66=\"Excellence\",2,IF(G66=\"Espoir\",1,0)))","v":1}]
[5,"Le club dispose-t-il d'un terrain par groupe d'entrainement ?"]
[null,null,{"$f":"'FICHE CLUB'!$AA$59","v":0},null,null,null,{"$f":"IF(C68=\"Oui\",\"Elite\",\"Espoir\")","v":"Espoir"},null,null,null,null,null,{"$f":"IF(G68=\"Elite\",3,IF(G68=\"Excellence\",2,IF(G68=\"Espoir\",1,0)))","v":1}]
[6,"Le club met-il en place des spécifiques gardien de but ? *"]
[null,null,{"$f":"'FICHE CLUB'!$AA$61","v":0},null,null,null,{"$f":"IF(C70=\"Oui\",\"Elite\",\"Non éligible\")","v":"Non éligible"},null,null,null,null,null,{"$f":"IF(G70=\"Elite\",3,IF(G70=\"Excellence\",2,IF(G70=\"Espoir\",1,0)))","v":0}]
[7,"Le club met-il en place un accompagnement médical pour ses joueurs ?"]
[null,null,{"$f":"'FICHE CLUB'!$AA$63","v":0},null,null,null,{"$f":"IF(C72=\"Oui\",\"Elite\",\"Excellence\")","v":"Excellence"},null,null,null,null,null,{"$f":"IF(G72=\"Elite\",3,IF(G72=\"Excellence\",2,IF(G72=\"Espoir\",1,0)))","v":2}]
[8,"Le club met-il en place des entrainements ou des pratiques en compétitions Futsal, Beach soccer, Loisir ou vétérans ?"]
[null,null,{"$f":"'FICHE CLUB'!$AA$65","v":0},null,null,null,{"$f":"IF(C74=\"Oui\",\"Elite\",\"Espoir\")","v":"Espoir"},null,null,null,null,null,{"$f":"IF(G74=\"Elite\",3,IF(G74=\"Excellence\",2,IF(G74=\"Espoir\",1,0)))","v":1}]
[9,"Le club a-t-il une équipe féminine Seniors ?"]
[null,null,{"$f":"'FICHE CLUB'!$AA$67","v":0},null,null,null,{"$f":"IF(C76=\"Oui\",\"Elite\",\"Excellence\")","v":"Excellence"},null,null,null,null,null,{"$f":"IF(G76=\"Elite\",3,IF(G76=\"Excellence\",2,IF(G76=\"Espoir\",1,0)))","v":2}]
[]
["3 - PROJET EDUCATIF",null,null,null,null,null,null,null,null,null,null,null,{"$f":"MIN(M81:M85)","v":0}]
[]
[1,"Le club a-t-il une charte ?"]
[null,null,{"$f":"'FICHE CLUB'!$AA$71","v":0},null,null,null,{"$f":"IF(C81=\"Oui\",\"Elite\",\"Non éligible\")","v":"Non éligible"},null,null,null,null,null,{"$f":"IF(G81=\"Elite\",3,IF(G81=\"Excellence\",2,IF(G81=\"Espoir\",1,0)))","v":0}]
[2,"Le club fait-il une sensibilisation aux lois du jeu auprès des joueurs ?"]
[null,null,{"$f":"'FICHE CLUB'!$AA$73","v":0},null,null,null,{"$f":"IF(C83=\"Oui\",\"Elite\",\"Non éligible\")","v":"Non éligible"},null,null,null,null,null,{"$f":"IF(G83=\"Elite\",3,IF(G83=\"Excellence\",2,IF(G83=\"Espoir\",1,0)))","v":0}]
[3,"Le club a-t-il un ou des dossiers de cas disciplinaires graves envoyé au rapporteur ?"]
[null,null,{"$f":"'FICHE CLUB'!$AA$75","v":0},null,null,null,{"$f":"IF(C85=\"Non\",\"Elite\",\"Non éligible\")","v":"Non éligible"},null,null,null,null,null,{"$f":"IF(G85=\"Elite\",3,IF(G85=\"Excellence\",2,IF(G85=\"Espoir\",1,0)))","v":0}]
[]
["4- PROJET D'ENCADREMENT ET DE FORMATION",null,null,null,null,null,null,null,null,null,null,null,{"$f":"MIN(M90:M113)","v":0}]
[]
[1,"Le club a-t-il un responsable technique pour les Seniors ?"]
[null,null,{"$f":"'FICHE CLUB'!$AA$79","v":0},null,null,null,{"$f":"IF(C90=\"oui\",\"Elite\",\"Espoir\")","v":"Espoir"},null,null,null,null,null,{"$f":"IF(G90=\"Elite\",3,IF(G90=\"Excellence\",2,IF(G90=\"Espoir\",1,0)))","v":1},null,"Sans dipôme"]
[2,"Le club a-t-il un référent en arbitrage ?",null,null,null,null,null,null,null,null,null,null,null,null,"Module Senior"]
[null,null,{"$f":"'FICHE CLUB'!$AA$81","v":0},null,null,null,{"$f":"IF(C92=\"oui\",\"Elite\",\"Non éligible\")","v":"Non éligible"},{"$f":"IF(F92=\"oui\",\"Elite\",\"Non éligible\")","v":"Non éligible"},{"$f":"IF(G92=\"oui\",\"Elite\",\"Non éligible\")","v":"Non éligible"},{"$f":"IF(H92=\"oui\",\"Elite\",\"Non éligible\")","v":"Non éligible"},{"$f":"IF(I92=\"oui\",\"Elite\",\"Non éligible\")","v":"Non éligible"},null,{"$f":"IF(G92=\"Elite\",3,IF(G92=\"Excellence\",2,IF(G92=\"Espoir\",1,0)))","v":0},null,"CFF3"]
[3,"L'entraineur de l'équipe 1ère possède :",null,null,null,null,null,null,null,null,null,null,null,null,"Module Senior"]
[null,null,{"$f":"'FICHE CLUB'!$AA$83","v":0},null,null,null,{"$f":"IF(OR(C94=\"DES\",C94=\"BEF\"),\"Elite\",IF(OR(C94=\"BMF\",C94=\"CFF3\"),\"Excellence\",IF(C94=\"Module Senior\",\"Espoir\",\"Non éligible\")))","v":"Non éligible"},{"$f":"IF(OR(F94=L98,F94=L97),\"Elite\",IF(F94=L96,\"Excellence\",IF(F94=L95,\"Espoir\",\"Non éligible\")))","v":"Elite"},{"$f":"IF(OR(G94=M98,G94=M97),\"Elite\",IF(G94=M96,\"Excellence\",IF(G94=M95,\"Espoir\",\"Non éligible\")))","v":"Non éligible"},{"$f":"IF(OR(H94=N98,H94=N97),\"Elite\",IF(H94=N96,\"Excellence\",IF(H94=N95,\"Espoir\",\"Non éligible\")))","v":"Non éligible"},{"$f":"IF(OR(I94=O98,I94=O97),\"Elite\",IF(I94=O96,\"Excellence\",IF(I94=O95,\"Espoir\",\"Non éligible\")))","v":"Non éligible"},null,{"$f":"IF(G94=\"Elite\",3,IF(G94=\"Excellence\",2,IF(G94=\"Espoir\",1,0)))","v":0},null,"CFF3"]
[4,"L'entraineur de l'équipe réserve possède :",null,null,null,null,null,null,null,null,null,null,null,null,"DES"]
[null,null,{"$f":"'FICHE CLUB'!$AA$85","v":0},null,null,null,{"$f":"IF(OR(C96=\"DES\",C96=\"BEF\",C96=\"BMF\",C96=\"CFF3\"),\"Elite\",IF(C96=\"Module Senior\",\"Excellence\",\"Espoir\"))","v":"Espoir"},null,null,null,null,null,{"$f":"IF(G96=\"Elite\",3,IF(G96=\"Excellence\",2,IF(G96=\"Espoir\",1,0)))","v":1},null,"Autre"]
[5,"L'entraineur de l'équipe inférieur possède :"]
[null,null,{"$f":"'FICHE CLUB'!$AA$87","v":0},null,null,null,{"$f":"IF(OR(C98=\"DES\",C98=\"BEF\",C98=\"BMF\",C98=\"CFF3\",C98=\"Module Senior\"),\"Elite\",\"Excellence\")","v":"Excellence"},null,null,null,null,null,{"$f":"IF(G98=\"Elite\",3,IF(G98=\"Excellence\",2,IF(G98=\"Espoir\",1,0)))","v":2}]
[6,"L'entraineur des gardiens de but possède :"]
[null,null,{"$f":"'FICHE CLUB'!$AA$89","v":0},null,null,null,{"$f":"IF(C100=\"Module découverte\",\"Espoir\",IF(C100=\"Module Perfectionnement\",\"Exellence\",IF(C100=\"CFF GB\",\"Elite\",\"Non éligible\")))","v":"Non éligible"},{"$f":"IF(F100=M94,\"Espoir\",IF(F100=M95,\"Exellence\",IF(F100=M96,\"Elite\",\"Non éligible\")))","v":"Espoir"},{"$f":"IF(G100=N94,\"Espoir\",IF(G100=N95,\"Exellence\",IF(G100=N96,\"Elite\",\"Non éligible\")))","v":"Non éligible"},{"$f":"IF(H100=O94,\"Espoir\",IF(H100=O95,\"Exellence\",IF(H100=O96,\"Elite\",\"Non éligible\")))","v":"Non éligible"},{"$f":"IF(I100=P94,\"Espoir\",IF(I100=P95,\"Exellence\",IF(I100=P96,\"Elite\",\"Non éligible\")))","v":"Non éligible"},null,{"$f":"IF(G100=\"Elite\",3,IF(G100=\"Excellence\",2,IF(G100=\"Espoir\",1,IF(G100=\"Elite*\",3,0))))","v":0}]
[7,"Combien de dirigeants ont suivi les 2 modules de formations ?"]
[null,null,{"$f":"'FICHE CLUB'!$AA$91","v":0},null,null,null,{"$f":"IF(C102=1,\"Espoir\",IF(C102=2,\"Excellence\",IF(OR(C102=\"3 ou plus\",C102>=3),\"Elite\",\"Non éligible\")))","v":"Non éligible"},{"$f":"IF(F102=N94,\"Espoir\",IF(F102=N95,\"Excellence\",IF(F102=N96,\"Elite\",\"Non éligible\")))","v":"Espoir"},{"$f":"IF(G102=O94,\"Espoir\",IF(G102=O95,\"Excellence\",IF(G102=O96,\"Elite\",\"Non éligible\")))","v":"Non éligible"},{"$f":"IF(H102=P94,\"Espoir\",IF(H102=P95,\"Excellence\",IF(H102=P96,\"Elite\",\"Non éligible\")))","v":"Non éligible"},{"$f":"IF(I102=Q94,\"Espoir\",IF(I102=Q95,\"Excellence\",IF(I102=Q96,\"Elite\",\"Non éligible\")))","v":"Non éligible"},null,{"$f":"IF(G102=\"Elite\",3,IF(G102=\"Excellence\",2,IF(G102=\"Espoir\",1,IF(G102=\"Elite*\",3,0))))","v":0}]
[8,"Est-ce que le président et/ou le secrétaire et/ou le trésorier ont participé à ces modules ?"]
[null,null,{"$f":"'FICHE CLUB'!$AA$93","v":0},null,null,null,{"$f":"IF(C104=\"Oui\",\"Elite\",\"Excellence\")","v":"Excellence"},null,null,null,null,null,{"$f":"IF(G104=\"Elite\",3,IF(G104=\"Excellence\",2,IF(G104=\"Espoir\",1,0)))","v":2}]
[9,"Le club est-il en règle vis-à-vis du statut des éducateurs ?"]
[null,null,{"$f":"'FICHE CLUB'!$AA$95","v":0},null,null,null,{"$f":"IF(C106=\"Oui\",\"Elite\",\"Non éligible\")","v":"Non éligible"},null,null,null,null,null,{"$f":"IF(G106=\"Elite\",3,IF(G106=\"Excellence\",2,IF(G106=\"Espoir\",1,0)))","v":0}]
[10,"Combien d'arbitres possèdent le club ?"]
[null,null,{"$f":"'FICHE CLUB'!$AA$97","v":0},null,null,null,{"$f":"IF(C108>='FICHE CLUB'!AG97,\"Elite\",\"Non éligible\")","v":"Elite"},null,null,null,null,null,{"$f":"IF(G108=\"Elite\",3,IF(G108=\"Excellence\",2,IF(G108=\"Espoir\",1,0)))","v":3}]
[11,"Parmis ces arbitres combien avez-vous de filles ?"]
[null,null,{"$f":"'FICHE CLUB'!$AA$99","v":0},null,null,null,{"$f":"IF(C110>0,\"Elite\",\"Excellence\")","v":"Excellence"},{"$f":"IF(F110>0,\"Elite\",\"Excellence\")","v":"Excellence"},{"$f":"IF(G110>0,\"Elite\",\"Excellence\")","v":"Elite"},{"$f":"IF(H110>0,\"Elite\",\"Excellence\")","v":"Elite"},{"$f":"IF(I110>0,\"Elite\",\"Excellence\")","v":"Elite"},null,{"$f":"IF(G110=\"Elite\",3,IF(G110=\"Excellence\",2,IF(G110=\"Espoir\",1,0)))","v":2}]
[12,"Les éducateurs possèdent-ils une licence correspondant à leur qualification ?"]
[null,null,{"$f":"'FICHE CLUB'!$AA$101","v":0},null,null,null,{"$f":"IF(C112=\"Oui\",\"Elite\",\"Non éligible\")","v":"Non éligible"},null,null,null,null,null,{"$f":"IF(G112=\"Elite\",3,IF(G112=\"Excellence\",2,IF(G112=\"Espoir\",1,0)))","v":0}]
[]
[]
["Visite effectuée par :"]
[]
["Le :",null,null,"/",null,null,null,"/",null,null,null,null,null,{"$f":"CONCATENATE(B117,E117,I117)","v":""}]
[]
["Personnes présentent du club :"]
[]
[]
["Le club avait-il choisit un thème complémentaire ?"]
[]
["Si oui, avez-vous traité ces informations, ou est-ce que ce sera fait plus tard ?"]
[]
["Niveau de label atteint par le club :"]
["Non éligible",null,null,{"$f":"IF(M127=0,\"X\",\"\")","v":"X"},null,"Espoir",{"$f":"IF(M127=1,\"X\",\"\")","v":""},null,null,null,null,null,{"$f":"MIN(M20:M112)","v":0},{"$f":"IF(M127=3,F129,IF(M127=2,A129,IF(M127=1,F127,A127)))","v":"Non éligible"}]
[]
["Excellence",null,null,{"$f":"IF(M127=2,\"X\",\"\")","v":""},null,"Elite",{"$f":"IF(M127=3,\"X\",\"\")","v":""}]
[]
["Observations complémentaires : points forts / points faibles"]

{"sheet":"FICHE CLUB","index":2,"n_rows":116,"n_cols":35,"rows_kept":116,"cut":false,"hidden":false,"merged":[[4,0,4,14],[4,19,4,24],[18,2,18,16],[16,2,16,25],[0,1,0,28],[2,4,2,7],[2,19,2,28],[10,3,10,8],[10,11,10,16],[10,19,10,23],[10,26,10,28],[10,9,10,10],[10,24,10,25],[10,17,10,18],[10,0,10,2],[20,28,28,28],[22,27,28,27],[70,2,70,16],[78,2,78,16],[24,2,24,21],[28,2,28,21],[30,2,30,21],[72,2,72,21],[26,2,26,25],[82,2,82,16],[84,2,84,16],[86,2,86,16],[88,2,88,16],[116,1,116,28],[111,11,111,13],[111,17,111,18],[113,11,113,13],[113,17,113,18],[115,1,115,28],[104,20,104,21],[106,20,106,21],[108,20,108,21],[96,2,96,16],[104,4,104,5],[106,4,106,5],[114,0,114,28],[104,13,104,14],[106,13,106,14],[102,0,102,29],[106,26,106,28],[108,4,108,5],[108,13,108,14],[108,25,108,26],[108,16,108,19],[106,6,106,12],[108,6,108,12],[104,23,104,26],[104,15,104,19],[106,15,106,19]]}
[null,"LABEL SENIORS\nLFNA - Saison 2018/2019 ",null,null,null,null,null,null,null,null,null,null,null,null,null,null,null,null,null,null,null,null,null,null,null,null,null,null,null,null,null,"OUI","NON"]
[null,null,null,null,null,null,null,null,null,null,null,null,null,null,null,null,null,null,null,null,null,null,null,null,null,null,null,null,null,null,null,"NON",2]
["N° affiliation :",null,null,null,null,null,null,null,null,null,null,null,null,null,null,null,"Nom du club :",null,null,{"$f":"IFERROR(VLOOKUP(E3,Feuil3!$A:$C,2),\"\")","v":""},null,null,null,null,null,null,null,null,null,null,null,"Autodiagnostic","3 ou plus"]
[]
[{"$f":"IFERROR(VLOOKUP(E3,Feuil3!$A:$C,3),\"\")","v":""},null,null,null,null,null,null,null,null,null,null,null,null,null,null,{"$f":"VLOOKUP(A5,Feuil3!F1:G12,2)","v":{"$error":"#N/A"}},"Type de club :",null,null,{"$f":"IFERROR(VLOOKUP(E3,Feuil3!A:D,4),\"\")","v":""},null,null,null,null,null,null,null,null,null,null,null,"X"," "]
[]
["Niveau de compétition du club :"]
["Régional",null,null,"R1",null,"R2",null,"R3",null,null,null,null,null,null,null,null,"District","D1",null,"D2",null,"D3",null,"D4 ou +",null,null,null,null,null,null,null,null,null,{"$f":"IF(E8=\"x\",D8,IF(G8=\"x\",F8,IF(I8=\"x\",H8,IF(S8=\"x\",R8,IF(U8=\"x\",T8,IF(W8=\"x\",V8,IF(Y8=\"x\",X8,\"\")))))))","v":""}]
[]
["Coordonnées de la personne qui suit le dossier label Seniors dans le club :"]
["Nom :",null,null,null,null,null,null,null,null,"Prénom :",null,null,null,null,null,null,null,"Tél :",null,null,null,null,null,null,"Mail :",null,null,null,null,null,null,null,null,{"$f":"IF(E11=\"x\",D11,IF(G11=\"x\",F11,IF(I11=\"x\",H11,IF(S11=\"x\",R11,IF(U11=\"x\",T11,IF(W11=\"x\",V11,IF(Y11=\"x\",X11,\"\")))))))","v":""}]
[]
[null,"1 - PROJET ASSOCIATIF",null,null,null,null,null,null,null,null,null,null,null,null,null,null,null,null,null,null,null,null,null,null,null,null,"Résultat",null,"Niveau",null,null,{"$f":"MIN(AF15:AF45)","v":0}]
[]
[null,1,"Combien de licenciés (es) U19, Seniors et vétérans le club possède-t-il ? *",null,null,null,null,null,null,null,null,null,null,null,null,null,null,null,null,null,null,null,null,null,null,null,null,{"$f":"(AA15/AA51)","v":{"$error":"#DIV/0!"}},{"$f":"IFERROR(IF(AB15>=25,\"Elite\",IF(AB15>=22,\"Excellence\",IF(AB15>=18,\"Espoir\",\"Non éligible\"))),\"\")","v":""},null,null,{"$f":"IF(AC15=\"Elite\",3,IF(AC15=\"Excellence\",2,IF(AC15=\"Espoir\",1,0)))","v":0}]
[]
[null,2,"Combien de dirigeants licenciés (accompaganteurs) PAR EQUIPES le club a-t-il les week-end ?*",null,null,null,null,null,null,null,null,null,null,null,null,null,null,null,null,null,null,null,null,null,null,null,null,null,{"$f":"IFERROR(IF(AA17>=2,\"Elite\",\"Non éligible\"),\"\")","v":"Non éligible"},null,null,{"$f":"IF(AC17=\"Elite\",3,IF(AC17=\"Excellence\",2,IF(AC17=\"Espoir\",1,0)))","v":0}]
[]
[null,3,"Combien de DIRIGEANTES licenciées le club possède-t-il ?*",null,null,null,null,null,null,null,null,null,null,null,null,null,null,null,null,null,null,null,null,null,null,null,null,{"$f":"(+AA19/AA23)","v":{"$error":"#DIV/0!"}},{"$f":"IFERROR(IF(AB19>=25%,\"Elite\",IF(AB19>=20%,\"Excellence\",IF(AB19>=15%,\"Espoir\",\"Non éligible\"))),\"\")","v":""},null,null,{"$f":"IF(AC19=\"Elite\",3,IF(AC19=\"Excellence\",2,IF(AC19=\"Espoir\",1,0)))","v":0}]
[]
[null,4,"Combien de LICENCIES (toutes catégories) joueurs joueuses le club possède-t-il ? *",null,null,null,null,null,null,null,null,null,null,null,null,null,null,null,null,null,null,null,null,null,null,null,null,null,{"$f":"IFERROR(IF(AB23>=25%,\"Elite\",IF(AB23>=22%,\"Excellence\",IF(AB23>=20%,\"Espoir\",\"Non éligible\"))),\"\")","v":""}]
[]
[null,5,"Combien de DIRIGEANTS (sans compter les dirigeantes) licenciés le clubs possède-t-il ? *",null,null,null,null,null,null,null,null,null,null,null,null,null,null,null,null,null,null,null,null,null,null,null,null,{"$f":"(AA23+AA25+AA27+AA29+AA19)/AA21","v":{"$error":"#DIV/0!"}},null,null,null,{"$f":"IF(AC21=\"Elite\",3,IF(AC21=\"Excellence\",2,IF(AC21=\"Espoir\",1,0)))","v":0}]
[]
[null,6,"Combien d'éducateurs ayant une licence TECHNIQUE le club possède-t-il ? *"]
[]
[null,7,"Combien d'éducateurs ayant une licence TECHNIQUE FEDERALE le club possède-t-il ? *"]
[]
[null,8,"Combien d'éducateurs ayant une licence ANIMATEUR le club possède-t-il ? *"]
[]
[null,9,"Il y a-t-il un défibrilateur cardiaque à proximité des terrains ? * (moins de 5 min)",null,null,null,null,null,null,null,null,null,null,null,null,null,null,null,null,null,null,null,null,null,null,null,null,null,{"$f":"IF(AA31=\"Oui\",\"Elite\",\"Non éligible\")","v":"Non éligible"},null,null,0]
[]
[null,10,"Le club dispose-t-il d'une salle de convivialité ? *",null,null,null,null,null,null,null,null,null,null,null,null,null,null,null,null,null,null,null,null,null,null,null,null,null,{"$f":"IF(AA33=\"Oui\",\"Elite\",\"Non éligible\")","v":"Non éligible"},null,null,0]
[]
[null,11,"Le club est-il régulièrement représenté aux réunions organisées par les instances fédérales (Ligue et District) ? *",null,null,null,null,null,null,null,null,null,null,null,null,null,null,null,null,null,null,null,null,null,null,null,null,null,{"$f":"IF(AA35=\"Oui\",\"Elite\",\"Non éligible\")","v":"Non éligible"},null,null,0]
[]
[null,12,"Le club organise-t-il des réunions de coordination général (déplacements, repas…) ?",null,null,null,null,null,null,null,null,null,null,null,null,null,null,null,null,null,null,null,null,null,null,null,null,null,{"$f":"IF(AA37=\"Oui\",\"Elite\",\"Espoir\")","v":"Espoir"},null,null,1]
[]
[null,13,"Le club a-t-il un organigramme général du club affiché dans le club house ? *",null,null,null,null,null,null,null,null,null,null,null,null,null,null,null,null,null,null,null,null,null,null,null,null,null,{"$f":"IF(AA39=\"Oui\",\"Elite\",\"Non éligible\")","v":"Non éligible"},null,null,0]
[]
[null,14,"Le club met-il en place des manifestations extra sportives (loto, repas…) ? *",null,null,null,null,null,null,null,null,null,null,null,null,null,null,null,null,null,null,null,null,null,null,null,null,null,{"$f":"IF(AA41=\"Oui\",\"Elite\",\"Non éligible\")","v":"Non éligible"},null,null,0]
[]
[null,15,"Le club a-t-il obtenu le label jeune ?",null,null,null,null,null,null,null,null,null,null,null,null,null,null,null,null,null,null,null,null,null,null,null,null,null,{"$f":"IF(AA43=\"Oui\",\"Elite\",IF(AA43=\"Autodiagnostic\",\"Excellence\",\"Espoir\"))","v":"Espoir"},null,null,1]
[]
[null,16,"Le club est-il en règle avec le statut des jeunes ?",null,null,null,null,null,null,null,null,null,null,null,null,null,null,null,null,null,null,null,null,null,null,null,null,null,{"$f":"IF(AA45=\"Oui\",\"Elite\",\"Excellence\")","v":"Excellence"},null,null,2]
[]
[null,17,"Le club a-t-il une page Facebook ?",null,null,null,null,null,null,null,null,null,null,null,null,null,null,null,null,null,null,null,null,null,null,null,null,null,{"$f":"IF(AA47=\"Oui\",\"Elite\",\"Excellence\")","v":"Excellence"},null,null,{"$f":"IF(AC47=\"Elite\",3,IF(AC47=\"Excellence\",2,IF(AC47=\"Espoir\",1,0)))","v":2}]
[]
[null,"2 - PROJET SPORTIF",null,null,null,null,null,null,null,null,null,null,null,null,null,null,null,null,null,null,null,null,null,null,null,null,"Résultat",null,"Niveau",null,null,{"$f":"MIN(AF51:AF67)","v":0}]
[]
[null,1,"Combien d’équipes Seniors (garçons et filles) avez-vous d'engagées ? *",null,null,null,null,null,null,null,null,null,null,null,null,null,null,null,null,null,null,null,null,null,null,null,null,null,{"$f":"IF(AA51>=3,\"Elite\",IF(AA51>=2,\"Excellence\",IF(AA51>=1,\"Espoir\",\"Non éligible\")))","v":"Non éligible"},null,null,0]
[]
[null,2,"Combien l'équipe 1ère de votre club a-t-il d'entrainement par semaine ? *",null,null,null,null,null,null,null,null,null,null,null,null,null,null,null,null,null,null,null,null,null,null,null,null,null,{"$f":"IF(AA53>=3,\"Elite\",IF(AA53=2,\"Excellence\",IF(AA53=1,\"Espoir\",\"Non éligible\")))","v":"Non éligible"},null,null,0]
[]
[null,3,"Le club a-t-il mis en place une programmation annuelle pour ses équipes Seniors (garçons et filles) ?",null,null,null,null,null,null,null,null,null,null,null,null,null,null,null,null,null,null,null,null,null,null,null,null,null,{"$f":"IF(AA55=\"Oui\",\"Elite\",\"Espoir\")","v":"Espoir"},null,null,1]
[]
[null,4,"Combien de réunions techniques, par saison, le club met-il en place ?",null,null,null,null,null,null,null,null,null,null,null,null,null,null,null,null,null,null,null,null,null,null,null,null,null,{"$f":"IF(AA57=\"3 ou plus\",\"Elite\",IF(AA57=2,\"Excellence\",\"Espoir\"))","v":"Espoir"},null,null,1]
[]
[null,5,"Le club dispose-t-il d'un terrain par groupe d'entrainement ?",null,null,null,null,null,null,null,null,null,null,null,null,null,null,null,null,null,null,null,null,null,null,null,null,null,{"$f":"IF(AA59=\"Oui\",\"Elite\",\"Espoir\")","v":"Espoir"},null,null,{"$f":"IF(AC59=\"Elite\",3,IF(AC59=\"Excellence\",2,IF(AC59=\"Espoir\",1,0)))","v":1}]
[]
[null,6,"Le club met-il en place des spécifiques gardien de but ? *",null,null,null,null,null,null,null,null,null,null,null,null,null,null,null,null,null,null,null,null,null,null,null,null,null,{"$f":"IF(AA61=\"Oui\",\"Elite\",\"Non éligible\")","v":"Non éligible"},null,null,0]
[]
[null,7,"Le club met-il en place un accompagnement médical pour ses joueurs ?",null,null,null,null,null,null,null,null,null,null,null,null,null,null,null,null,null,null,null,null,null,null,null,null,null,{"$f":"IF(AA63=\"Oui\",\"Elite\",\"Excellence\")","v":"Excellence"},null,null,2]
[]
[null,8,"Le club met-il en place des entrainements ou des pratiques en compétitions Futsal, Beach soccer, Loisir ou vétérans ?",null,null,null,null,null,null,null,null,null,null,null,null,null,null,null,null,null,null,null,null,null,null,null,null,null,{"$f":"IF(AA65=\"Oui\",\"Elite\",\"Espoir\")","v":"Espoir"},null,null,1]
[]
[null,9,"Le club a-t-il une équipe féminine Seniors ?",null,null,null,null,null,null,null,null,null,null,null,null,null,null,null,null,null,null,null,null,null,null,null,null,null,{"$f":"IF(AA67=\"Oui\",\"Elite\",\"Excellence\")","v":"Excellence"},null,null,2]
[]
[null,"3 - PROJET EDUCATIF",null,null,null,null,null,null,null,null,null,null,null,null,null,null,null,null,null,null,null,null,null,null,null,null,"Résultat",null,"Niveau",null,null,{"$f":"MIN(AF71:AF75)","v":0}]
[]
[null,1,"Le club a-t-il une charte ? *",null,null,null,null,null,null,null,null,null,null,null,null,null,null,null,null,null,null,null,null,null,null,null,null,null,{"$f":"IF(AA71=\"Oui\",\"Elite\",\"Non éligible\")","v":"Non éligible"},null,null,0]
[]
[null,2,"Le club fait-il une sensibilisation aux lois du jeu auprès des joueurs ? *",null,null,null,null,null,null,null,null,null,null,null,null,null,null,null,null,null,null,null,null,null,null,null,null,null,{"$f":"IF(AA73=\"Oui\",\"Elite\",\"Non éligible\")","v":"Non éligible"},null,null,0]
[]
[null,3,"Le club a-t-il un ou des dossiers de cas disciplinaires graves envoyé au rapporteur ? *",null,null,null,null,null,null,null,null,null,null,null,null,null,null,null,null,null,null,null,null,null,null,null,null,null,{"$f":"IF(AA75=\"Non\",\"Elite\",\"Non éligible\")","v":"Non éligible"},null,null,0]
[]
[null,"4 - PROJET D'ENCADREMENT ET DE FORMATION",null,null,null,null,null,null,null,null,null,null,null,null,null,null,null,null,null,null,null,null,null,null,null,null,"Résultat",null,"Niveau",null,null,{"$f":"MIN(AF79:AF101)","v":0}]
[]
[null,1,"Le club a-t-il un responsable technique pour les Seniors ?",null,null,null,null,null,null,null,null,null,null,null,null,null,null,null,null,null,null,null,null,null,null,null,null,null,{"$f":"IF(AA79=\"oui\",\"Elite\",\"Espoir\")","v":"Espoir"},null,null,1]
[]
[null,2,"Avez-vous un référent en arbitrage dans votre club ? *",null,null,null,null,null,null,null,null,null,null,null,null,null,null,null,null,null,null,null,null,null,null,null,null,null,{"$f":"IF(AA81=\"oui\",\"Elite\",\"Non éligible\")","v":"Non éligible"},null,null,0]
[]
[null,3,"L'entraineur de l'équipe 1ère possède * :",null,null,null,null,null,null,null,null,null,null,null,null,null,null,null,null,null,null,null,null,null,null,null,null,null,{"$f":"IF(OR(AA83=AG87,AA83=AG86),\"Elite\",IF(AA83=AG85,\"Excellence\",IF(AA83=AG84,\"Espoir\",\"Non éligible\")))","v":"Non éligible"},null,null,0,"Sans dipôme","Module découverte",1]
[null,null,null,null,null,null,null,null,null,null,null,null,null,null,null,null,null,null,null,null,null,null,null,null,null,null,null,null,null,null,null,null,"Module Senior","Module Perfectionnement",2]
[null,4,"L'entraineur de l'équipe réserve possède :",null,null,null,null,null,null,null,null,null,null,null,null,null,null,null,null,null,null,null,null,null,null,null,null,null,{"$f":"IF(OR(AA85=AG87,AA85=AG86,AA85=AG85),\"Elite\",IF(AA85=AG84,\"Excellence\",\"Espoir\"))","v":"Espoir"},null,null,1,"CFF3","CFF GB","3 ou plus"]
[null,null,null,null,null,null,null,null,null,null,null,null,null,null,null,null,null,null,null,null,null,null,null,null,null,null,null,null,null,null,null,null,"BEF","Pas de diplôme"]
[null,5,"L'entraineur de l'équipe inférieur possède :",null,null,null,null,null,null,null,null,null,null,null,null,null,null,null,null,null,null,null,null,null,null,null,null,null,{"$f":"IF(OR(AA87=AG87,AA87=AG86,AA87=AG85,AA87=AG84),\"Elite\",\"Excellence\")","v":"Excellence"},null,null,2,"DES"]
[null,null,null,null,null,null,null,null,null,null,null,null,null,null,null,null,null,null,null,null,null,null,null,null,null,null,null,null,null,null,null,null,"Autre"]
[null,6,"L'entraineur des gardiens de but possède * :",null,null,null,null,null,null,null,null,null,null,null,null,null,null,null,null,null,null,null,null,null,null,null,null,null,{"$f":"IF(AA89=AH83,\"Espoir\",IF(AA89=AH84,\"Exellence\",IF(AA89=AH85,\"Elite\",\"Non éligible\")))","v":"Non éligible"},null,null,{"$f":"IF(AC89=\"Elite\",3,IF(AC89=\"Excellence\",2,IF(AC89=\"Espoir\",1,IF(AC89=\"Elite*\",3,0))))","v":0}]
[]
[null,7,"Combien de dirigeants ont suivi les 2 modules de formations ?*",null,null,null,null,null,null,null,null,null,null,null,null,null,null,null,null,null,null,null,null,null,null,null,null,null,{"$f":"IF(AA91=AI83,\"Espoir\",IF(AA91=AI84,\"Excellence\",IF(AA91=AI85,\"Elite\",\"Non éligible\")))","v":"Non éligible"},null,null,{"$f":"IF(AC91=\"Elite\",3,IF(AC91=\"Excellence\",2,IF(AC91=\"Espoir\",1,IF(AC91=\"Elite*\",3,0))))","v":0}]
[]
[null,8,"Est-ce que le président et/ou le secrétaire et/ou le trésorier ont participé à ces modules ?",null,null,null,null,null,null,null,null,null,null,null,null,null,null,null,null,null,null,null,null,null,null,null,null,null,{"$f":"IF(AA93=\"oui\",\"Elite\",\"Excellence\")","v":"Excellence"},null,null,{"$f":"IF(AC93=\"Elite\",3,IF(AC93=\"Excellence\",2,IF(AC93=\"Espoir\",1,IF(AC93=\"Elite*\",3,0))))","v":2}]
[]
[null,9,"Le club est-il en règle vis-à-vis du statut des éducateurs ? *",null,null,null,null,null,null,null,null,null,null,null,null,null,null,null,null,null,null,null,null,null,null,null,null,null,{"$f":"IF(AA95=\"OUI\",\"Elite\",\"Non éligible\")","v":"Non éligible"},null,null,{"$f":"IF(AC95=\"Elite\",3,IF(AC95=\"Excellence\",2,IF(AC95=\"Espoir\",1,IF(AC95=\"Elite*\",3,0))))","v":0}]
[]
[null,10,"Combien avez-vous d'arbitres au club ? *",null,null,null,null,null,null,null,null,null,null,null,null,null,null,null,null,null,null,null,null,null,null,null,null,null,{"$f":"IF(AA97>=AG97,\"Elite\",\"Non éligible\")","v":"Elite"},null,null,{"$f":"IF(AC97=\"Elite\",3,IF(AC97=\"Excellence\",2,IF(AC97=\"Espoir\",1,0)))","v":3},{"$f":"IF(AH8=D8,4,IF(AH8=F8,3,IF(AH8=H8,2,IF(AH8=R8,2,IF(AH8=T8,1,IF(AH8=V8,1,IF(AH8=X8,1,0)))))))","v":0}]
[]
[null,11,"Parmis ces arbitres combien avez-vous de filles ?",null,null,null,null,null,null,null,null,null,null,null,null,null,null,null,null,null,null,null,null,null,null,null,null,null,{"$f":"IF(AA99>0,\"Elite\",\"Excellence\")","v":"Excellence"},null,null,{"$f":"IF(AC99=\"Elite\",3,IF(AC99=\"Excellence\",2,IF(AC99=\"Espoir\",1,0)))","v":2}]
[]
[null,12,"Les éducateurs possèdent-ils une licence correspondant à leur qualification ? *",null,null,null,null,null,null,null,null,null,null,null,null,null,null,null,null,null,null,null,null,null,null,null,null,null,{"$f":"IF(AA101=\"OUI\",\"Elite\",\"Non éligible\")","v":"Non éligible"},null,null,0]
[]
["A la suite de votre retour de fiche, une personne du district va venir contrôler vos données. Nous vous proposons, si vous le souhaitez, de compléter cette entrevue sur le thème de votre choix :"]
[]
[null,"Le label jeune",null,null,null,null,"L'administratif (Foot Clubs, la FMI…)",null,null,null,null,null,null,null,null,"Statuts et règlements",null,null,null,null,null,null,null,"Ne souhaite pas d'intervention complémentaire",null,null,null,null,null,null,null,null,{"$f":"IF(E105=\"x\",\"Label jeunes\",IF(E107=\"x\",\"Foot féminin\",IF(E109=\"x\",\"Formations\",IF(N105=\"x\",\"Administratif\",IF(N107=\"x\",\"Intervention théorique éducateurs\",IF(N109=\"x\",\"Intervention péda éducateurs\",IF(U105=\"x\",\"Statuts et Règlements\",IF(U107=\"x\",\"FAFA CNDS\",IF(U109=\"x\",\"Dossier pour l'emploi\",IF(AB105=\"x\",\"Pas de thème\",IF(AA107=\"x\",AA107,\"\")))))))))))","v":""}]
[]
[null,"Le foot féminin",null,null,null,null,"Intervention théorique éducateurs",null,null,null,null,null,null,null,null,"Fond d'Aide au Foot Amateur,\nCentre Nantional Développement Sport",null,null,null,null,null,null,null,null,null,"Autre :"]
[]
[null,"Les formations",null,null,null,null,"Intervention pédagogique éducateurs ",null,null,null,null,null,null,null,null,null,"Dossier pour l'emploi",null,null,null,null,null,null,null,null,"1 ou 2 choix possibles"]
[]
[]
["Niveau de label atteint par le club :",null,null,null,null,null,null,null,null,"Non éligible",null,{"$f":"IF(AF112=0,\"X\",\"\")","v":"X"},null,null,null,null,"Espoir",{"$f":"IF(AF112=1,\"X\",\"\")","v":""},null,null,null,null,null,null,null,null,null,null,null,null,null,{"$f":"MIN(AF15:AF101)","v":0}]
[]
[null,null,null,null,null,null,null,null,null,"Excellence",null,{"$f":"IF(AF112=2,\"X\",\"\")","v":""},null,null,null,null,"Elite",{"$f":"IF(AF112=3,\"X\",\"\")","v":""}]
["Même si le fichier vous indique que vous êtes non éligible, merci de nous retourner le document quand même, car ce qui compte c'est le jour de la visite. \nCela vous laisse ainsi plus de temps pour par exemple passer les formations incontournables"]
[null,"Observations complémentaires : \n\n\n\n\n\n\n\n"]

{"sheet":"SYNTHESE","index":3,"n_rows":57,"n_cols":3,"rows_kept":57,"cut":false,"hidden":false,"merged":[[39,0,39,8],[29,0,29,8],[16,0,16,8],[1,0,1,8],[0,2,0,8],[0,0,0,1]]}
["SYNTHESE LABEL JEUNE",null,{"$f":"'FICHE évaluateur'!$D$5","v":""}]
["1 - PROJET ASSOCIATIF"]
["Nbe licénciés(es)",{"$f":"'FICHE CLUB'!$AF$15","v":0}]
["Dirigeants / équipe",{"$f":"'FICHE CLUB'!$AF$17","v":0}]
["Nbe dirigeantes",{"$f":"'FICHE CLUB'!$AF$19","v":0}]
["Ratio dirigeants / licenciés",{"$f":"'FICHE CLUB'!$AF$23","v":0}]
["Défibrilateur",{"$f":"'FICHE CLUB'!$AF$31","v":0}]
["Club House",{"$f":"'FICHE CLUB'!$AF$33","v":0}]
["Représentation",{"$f":"'FICHE CLUB'!$AF$35","v":0}]
["Coordination",{"$f":"'FICHE CLUB'!$AF$37","v":1}]
["Organigramme",{"$f":"'FICHE CLUB'!$AF$39","v":0}]
["Manifestations extra sportives",{"$f":"'FICHE CLUB'!$AF$41","v":0}]
["Label jeune",{"$f":"'FICHE CLUB'!$AF$43","v":1}]
["Statut des jeunes",{"$f":"'FICHE CLUB'!$AF$45","v":2}]
["Facebook",{"$f":"'FICHE CLUB'!$AF$47","v":2}]
[]
["2 - PROJET SPORTIF"]
["Nbe équipe",{"$f":"'FICHE CLUB'!$AF$51","v":0}]
["Nbe entrainement",{"$f":"'FICHE CLUB'!$AF$53","v":0}]
["Programmation",{"$f":"'FICHE CLUB'!$AF$55","v":1}]
["Réunions techniques",{"$f":"'FICHE CLUB'!$AF$57","v":1}]
["Terrains",{"$f":"'FICHE CLUB'!$AF$59","v":1}]
["Spé GB",{"$f":"'FICHE CLUB'!$AF$61","v":0}]
["Médical",{"$f":"'FICHE CLUB'!$AF$63","v":2}]
["Pratiques diversifiées",{"$f":"'FICHE CLUB'!$AF$65","v":1}]
["Féminines",{"$f":"'FICHE CLUB'!$AF$67","v":2}]
[]
[]
[]
["3 - PROJET EDUCATIF"]
["Chartre",{"$f":"'FICHE évaluateur'!$M$81","v":0}]
["Arbitrage",{"$f":"'FICHE évaluateur'!$M$83","v":0}]
["Cas disciplinaires",{"$f":"'FICHE évaluateur'!$M$85","v":0}]
[]
[]
[]
[]
[]
[]
["4- PROJET D'ENCADREMENT ET DE FORMATION"]
["Responsable T",{"$f":"'FICHE CLUB'!$AF$79","v":1}]
["Référent arbitrage",{"$f":"'FICHE CLUB'!$AF$81","v":0}]
["Entraineur 1ère ",{"$f":"'FICHE CLUB'!$AF$83","v":0}]
["Entraineur réserve",{"$f":"'FICHE CLUB'!$AF$85","v":1}]
["Entraineur 3",{"$f":"'FICHE CLUB'!$AF$87","v":2}]
["Entraineur GB",{"$f":"'FICHE CLUB'!$AF$89","v":0}]
["Formation dirigeants",{"$f":"MIN('FICHE CLUB'!AF91:AF93)","v":0}]
["Statut éducateurs",{"$f":"'FICHE CLUB'!$AF$95","v":0}]
["Nombre d'arbitre",{"$f":"MIN('FICHE CLUB'!AF97:AF99)","v":2}]
["Licences",{"$f":"'FICHE CLUB'!$AF$101","v":0}]
[]
[]
[]
["Asso",{"$f":"'FICHE CLUB'!$AF$13","v":0}]
["Sportif",{"$f":"'FICHE CLUB'!$AF$49","v":0}]
["Educ",{"$f":"'FICHE CLUB'!$AF$69","v":0}]
["Encadrement",{"$f":"'FICHE CLUB'!$AF$77","v":0}]

{"sheet":"CORINNE","index":4,"n_rows":11,"n_cols":54,"rows_kept":11,"cut":false,"hidden":true,"merged":[[8,29,8,37],[8,38,8,40],[8,41,8,52],[0,0,0,4],[8,0,8,11],[8,12,8,28],[7,0,7,4]]}
["Ligne pour envoi au district (tableau Districts)"]
["Numéro club","Retour club du doc label","Date d'envoi au Districts","N° district","Nom du club","Nom","Prénom","Tel","Mail","Thème de visite","Observations complémentaires"]
[{"$f":"'FICHE CLUB'!$E$3","v":0},"x",null,{"$f":"'FICHE CLUB'!$P$5","v":{"$error":"#N/A"}},{"$f":"'FICHE CLUB'!$T$3","v":""},{"$f":"'FICHE CLUB'!$D$11","v":0},{"$f":"'FICHE CLUB'!$L$11","v":0},{"$f":"'FICHE CLUB'!$T$11","v":0},{"$f":"'FICHE CLUB'!$AA$11","v":0},{"$f":"'FICHE CLUB'!$AG$105","v":""},{"$f":"'FICHE CLUB'!$B$117","v":0}]
[]
[]
[]
[]
["Ligne RETOUR DISTRICT"]
["DONNEES GENERALES",null,null,null,null,null,null,null,null,null,null,null,"ASSO",null,null,null,null,null,null,null,null,null,null,null,null,null,null,null,null,"SPORTIF",null,null,null,null,null,null,null,null,"EDUCATIF",null,null,"ENCADREMENT ET FORMATION"]
["Numéro d'affiliation","Retour visite","Date de visite","N° Dsitrict","Nom du club","Type de club","niveau club","visite faite par","personnes présentes","date de visite","Traitement hème","niveau de label","Joueurs U19 S V","Dirigeants / équipe","Dirigeantes","Joueurs ttes cat","Dirigeants","Technique","Technique Fédé","Animateur","Défibrilateur","Club House","Représentation","Coordination","Organigramme","Manifestations extra sportives","Label jeune","Statut des jeunes","Facebook","Nbe équipe","Nbe entrainement","Programmation","Réunions techniques","Terrains","Spé GB","Médical","Pratiques diversifiées","Féminines","Chartre","Arbitrage","Cas disciplinaires","Responsable T","Référent arbitrage","Entraineur 1ère ","Entraineur réserve","Entraineur 3","Entraineur GB","Nombre dirigeants formés","Président Secretaire…","Statut éduc","Nbe d'arbitre","Nbe arbitre F","Licences","Observation complémentaires"]
[{"$f":"'FICHE évaluateur'!$D$3","v":0},"x",{"$f":"'FICHE évaluateur'!$N$117","v":""},{"$f":"'FICHE évaluateur'!$N$7","v":{"$error":"#N/A"}},{"$f":"'FICHE évaluateur'!$D$5","v":""},{"$f":"'FICHE évaluateur'!$D$9","v":""},{"$f":"'FICHE évaluateur'!$N$12","v":""},{"$f":"'FICHE évaluateur'!$E$115","v":0},{"$f":"'FICHE évaluateur'!$A$120","v":0},{"$f":"'FICHE évaluateur'!$N$117","v":""},{"$f":"'FICHE évaluateur'!$A$125","v":0},{"$f":"'FICHE évaluateur'!$N$127","v":"Non éligible"},{"$f":"'FICHE évaluateur'!$C$23","v":0},{"$f":"'FICHE évaluateur'!$C$25","v":0},{"$f":"'FICHE évaluateur'!$C$27","v":0},{"$f":"'FICHE évaluateur'!$C$29","v":0},{"$f":"'FICHE évaluateur'!$C$31","v":0},{"$f":"'FICHE évaluateur'!$C$33","v":0},{"$f":"'FICHE évaluateur'!$C$35","v":0},{"$f":"'FICHE évaluateur'!$C$37","v":0},{"$f":"IF('FICHE évaluateur'!$C$39=\"OUI\",1,0)","v":0},{"$f":"IF('FICHE évaluateur'!$C$41=\"OUI\",1,0)","v":0},{"$f":"IF('FICHE évaluateur'!$C$43=\"OUI\",1,0)","v":0},{"$f":"IF('FICHE évaluateur'!$C$45=\"OUI\",1,0)","v":0},{"$f":"IF('FICHE évaluateur'!$C$47=\"OUI\",1,0)","v":0},{"$f":"IF('FICHE évaluateur'!$C$49=\"OUI\",1,0)","v":0},{"$f":"'FICHE évaluateur'!$C$51","v":0},{"$f":"IF('FICHE évaluateur'!$C$53=\"OUI\",1,0)","v":0},{"$f":"IF('FICHE évaluateur'!$C$55=\"OUI\",1,0)","v":0},{"$f":"'FICHE évaluateur'!$C$60","v":0},{"$f":"'FICHE évaluateur'!$C$62","v":0},{"$f":"IF('FICHE évaluateur'!$C$64=\"OUI\",1,0)","v":0},{"$f":"'FICHE évaluateur'!$C$66","v":0},{"$f":"IF('FICHE évaluateur'!$C$68=\"OUI\",1,0)","v":0},{"$f":"IF('FICHE évaluateur'!$C$70=\"OUI\",1,0)","v":0},{"$f":"IF('FICHE évaluateur'!$C$72=\"OUI\",1,0)","v":0},{"$f":"IF('FICHE évaluateur'!$C$74=\"OUI\",1,0)","v":0},{"$f":"IF('FICHE évaluateur'!$C$76=\"OUI\",1,0)","v":0},{"$f":"IF('FICHE évaluateur'!$C$81=\"OUI\",1,0)","v":0},{"$f":"IF('FICHE évaluateur'!$C$83=\"OUI\",1,0)","v":0},{"$f":"IF('FICHE évaluateur'!$C$85=\"NON\",1,0)","v":0},{"$f":"IF('FICHE évaluateur'!$C$90=\"OUI\",1,0)","v":0},{"$f":"IF('FICHE évaluateur'!$C$92=\"OUI\",1,0)","v":0},{"$f":"'FICHE évaluateur'!$C$94","v":0},{"$f":"'FICHE évaluateur'!$C$96","v":0},{"$f":"'FICHE évaluateur'!$C$98","v":0},{"$f":"'FICHE évaluateur'!$C$100","v":0},{"$f":"'FICHE évaluateur'!$C$102","v":0},{"$f":"IF('FICHE évaluateur'!$C$104=\"OUI\",1,0)","v":0},{"$f":"IF('FICHE évaluateur'!$C$106=\"OUI\",1,0)","v":0},{"$f":"'FICHE évaluateur'!$C$108","v":0},{"$f":"'FICHE évaluateur'!$C$110","v":0},{"$f":"IF('FICHE évaluateur'!$C$112=\"OUI\",1,0)","v":0},{"$f":"'FICHE évaluateur'!$A$132","v":0}]

{"sheet":"Feuil3","index":5,"n_rows":1438,"n_cols":14,"rows_kept":1438,"cut":false,"hidden":true,"merged":[]}
["Numéro","Club","Centre de gestion","Type de club",2017,"DISTRICT DE LA  CHARENTE",16,"Janvier ",1,null,null,"Entre 5 et 30 min",null,"Libre"]
[500021,"STADE BORDELAIS - ASPTT","DISTRICT DE LA GIRONDE","Libre",2018,"DISTRICT CHARENTE MARITIME",17,"Février",2,null,"X","Entre 30 min et 1h",null,"Féminin"]
[500042,"BORDEAUX ETUDIANTS C.","DISTRICT DE LA GIRONDE","Libre",2019,"DISTRICT DE LA CORREZE",19,"Mars",3,null,null,"Entre 1h et 2h",null,"Futsal"]
[500045,"C.ML FLOIRAC","DISTRICT DE LA GIRONDE","Libre",2020,"DISTRICT DE LA CREUSE",23,"Avril",4,null,null,"Plus de 2h",null,"Foot Entreprise"]
[500057,"SP.C. LA BASTIDIENNE","DISTRICT DE LA GIRONDE","Libre",2021,"DISTRICT FOOT DORDOGNE-PERIGORD",24,"Mai",5,null,null,null,null,"Jeune"]
[500060,"BORDEAUX A.C.","DISTRICT DE LA GIRONDE","Libre",2022,"DISTRICT DE LA GIRONDE",33,"Juin",6,null,null,null,null,"Groupement de Jeune"]
[500089,"O. FC. DE RUELLE","DISTRICT DE LA  CHARENTE","Libre",2023,"DISTRICT LANDES",40,"Juillet",7,null,null,null,null,"Loisirs"]
[500097,"ST. MONTOIS","DISTRICT LANDES","Libre",2024,"DISTRICT LOT ET GARONNE",47,"Août",8]
[500110,"C.A. BEGLAIS","DISTRICT DE LA GIRONDE","Libre",2025,"DISTRICT PYRENEES ATLANTIQUES",64,"Septembre",9]
[500111,"S.O. CHATELLERAULT","DISTRICT DE LA VIENNE","Libre",2026,"DISTRICT DES DEUX-SEVRES",79,"Octobre",10]
[500134,"S.C. ST JEAN D'ANGELY","DISTRICT CHARENTE MARITIME","Libre",2027,"DISTRICT DE LA VIENNE",86,"Novembre",11]
[500139,"ST. PESSACAIS U.C.","DISTRICT DE LA GIRONDE","Libre",2028,"DISTRICT HAUTE-VIENNE",87,"Décembre",12]
[500161,"U.S. CHATEAUNEUF","DISTRICT DE LA  CHARENTE","Libre",2029,null,null,null,13]
[500211,"F.C. GIRONDINS DE BORDEAUX","DISTRICT DE LA GIRONDE","Libre",2030,null,null,null,14]
[500246,"S.C. STE CROIX DU MONT","DISTRICT DE LA GIRONDE","Libre",null,null,null,null,15]
[500343,"S.C. DE CADAUJAC","DISTRICT DE LA GIRONDE","Libre",null,null,null,null,16]
[500370,"A.S. AIXE S/VIENNE","DISTRICT HAUTE-VIENNE","Libre",null,null,null,null,17]
[500440,"J. VILLENAVAISE","DISTRICT DE LA GIRONDE","Libre",null,null,null,null,18]
[500446,"SAINT MEDARD S. C.","DISTRICT DE LA GIRONDE","Libre",null,null,null,null,19]
[500451,"AV. DE MATHA","DISTRICT CHARENTE MARITIME","Libre",null,null,null,null,20]
[500491,"U.S. AIGREFEUILLE","DISTRICT CHARENTE MARITIME","Libre",null,null,null,null,21]
[500519,"LA PATRIOTE AGONAC","DISTRICT FOOT DORDOGNE-PERIGORD","Libre",null,null,null,null,22]
[501540,"C.A. STE HELENE","DISTRICT DE LA GIRONDE","Libre",null,null,null,null,23]
[501681,"PAU F.C.","DISTRICT PYRENEES ATLANTIQUES","Libre",null,null,null,null,24]
[504977,"U.S. MAUZE S/LE MIGNON","DISTRICT DES DEUX-SEVRES","Libre",null,null,null,null,25]
[505552,"E.S. D'AUDENGE","DISTRICT DE LA GIRONDE","Libre",null,null,null,null,26]
[505554,"F.C. LOUBESIEN","DISTRICT DE LA GIRONDE","Libre",null,null,null,null,27]
[505555,"COCARDE DE ST LAURENT ET BENON","DISTRICT DE LA GIRONDE","Libre",null,null,null,null,28]
[505556,"F.A. BOURBAKI PAU","DISTRICT PYRENEES ATLANTIQUES","Libre",null,null,null,null,29]
[505560,"C.A. CARBON BLANAIS","DISTRICT DE LA GIRONDE","Libre",null,null,null,null,30]
[505569,"ST. BLAYAIS","DISTRICT DE LA GIRONDE","Libre",null,null,null,null,31]
[505572,"R.C. DE BORDEAUX METROPOLE","DISTRICT DE LA GIRONDE","Libre",null,null,null,null,32]
[505574,"S.A. CISSACAIS","DISTRICT DE LA GIRONDE","Libre",null,null,null,null,33]
[505581,"F.C. ST ANDRE CUBZAC","DISTRICT DE LA GIRONDE","Libre",null,null,null,null,34]
[505587,"F. C. LESPARRE MEDOC","DISTRICT DE LA GIRONDE","Libre",null,null,null,null,35]
[505589,"ST. YGOSSAIS","DISTRICT LANDES","Libre",null,null,null,null,36]
[505597,"BOULIACAISE F.C.","DISTRICT DE LA GIRONDE","Libre",null,null,null,null,37]
[505598,"LES COQS ROUGES BORDEAUX","DISTRICT DE LA GIRONDE","Libre",null,null,null,null,38]
[505608,"ARIN LUZIEN","DISTRICT PYRENEES ATLANTIQUES","Libre",null,null,null,null,39]
[505610,"F. C. LIBOURNE","DISTRICT DE LA GIRONDE","Libre",null,null,null,null,40]
[505613,"ST.J. MACAUDAISE","DISTRICT DE LA GIRONDE","Libre",null,null,null,null,41]
[505628,"C.A. MONTFOURAT EGLISOTTES","DISTRICT DE LA GIRONDE","Libre",null,null,null,null,42]
[505629,"C.A. STEPHANOIS","DISTRICT DE LA GIRONDE","Libre",null,null,null,null,43]
[505634,"S.C. ST SYMPHORIEN","DISTRICT DE LA GIRONDE","Libre",null,null,null,null,44]
[505644,"J.S. TEICHOISE","DISTRICT DE LA GIRONDE","Libre",null,null,null,null,45]
[505674,"SP. CHANTECLER BX NORD LE LAC","DISTRICT DE LA GIRONDE","Libre",null,null,null,null,46]
[505676,"FRATERNELLE LANDIRAS","DISTRICT DE LA GIRONDE","Libre",null,null,null,null,47]
[505679,"SP.A. MERIGNACAIS","DISTRICT DE LA GIRONDE","Libre",null,null,null,null,48]
[505681,"F.C. BELIN BELIET","DISTRICT DE LA GIRONDE","Libre",null,null,null,null,49]
[505684,"AVIRON BAYONNAIS","DISTRICT PYRENEES ATLANTIQUES","Libre",null,null,null,null,50]
[505689,"LA JEANNE D'ARC DE BIARRITZ","DISTRICT PYRENEES ATLANTIQUES","Libre",null,null,null,null,51]
[505692,"A. F. C. ROQUEFORTOIS","DISTRICT LANDES","Libre",null,null,null,null,52]
[505697,"C.S. LANTONNAIS","DISTRICT DE LA GIRONDE","Libre",null,null,null,null,53]
[505701,"ANDERNOS SPORT F. C.","DISTRICT DE LA GIRONDE","Libre",null,null,null,null,54]
[505708,"AM.LAIQ.ET BOURG SPORTS","DISTRICT DE LA GIRONDE","Libre",null,null,null,null,55]
[505712,"A.S. PONTOISE","DISTRICT LANDES","Libre",null,null,null,null,56]
[505722,"S. ST MEDARDAIS","DISTRICT DE LA GIRONDE","Libre",null,null,null,null,57]
[505723,"EL. BOUCALAIS","DISTRICT PYRENEES ATLANTIQUES","Libre",null,null,null,null,58]
[505733,"U.S. LENCOUACQ","DISTRICT LANDES","Libre",null,null,null,null,59]
[505739,"LA JEANNE D ARC DE DAX","DISTRICT LANDES","Libre",null,null,null,null,60]
[505752,"F. C. MARENSIN","DISTRICT LANDES","Libre",null,null,null,null,61]
[505760,"ET.S. EYSINAISE","DISTRICT DE LA GIRONDE","Libre",null,null,null,null,62]
[505766,"KAMBOKO IZARRA","DISTRICT PYRENEES ATLANTIQUES","Libre",null,null,null,null,63]
[505774,"F.C. HAGETMAUTIEN","DISTRICT LANDES","Libre",null,null,null,null,64]
[505788,"LES GENETS D'ANGLET FOOTBALL","DISTRICT PYRENEES ATLANTIQUES","Libre",null,null,null,null,65]
[505811,"PATRONAGE BAZADAIS","DISTRICT DE LA GIRONDE","Libre",null,null,null,null,66]
[505814,"LA BREDE  F.C.","DISTRICT DE LA GIRONDE","Libre",null,null,null,null,67]
[505817,"U.S. BEYCHEVELLE","DISTRICT DE LA GIRONDE","Libre",null,null,null,null,68]
[505837,"AVT G. JEANNE D'ARC CAUDERAN","DISTRICT DE LA GIRONDE","Libre",null,null,null,null,69]
[505841,"S.U. AGENAIS","DISTRICT LOT ET GARONNE","Libre",null,null,null,null,70]
[505843,"U.S. ST MICHEL ARUDY","DISTRICT PYRENEES ATLANTIQUES","Libre",null,null,null,null,71]
[505848,"A.S. CASTILLONNES CAHUZAC LALAND","DISTRICT LOT ET GARONNE","Libre",null,null,null,null,72]
[505858,"SP.C. MONSEGURAIS","DISTRICT DE LA GIRONDE","Libre",null,null,null,null,73]
[505862,"LA JEANNE D'ARC DE BEARN PAU","DISTRICT PYRENEES ATLANTIQUES","Libre",null,null,null,null,74]
[505875,"U.S. DE L'ARMAGNAC","DISTRICT LANDES","Libre",null,null,null,null,75]
[505876,"U. JURANCONNAISE","DISTRICT PYRENEES ATLANTIQUES","Libre",null,null,null,null,76]
[506101,"EL. BEARNAIS D'ORTHEZ","DISTRICT PYRENEES ATLANTIQUES","Libre",null,null,null,null,77]
[506296,"A.S. FACTURE BIGANOS","DISTRICT DE LA GIRONDE","Libre",null,null,null,null,78]
[506926,"J.S. D'ANGOULEME","DISTRICT DE LA  CHARENTE","Libre",null,null,null,null,79]
[506927,"U.S. AULNAY DE SAINTONGE","DISTRICT CHARENTE MARITIME","Libre",null,null,null,null,80]
[506929,"A.S. MONTGUYONNAIS","DISTRICT CHARENTE MARITIME","Libre",null,null,null,null,81]
[506930,"U.S. COUHE VERAC","DISTRICT DE LA VIENNE","Libre",null,null,null,null,82]
[506935,"CERC.O. CERIZAY","DISTRICT DES DEUX-SEVRES","Libre",null,null,null,null,83]
[506939,"A.S. AIGRE","DISTRICT DE LA  CHARENTE","Libre",null,null,null,null,84]
[506940,"C.O. LA COURONNE","DISTRICT DE LA  CHARENTE","Libre",null,null,null,null,85]
[506942,"C.A. BRANTOMOIS","DISTRICT FOOT DORDOGNE-PERIGORD","Libre",null,null,null,null,86]
[506952,"J.S. MAGNAC S/TOUVRE","DISTRICT DE LA  CHARENTE","Libre",null,null,null,null,87]
[506963,"C.S. NAINTRE","DISTRICT DE LA VIENNE","Libre",null,null,null,null,88]
[506967,"COQS ROUGES MANSLE","DISTRICT DE LA  CHARENTE","Libre",null,null,null,null,89]
[506978,"CHAMOIS NIORTAIS F.C.","DISTRICT DES DEUX-SEVRES","Libre",null,null,null,null,90]
[506980,"ET.S. AIGLONS BRIVE","DISTRICT DE LA CORREZE","Libre",null,null,null,null,91]
[506983,"C.A. NEUVILLE","DISTRICT DE LA VIENNE","Libre",null,null,null,null,92]
[506990,"U.S. BAIGNES","DISTRICT DE LA  CHARENTE","Libre",null,null,null,null,93]
[507002,"LA LIGUGEENNE","DISTRICT DE LA VIENNE","Libre",null,null,null,null,94]
[507008,"THOUARS FOOT 79","DISTRICT DES DEUX-SEVRES","Libre",null,null,null,null,95]
[507009,"U.S. LEZAY","DISTRICT DES DEUX-SEVRES","Libre",null,null,null,null,96]
[507019,"U.S. PONT L'ABBE D'ARNOULT","DISTRICT CHARENTE MARITIME","Libre",null,null,null,null,97]
[507024,"REV. DE LOULAY","DISTRICT CHARENTE MARITIME","Libre",null,null,null,null,98]
[507025,"LA THIBERIENNE","DISTRICT FOOT DORDOGNE-PERIGORD","Libre",null,null,null,null,99]
[507029,"U.S. CHAUVIGNY","DISTRICT DE LA VIENNE","Libre",null,null,null,null,100]
[507031,"U.S.AM. MONTBRON","DISTRICT DE LA  CHARENTE","Libre",null,null,null,null,101]
[507034,"U.S. FORGES D'AUNIS","DISTRICT CHARENTE MARITIME","Libre",null,null,null,null,102]
[507038,"U.ET.S. MONTMORILLON","DISTRICT DE LA VIENNE","Libre",null,null,null,null,103]
[507041,"U.S. VIVONNE F.","DISTRICT DE LA VIENNE","Libre",null,null,null,null,104]
[507045,"C.S. ST ANGEAU","DISTRICT DE LA  CHARENTE","Libre",null,null,null,null,105]
[507048,"C.S. BOUSSAC","DISTRICT DE LA CREUSE","Libre",null,null,null,null,106]
[507049,"S.C. VOUZAILLES","DISTRICT DE LA VIENNE","Libre",null,null,null,null,107]
[507050,"ENT.S. BENEVENT MARSAC","DISTRICT DE LA CREUSE","Libre",null,null,null,null,108]
[507062,"U.S. MELUSINE LUSIGNAN","DISTRICT DE LA VIENNE","Libre",null,null,null,null,109]
[507070,"U.S. SAUJON","DISTRICT CHARENTE MARITIME","Libre",null,null,null,null,110]
[507080,"F.C. ROUILLE","DISTRICT DE LA VIENNE","Libre",null,null,null,null,111]
[507081,"C.S. ST MICHEL S/CHARENTE","DISTRICT DE LA  CHARENTE","Libre",null,null,null,null,112]
[507093,"STE S. SILLARS","DISTRICT DE LA VIENNE","Libre",null,null,null,null,113]
[507095,"AVENIR AUTIZE","DISTRICT DES DEUX-SEVRES","Libre",null,null,null,null,114]
[507098,"JARNAC S.","DISTRICT DE LA  CHARENTE","Libre",null,null,null,null,115]
[507113,"A.S. PANAZOL","DISTRICT HAUTE-VIENNE","Libre",null,null,null,null,116]
[507145,"F.C. BRESSUIRE","DISTRICT DES DEUX-SEVRES","Libre",null,null,null,null,117]
[507151,"U.S.FRATERNELLE PAMPROUX","DISTRICT DES DEUX-SEVRES","Libre",null,null,null,null,118]
[507153,"ESP.S. MONTIGNACOISE","DISTRICT FOOT DORDOGNE-PERIGORD","Libre",null,null,null,null,119]
[507163,"F.C. AUBETERRE","DISTRICT DE LA  CHARENTE","Libre",null,null,null,null,120]
[507168,"U.S. CHAMPAGNE MOUTON","DISTRICT DE LA  CHARENTE","Libre",null,null,null,null,121]
[507176,"S.A. SOUCHEEN","DISTRICT DES DEUX-SEVRES","Libre",null,null,null,null,122]
[507191,"F.C. SMARVES 1936","DISTRICT DE LA VIENNE","Libre",null,null,null,null,123]
[507200,"ET.S. BOULAZAC","DISTRICT FOOT DORDOGNE-PERIGORD","Libre",null,null,null,null,124]
[507207,"AM.J. MONTMOREAU","DISTRICT DE LA  CHARENTE","Libre",null,null,null,null,125]
[507210,"A.S. EYMOUTIERS","DISTRICT HAUTE-VIENNE","Libre",null,null,null,null,126]
[507212,"A.S. PERIGNE","DISTRICT DES DEUX-SEVRES","Libre",null,null,null,null,127]
[507218,"U.S. SANXAY","DISTRICT DE LA VIENNE","Libre",null,null,null,null,128]
[507242,"U.S. ST MAIGRIN","DISTRICT CHARENTE MARITIME","Libre",null,null,null,null,129]
[507255,"C.A. ST SAVIN ST GERMAIN","DISTRICT DE LA VIENNE","Libre",null,null,null,null,130]
[507258,"U.S. PONS","DISTRICT CHARENTE MARITIME","Libre",null,null,null,null,131]
[507272,"AM.S. COZES","DISTRICT CHARENTE MARITIME","Libre",null,null,null,null,132]
[507287,"ET.S. BLANZAC","DISTRICT DE LA  CHARENTE","Libre",null,null,null,null,133]
[507302,"U.S. ALERTE ST AIGULIN","DISTRICT CHARENTE MARITIME","Libre",null,null,null,null,134]
[507328,"F.C. CHARENTAIS ISLE D'ESPAGNAC","DISTRICT DE LA  CHARENTE","Libre",null,null,null,null,135]
[507340,"AM.S. COULONGES THOUARSAIS","DISTRICT DES DEUX-SEVRES","Libre",null,null,null,null,136]
[507342,"S.C. MOUTHIERS","DISTRICT DE LA  CHARENTE","Libre",null,null,null,null,137]
[507356,"ET.S. ROMAINE","DISTRICT DES DEUX-SEVRES","Libre",null,null,null,null,138]
[507376,"F.C. NERSAC","DISTRICT DE LA  CHARENTE","Libre",null,null,null,null,139]
[507422,"S.A. MONCOUTANT","DISTRICT DES DEUX-SEVRES","Libre",null,null,null,null,140]
[507434,"S.C. VERRIERES","DISTRICT DE LA VIENNE","Libre",null,null,null,null,141]
[507445,"LA PATRIOTE DE ST SAVINIEN","DISTRICT CHARENTE MARITIME","Libre",null,null,null,null,142]
[507493,"SP. A. MAUZE-RIGNE","DISTRICT DES DEUX-SEVRES","Libre",null,null,null,null,143]
[507545,"U.S.A. VERDILLE","DISTRICT DE LA  CHARENTE","Libre",null,null,null,null,144]
[507564,"U.S. MIGNE AUXANCES","DISTRICT DE LA VIENNE","Libre",null,null,null,null,145]
[507623,"TREFLE SP. REAUX","DISTRICT CHARENTE MARITIME","Libre",null,null,null,null,146]
[507628,"ENT.S. STE MARIE DE RE","DISTRICT CHARENTE MARITIME","Libre",null,null,null,null,147]
[507662,"AM.S. COULON","DISTRICT DES DEUX-SEVRES","Libre",null,null,null,null,148]
[507707,"U.S. ITEUIL","DISTRICT DE LA VIENNE","Libre",null,null,null,null,149]
[507793,"ASPTT POITIERS","DISTRICT DE LA VIENNE","Libre",null,null,null,null,150]
[507794,"ET.S. FLEAC","DISTRICT DE LA  CHARENTE","Libre",null,null,null,null,151]
[507801,"F.C. DE CIEUX VAULRY","DISTRICT HAUTE-VIENNE","Libre",null,null,null,null,152]
[507804,"F.C. OCEAN DE BOIS EN RE","DISTRICT CHARENTE MARITIME","Libre",null,null,null,null,153]
[507805,"CERC.A. EGLETONS","DISTRICT DE LA CORREZE","Libre",null,null,null,null,154]
[507850,"SAINT PALAIS SPORT FOOTBALL","DISTRICT CHARENTE MARITIME","Libre",null,null,null,null,155]
[507856,"ET.S. LHOMMAIZE","DISTRICT DE LA VIENNE","Libre",null,null,null,null,156]
[507859,"ENT.S. AUNISIENNE D'AYTRE","DISTRICT CHARENTE MARITIME","Libre",null,null,null,null,157]
[507944,"ASPTT LIMOGES","DISTRICT HAUTE-VIENNE","Libre",null,null,null,null,158]
[507946,"SECTION A. LE PALAIS S/VIENNE","DISTRICT HAUTE-VIENNE","Libre",null,null,null,null,159]
[507984,"AM.S. PLEUMARTIN","DISTRICT DE LA VIENNE","Libre",null,null,null,null,160]
[508799,"S.L. CENON S/VIENNE","DISTRICT DE LA VIENNE","Libre",null,null,null,null,161]
[508800,"FOOTBALL CLUB ATLANTIQUE","DISTRICT CHARENTE MARITIME","Libre",null,null,null,null,162]
[508807,"S.C. CHAMPAGNE ST HILAIRE","DISTRICT DE LA VIENNE","Libre",null,null,null,null,163]
[509184,"AM.S. SOYAUX","DISTRICT DE LA  CHARENTE","Libre",null,null,null,null,164]
[509387,"F.C. ST GERVAIS 3 CLOCHERS","DISTRICT DE LA VIENNE","Libre",null,null,null,null,165]
[509442,"U.S. LORMONT","DISTRICT DE LA GIRONDE","Libre",null,null,null,null,166]
[509500,"A.S. PERSAC","DISTRICT DE LA VIENNE","Libre",null,null,null,null,167]
[509527,"A.S. AMBAZAC","DISTRICT HAUTE-VIENNE","Libre",null,null,null,null,168]
[509539,"A.S. NEXON","DISTRICT HAUTE-VIENNE","Libre",null,null,null,null,169]
[509585,"J.A. ISLE","DISTRICT HAUTE-VIENNE","Libre",null,null,null,null,170]
[509958,"JOIE S. MILLAC","DISTRICT DE LA VIENNE","Libre",null,null,null,null,171]
[509966,"ARTS ET S. NERE","DISTRICT CHARENTE MARITIME","Libre",null,null,null,null,172]
[509974,"A.S. NIEUL","DISTRICT HAUTE-VIENNE","Libre",null,null,null,null,173]
[510334,"U.S. DE GRAND BOURG","DISTRICT DE LA CREUSE","Libre",null,null,null,null,174]
[510560,"U.S. ANAIS","DISTRICT DE LA  CHARENTE","Libre",null,null,null,null,175]
[510601,"U.S. LA CHAPELLE VIVIERS","DISTRICT DE LA VIENNE","Libre",null,null,null,null,176]
[510705,"LA PACIFIQUE LATILLE","DISTRICT DE LA VIENNE","Libre",null,null,null,null,177]
[510978,"AS RETHAISE","DISTRICT CHARENTE MARITIME","Libre",null,null,null,null,178]
[510983,"LA VIOLETTE ATURINE","DISTRICT LANDES","Libre",null,null,null,null,179]
[511182,"U.S. COURLAY","DISTRICT DES DEUX-SEVRES","Libre",null,null,null,null,180]
[511312,"U.S. PRAHECQ","DISTRICT DES DEUX-SEVRES","Libre",null,null,null,null,181]
[511333,"LA JARRIE F.C.","DISTRICT CHARENTE MARITIME","Libre",null,null,null,null,182]
[511335,"U.S. VAYRES","DISTRICT HAUTE-VIENNE","Libre",null,null,null,null,183]
[511449,"U. S. CENON","DISTRICT DE LA GIRONDE","Libre",null,null,null,null,184]
[511552,"F.C. VRINES","DISTRICT DES DEUX-SEVRES","Libre",null,null,null,null,185]
[511566,"F.C. PERIGNY","DISTRICT CHARENTE MARITIME","Libre",null,null,null,null,186]
[511953,"C.A. ST AUBIN LE CLOUD","DISTRICT DES DEUX-SEVRES","Libre",null,null,null,null,187]
[512037,"F.C. FUMEL LIBOS","DISTRICT LOT ET GARONNE","Libre",null,null,null,null,188]
[512044,"C.S. BEAUVOIR S/NIORT","DISTRICT DES DEUX-SEVRES","Libre",null,null,null,null,189]
[512082,"U.S. MARENNAISE","DISTRICT CHARENTE MARITIME","Libre",null,null,null,null,190]
[512102,"U.S. SOLIGNAC LE VIGEN","DISTRICT HAUTE-VIENNE","Libre",null,null,null,null,191]
[512160,"A.S. CLAIX","DISTRICT DE LA  CHARENTE","Libre",null,null,null,null,192]
[512162,"A.S. CHATEAUNEUF NEUVIC","DISTRICT HAUTE-VIENNE","Libre",null,null,null,null,193]
[512240,"F.C. ST BRICE S/VIENNE","DISTRICT HAUTE-VIENNE","Libre",null,null,null,null,194]
[512473,"U.S. PAYROUX","DISTRICT DE LA VIENNE","Libre",null,null,null,null,195]
[512613,"FOY.RUR. MONTEIL","DISTRICT FOOT DORDOGNE-PERIGORD","Libre",null,null,null,null,196]
[512740,"U.S. LA GEMOZE","DISTRICT CHARENTE MARITIME","Libre",null,null,null,null,197]
[512742,"U.S. CHANCELADAISE","DISTRICT FOOT DORDOGNE-PERIGORD","Libre",null,null,null,null,198]
[512943,"AM.S. ST YRIEIX","DISTRICT DE LA  CHARENTE","Libre",null,null,null,null,199]
[513059,"A.S. ST PIERRE DES ECHAUBROGNES","DISTRICT DES DEUX-SEVRES","Libre",null,null,null,null,200]
[513060,"U.S. LES ORMES","DISTRICT DE LA VIENNE","Libre",null,null,null,null,201]
[513065,"U.S. PRESSAC","DISTRICT DE LA VIENNE","Libre",null,null,null,null,202]
[513135,"S.C. ARESIEN","DISTRICT DE LA GIRONDE","Libre",null,null,null,null,203]
[513182,"F.C. DE ST MEDARD EN JALLES","DISTRICT DE LA GIRONDE","Libre",null,null,null,null,204]
[513185,"U.S. VAILLANTE GELOSIENNE","DISTRICT PYRENEES ATLANTIQUES","Libre",null,null,null,null,205]
[513245,"U.S. FELLETIN","DISTRICT DE LA CREUSE","Libre",null,null,null,null,206]
[513286,"C.OM. CHENERAILLES","DISTRICT DE LA CREUSE","Libre",null,null,null,null,207]
[513423,"U.S. COUTRAS","DISTRICT DE LA GIRONDE","Libre",null,null,null,null,208]
[513424,"U.S. MUSSIDAN ST MEDARD","DISTRICT FOOT DORDOGNE-PERIGORD","Libre",null,null,null,null,209]
[513447,"C.A. CHAMBOULIVOIS","DISTRICT DE LA CORREZE","Libre",null,null,null,null,210]
[513462,"F.C. AMBES","DISTRICT DE LA GIRONDE","Libre",null,null,null,null,211]
[513480,"F.C. LOUDUN","DISTRICT DE LA VIENNE","Libre",null,null,null,null,212]
[513509,"U.S.AM. BONNEUIL MATOURS","DISTRICT DE LA VIENNE","Libre",null,null,null,null,213]
[513542,"U.S. AUZANCES","DISTRICT DE LA CREUSE","Libre",null,null,null,null,214]
[513703,"C.A. ST VICTURNIEN","DISTRICT HAUTE-VIENNE","Libre",null,null,null,null,215]
[513790,"ET.S. BONNES","DISTRICT DE LA VIENNE","Libre",null,null,null,null,216]
[513893,"U.S. LE TEMPLE ET LE PORGE","DISTRICT DE LA GIRONDE","Libre",null,null,null,null,217]
[513899,"U.S. VILLENEUVE CHAUVIGNY","DISTRICT DE LA VIENNE","Libre",null,null,null,null,218]
[513945,"ENT.S. LA TRIMOUILLE LIGLET","DISTRICT DE LA VIENNE","Libre",null,null,null,null,219]
[513951,"STE S. STE FEREOLE","DISTRICT DE LA CORREZE","Libre",null,null,null,null,220]
[514041,"LES CROISES DE ST ANDRE BAYONNE","DISTRICT PYRENEES ATLANTIQUES","Libre",null,null,null,null,221]
[514174,"U.AM. VILLOGNON","DISTRICT DE LA  CHARENTE","Libre",null,null,null,null,222]
[514183,"U.S. COUSSAC BONNEVAL","DISTRICT HAUTE-VIENNE","Libre",null,null,null,null,223]
[514247,"ESP.S. ST BENOIT","DISTRICT DE LA VIENNE","Libre",null,null,null,null,224]
[514249,"J.S. NIEUIL L'ESPOIR","DISTRICT DE LA VIENNE","Libre",null,null,null,null,225]
[514354,"ENT.S. EVAUX BUDELIERE","DISTRICT DE LA CREUSE","Libre",null,null,null,null,226]
[514355,"U.A.NIORT ST FLORENT","DISTRICT DES DEUX-SEVRES","Libre",null,null,null,null,227]
[514415,"AM.S. MERPINS","DISTRICT DE LA  CHARENTE","Libre",null,null,null,null,228]
[514425,"U.S. VOUILLE","DISTRICT DE LA VIENNE","Libre",null,null,null,null,229]
[514428,"ET.S. CHAMPNIERS","DISTRICT DE LA  CHARENTE","Libre",null,null,null,null,230]
[514495,"ET. CLEMENTINE D'UZESTE","DISTRICT DE LA GIRONDE","Libre",null,null,null,null,231]
[514527,"U.S. LA JOYEUSE BUSSIERE POITEVI","DISTRICT HAUTE-VIENNE","Libre",null,null,null,null,232]
[514530,"F.C ST CYBARDEAUX","DISTRICT DE LA  CHARENTE","Libre",null,null,null,null,233]
[514535,"C.S. DISSAY","DISTRICT DE LA VIENNE","Libre",null,null,null,null,234]
[514536,"U.S. LEIGNES S/FONTAINE","DISTRICT DE LA VIENNE","Libre",null,null,null,null,235]
[514618,"A.S . DES EGLANTINS D'HENDAYE","DISTRICT PYRENEES ATLANTIQUES","Libre",null,null,null,null,236]
[514619,"MAS A.C.","DISTRICT LOT ET GARONNE","Libre",null,null,null,null,237]
[514648,"E.S. BUXEROLLES","DISTRICT DE LA VIENNE","Libre",null,null,null,null,238]
[514725,"A.S. CAZERIENNE","DISTRICT LANDES","Libre",null,null,null,null,239]
[514726,"J.S. BERSONNAISE","DISTRICT DE LA GIRONDE","Libre",null,null,null,null,240]
[514767,"A.S. VITRAC CORREZE","DISTRICT DE LA CORREZE","Libre",null,null,null,null,241]
[514768,"U.S.A. CONDAT S/VIENNE","DISTRICT HAUTE-VIENNE","Libre",null,null,null,null,242]
[514769,"A.S. LEGRAND LIMOGES","DISTRICT HAUTE-VIENNE","Libre",null,null,null,null,243]
[514831,"F.C. ECUREUILS MERIGNAC ARLAC","DISTRICT DE LA GIRONDE","Libre",null,null,null,null,244]
[514844,"F.C. ST YRIEIX LA PERCHE","DISTRICT HAUTE-VIENNE","Libre",null,null,null,null,245]
[514861,"A.AM.S. ST JULIEN L'ARS","DISTRICT DE LA VIENNE","Libre",null,null,null,null,246]
[514931,"U.S. JAUNAY CLAN","DISTRICT DE LA VIENNE","Libre",null,null,null,null,247]
[514933,"U.S. AVAILLES LIMOUZINE","DISTRICT DE LA VIENNE","Libre",null,null,null,null,248]
[514935,"ESPE.S. BRULAIN","DISTRICT DES DEUX-SEVRES","Libre",null,null,null,null,249]
[515100,"AV.S. AIFFRES","DISTRICT DES DEUX-SEVRES","Libre",null,null,null,null,250]
[515107,"U.S. CHASSENEUIL","DISTRICT DE LA  CHARENTE","Libre",null,null,null,null,251]
[515108,"COQS GAULOIS LIMALONGES","DISTRICT DES DEUX-SEVRES","Libre",null,null,null,null,252]
[515111,"A.S. CHEMINOTS POITIERS BIARD","DISTRICT DE LA VIENNE","Libre",null,null,null,null,253]
[515156,"U.S. BOUSCATAISE","DISTRICT DE LA GIRONDE","Libre",null,null,null,null,254]
[515157,"AM.S. PELLEGRUE","DISTRICT DE LA GIRONDE","Libre",null,null,null,null,255]
[515159,"U.S. BAZEILLAISE","DISTRICT LOT ET GARONNE","Libre",null,null,null,null,256]
[515163,"A.S. CHAZELLES","DISTRICT DE LA  CHARENTE","Libre",null,null,null,null,257]
[515295,"U.S. BERUGES","DISTRICT DE LA VIENNE","Libre",null,null,null,null,258]
[515296,"BEL AIR ROCS O.C. POITIERS","DISTRICT DE LA VIENNE","Libre",null,null,null,null,259]
[515333,"LA JOYEUSE ST SULPICE ET CAMEYRA","DISTRICT DE LA GIRONDE","Libre",null,null,null,null,260]
[515470,"ENT.S. SURGERES","DISTRICT CHARENTE MARITIME","Libre",null,null,null,null,261]
[515617,"AM. S. DE BUSSIERE DUNOISE","DISTRICT DE LA CREUSE","Libre",null,null,null,null,262]
[515622,"COULOMBIERS SP.","DISTRICT DE LA VIENNE","Libre",null,null,null,null,263]
[515624,"LE REVEIL DE MONCONTOUR","DISTRICT DE LA VIENNE","Libre",null,null,null,null,264]
[515625,"C.O. ST GENEST","DISTRICT DE LA VIENNE","Libre",null,null,null,null,265]
[515733,"AV.S. ECHIRE ST GELAIS","DISTRICT DES DEUX-SEVRES","Libre",null,null,null,null,266]
[515740,"E.S. MONTIGNAC","DISTRICT DE LA  CHARENTE","Libre",null,null,null,null,267]
[515829,"LA JOYEUSE DE SAVIGNAC","DISTRICT DE LA GIRONDE","Libre",null,null,null,null,268]
[515831,"ET.S. MONTOISE","DISTRICT LANDES","Libre",null,null,null,null,269]
[515875,"AM.S. CHARRON","DISTRICT DE LA CREUSE","Libre",null,null,null,null,270]
[515876,"U. STES S. MERINCHAL","DISTRICT DE LA CREUSE","Libre",null,null,null,null,271]
[516065,"A.S. BLANZAY","DISTRICT DE LA VIENNE","Libre",null,null,null,null,272]
[516120,"U.S. LATHUS","DISTRICT DE LA VIENNE","Libre",null,null,null,null,273]
[516397,"ET.S. CLUSSAIS LA POMMERAIE","DISTRICT DES DEUX-SEVRES","Libre",null,null,null,null,274]
[516560,"TOUR S. MERLES BLANCS 88 VERTEIL","DISTRICT FOOT DORDOGNE-PERIGORD","Libre",null,null,null,null,275]
[516939,"U.S. LA ROCHE POSAY","DISTRICT DE LA VIENNE","Libre",null,null,null,null,276]
[516946,"C.O. COULOUNIEIX CHAMIERS","DISTRICT FOOT DORDOGNE-PERIGORD","Libre",null,null,null,null,277]
[516948,"J.S. CORGNAC","DISTRICT FOOT DORDOGNE-PERIGORD","Libre",null,null,null,null,278]
[517134,"F.C. ROULLET","DISTRICT DE LA  CHARENTE","Libre",null,null,null,null,279]
[517135,"J.S. SIREUIL","DISTRICT DE LA  CHARENTE","Libre",null,null,null,null,280]
[517196,"U.S. ST VAURY HOPITAUX VALETTE","DISTRICT DE LA CREUSE","Libre",null,null,null,null,281]
[517260,"CROISSANT D'OR LUXE","DISTRICT DE LA  CHARENTE","Libre",null,null,null,null,282]
[517410,"S.C. CHAMPAGNAT","DISTRICT DE LA CREUSE","Libre",null,null,null,null,283]
[517413,"U.S. PEXINOISE NIORT","DISTRICT DES DEUX-SEVRES","Libre",null,null,null,null,284]
[517415,"ENT.S. DES TROIS CITES POITIERS","DISTRICT DE LA VIENNE","Libre",null,null,null,null,285]
[517419,"U.S. ST LEONARD DE NOBLAT","DISTRICT HAUTE-VIENNE","Libre",null,null,null,null,286]
[517420,"U.S. LAMOTHE MONGAUZY","DISTRICT DE LA GIRONDE","Libre",null,null,null,null,287]
[517421,"E.S. THENACAISE","DISTRICT CHARENTE MARITIME","Libre",null,null,null,null,288]
[517422,"A.S. BEYNAT","DISTRICT DE LA CORREZE","Libre",null,null,null,null,289]
[517423,"C.A. PEYRAT LA NONIERE","DISTRICT DE LA CREUSE","Libre",null,null,null,null,290]
[517424,"A.S. SOUMANS","DISTRICT DE LA CREUSE","Libre",null,null,null,null,291]
[517425,"F.C. CHICHE","DISTRICT DES DEUX-SEVRES","Libre",null,null,null,null,292]
[517569,"A.S. ARTIX","DISTRICT PYRENEES ATLANTIQUES","Libre",null,null,null,null,293]
[517603,"AMIS DE MAGNAC LAVAL","DISTRICT HAUTE-VIENNE","Libre",null,null,null,null,294]
[517632,"PARDIES O.","DISTRICT PYRENEES ATLANTIQUES","Libre",null,null,null,null,295]
[517674,"ESPO.S. ARDIN","DISTRICT DES DEUX-SEVRES","Libre",null,null,null,null,296]
[517739,"AM.S. DE MONS","DISTRICT DE LA  CHARENTE","Libre",null,null,null,null,297]
[517743,"U.S. LA CRECHE","DISTRICT DES DEUX-SEVRES","Libre",null,null,null,null,298]
[517744,"AMITIE S. DE CLAZAY","DISTRICT DES DEUX-SEVRES","Libre",null,null,null,null,299]
[517749,"U.S. MIREBEAU","DISTRICT DE LA VIENNE","Libre",null,null,null,null,300]
[517971,"C.S. BUSSAC FORET","DISTRICT CHARENTE MARITIME","Libre",null,null,null,null,301]
[517973,"ESPE.S. SOURSAC","DISTRICT DE LA CORREZE","Libre",null,null,null,null,302]
[517977,"LES AIGLONS RAZACOIS","DISTRICT FOOT DORDOGNE-PERIGORD","Libre",null,null,null,null,303]
[517978,"C.A. RIBERACOIS","DISTRICT FOOT DORDOGNE-PERIGORD","Libre",null,null,null,null,304]
[517984,"J.S. BASSEAU ANGOULEME","DISTRICT DE LA  CHARENTE","Libre",null,null,null,null,305]
[517994,"O.C. ROCHECHOUART","DISTRICT HAUTE-VIENNE","Libre",null,null,null,null,306]
[518025,"U.S. ST DENIS DE PILE","DISTRICT DE LA GIRONDE","Libre",null,null,null,null,307]
[518030,"ENT.S. VERDELAIS ST MAIXANT SEME","DISTRICT DE LA GIRONDE","Libre",null,null,null,null,308]
[518032,"AV. MOURENXOIS","DISTRICT PYRENEES ATLANTIQUES","Libre",null,null,null,null,309]
[518036,"AM.S. TAILLANAISE","DISTRICT DE LA GIRONDE","Libre",null,null,null,null,310]
[518051,"C.S. LEROY ANGOULEME","DISTRICT DE LA  CHARENTE","Libre",null,null,null,null,311]
[518053,"U.S. TOCANE ST APRE","DISTRICT FOOT DORDOGNE-PERIGORD","Libre",null,null,null,null,312]
[518160,"C.AM. MORCENAIS","DISTRICT LANDES","Libre",null,null,null,null,313]
[518161,"TONNEINS F. C.","DISTRICT LOT ET GARONNE","Libre",null,null,null,null,314]
[518323,"STE EDUC.POP. ST ROMANS LES MELL","DISTRICT DES DEUX-SEVRES","Libre",null,null,null,null,315]
[518443,"C.S. AMAILLOUX","DISTRICT DES DEUX-SEVRES","Libre",null,null,null,null,316]
[518445,"ET.S. ST AMAND S/SEVRE","DISTRICT DES DEUX-SEVRES","Libre",null,null,null,null,317]
[518454,"U.S. LE DORAT","DISTRICT HAUTE-VIENNE","Libre",null,null,null,null,318]
[518559,"U.S. MEURSAC","DISTRICT CHARENTE MARITIME","Libre",null,null,null,null,319]
[518561,"C.A. MEYMACOIS","DISTRICT DE LA CORREZE","Libre",null,null,null,null,320]
[518567,"O.S.C. FORS","DISTRICT DES DEUX-SEVRES","Libre",null,null,null,null,321]
[518573,"ESPE. AVAILLES EN CHATELLERAULT","DISTRICT DE LA VIENNE","Libre",null,null,null,null,322]
[518679,"VAILLANTE S. CAUDROT","DISTRICT DE LA GIRONDE","Libre",null,null,null,null,323]
[518683,"LES ROUGES ST JEAN DE LIBOURNE","DISTRICT DE LA GIRONDE","Libre",null,null,null,null,324]
[518821,"ST. NAVARRAIS","DISTRICT PYRENEES ATLANTIQUES","Libre",null,null,null,null,325]
[518841,"AM.S. POUILLE TERCE","DISTRICT DE LA VIENNE","Libre",null,null,null,null,326]
[518844,"U.S. CISSE","DISTRICT DE LA VIENNE","Libre",null,null,null,null,327]
[518845,"C.A. EYGURANDE MERLINES","DISTRICT DE LA CORREZE","Libre",null,null,null,null,328]
[518856,"F.C. MARMANDE 47","DISTRICT LOT ET GARONNE","Libre",null,null,null,null,329]
[519009,"A.S. VOUNEUIL S/VIENNE","DISTRICT DE LA VIENNE","Libre",null,null,null,null,330]
[519010,"U.S. NALLIERS","DISTRICT DE LA VIENNE","Libre",null,null,null,null,331]
[519012,"U.S. FENIOUX","DISTRICT DES DEUX-SEVRES","Libre",null,null,null,null,332]
[519069,"C.A. ST MEME LES CARRIERES","DISTRICT DE LA  CHARENTE","Libre",null,null,null,null,333]
[519149,"J.S. CHAMBONNAISE","DISTRICT DE LA CREUSE","Libre",null,null,null,null,334]
[519151,"U.S. LA FERRIERE AIROUX","DISTRICT DE LA VIENNE","Libre",null,null,null,null,335]
[519229,"U.S. NIZANNAISE","DISTRICT DE LA GIRONDE","Libre",null,null,null,null,336]
[519248,"AM.S. VOEUIL ET GIGET","DISTRICT DE LA  CHARENTE","Libre",null,null,null,null,337]
[519348,"ENT.S. DU PLATEAU","DISTRICT DE LA CORREZE","Libre",null,null,null,null,338]
[519360,"BISCARROSSE O.","DISTRICT LANDES","Libre",null,null,null,null,339]
[519553,"U.S. DE CHENIERS","DISTRICT DE LA CREUSE","Libre",null,null,null,null,340]
[519555,"F.C. FLEURE","DISTRICT DE LA VIENNE","Libre",null,null,null,null,341]
[519556,"F.C. MONTAMISE","DISTRICT DE LA VIENNE","Libre",null,null,null,null,342]
[519677,"A.S. LADIGNAC LE LONG","DISTRICT HAUTE-VIENNE","Libre",null,null,null,null,343]
[519681,"A.S. CIVAUX","DISTRICT DE LA VIENNE","Libre",null,null,null,null,344]
[519713,"U.S. FARGUAISE","DISTRICT DE LA GIRONDE","Libre",null,null,null,null,345]
[519775,"ENT.S. USSEL","DISTRICT DE LA CORREZE","Libre",null,null,null,null,346]
[519800,"U.S. GONTAUDAISE","DISTRICT LOT ET GARONNE","Libre",null,null,null,null,347]
[519848,"U.S. NANTIAT","DISTRICT HAUTE-VIENNE","Libre",null,null,null,null,348]
[519918,"F.C. ARGENTACOIS","DISTRICT DE LA CORREZE","Libre",null,null,null,null,349]
[519922,"U.S. JUMILHACOISE","DISTRICT FOOT DORDOGNE-PERIGORD","Libre",null,null,null,null,350]
[519925,"AM.S. INGRANDES","DISTRICT DE LA VIENNE","Libre",null,null,null,null,351]
[519926,"J.S. LAFARGE LIMOGES","DISTRICT HAUTE-VIENNE","Libre",null,null,null,null,352]
[520020,"F.C. SAUVIAT S/VIGE","DISTRICT HAUTE-VIENNE","Libre",null,null,null,null,353]
[520021,"ESPE.C. ADRIERS","DISTRICT DE LA VIENNE","Libre",null,null,null,null,354]
[520022,"U.S. D'ABZAC","DISTRICT DE LA  CHARENTE","Libre",null,null,null,null,355]
[520024,"A.S. SEILHACOISE","DISTRICT DE LA CORREZE","Libre",null,null,null,null,356]
[520027,"A.S. JOUHET PINDRAY","DISTRICT DE LA VIENNE","Libre",null,null,null,null,357]
[520125,"ENT.S. DE LA HAUTE LANDE","DISTRICT LANDES","Libre",null,null,null,null,358]
[520137,"U.S. LA ROCHE L'ABEILLE","DISTRICT HAUTE-VIENNE","Libre",null,null,null,null,359]
[520162,"O.L. ST LIGUAIRE NIORT","DISTRICT DES DEUX-SEVRES","Libre",null,null,null,null,360]
[520163,"U.S. BRION","DISTRICT DES DEUX-SEVRES","Libre",null,null,null,null,361]
[520164,"S.C. ROUGNATOIS","DISTRICT DE LA CREUSE","Libre",null,null,null,null,362]
[520169,"C.A. RILHAC RANCON","DISTRICT HAUTE-VIENNE","Libre",null,null,null,null,363]
[520170,"A.S. MEYSSACOISE DE F.","DISTRICT DE LA CORREZE","Libre",null,null,null,null,364]
[520177,"C.S. FEYTIAT","DISTRICT HAUTE-VIENNE","Libre",null,null,null,null,365]
[520242,"ST SAUD F.","DISTRICT FOOT DORDOGNE-PERIGORD","Libre",null,null,null,null,366]
[520261,"A.S. LE HAILLAN","DISTRICT DE LA GIRONDE","Libre",null,null,null,null,367]
[520359,"AVIRON BOUTONNAIS","DISTRICT CHARENTE MARITIME","Libre",null,null,null,null,368]
[520360,"ST. VOUILLE","DISTRICT DES DEUX-SEVRES","Libre",null,null,null,null,369]
[520376,"J.S. ABZACAISE","DISTRICT DE LA GIRONDE","Libre",null,null,null,null,370]
[520399,"ET.S.B. PAIZAY LE TORT","DISTRICT DES DEUX-SEVRES","Libre",null,null,null,null,371]
[520406,"A.S. BUJALEUF","DISTRICT HAUTE-VIENNE","Libre",null,null,null,null,372]
[520476,"U.S. ORADOUR S/GLANE","DISTRICT HAUTE-VIENNE","Libre",null,null,null,null,373]
[520477,"R.S.C. ST PRIEST TAURION","DISTRICT HAUTE-VIENNE","Libre",null,null,null,null,374]
[520480,"ENT.S. BEAUMONT ST CYR","DISTRICT DE LA VIENNE","Libre",null,null,null,null,375]
[520481,"U.S.A. DE LEPAUD","DISTRICT DE LA CREUSE","Libre",null,null,null,null,376]
[520570,"ESPE. TERVES ES","DISTRICT DES DEUX-SEVRES","Libre",null,null,null,null,377]
[520572,"C.S. ST GEORGES D'OLERON","DISTRICT CHARENTE MARITIME","Libre",null,null,null,null,378]
[520574,"F.C. MONTS S/GUESNES","DISTRICT DE LA VIENNE","Libre",null,null,null,null,379]
[520698,"U.S. LUDONAISE","DISTRICT DE LA GIRONDE","Libre",null,null,null,null,380]
[520699,"A.S.ESPE. OEYRELUY","DISTRICT LANDES","Libre",null,null,null,null,381]
[520715,"A.J. SAULGE","DISTRICT DE LA VIENNE","Libre",null,null,null,null,382]
[520717,"U.S. PLAISANCE","DISTRICT DE LA VIENNE","Libre",null,null,null,null,383]
[520724,"C.A. BRIGNACOIS","DISTRICT DE LA CORREZE","Libre",null,null,null,null,384]
[520780,"U.A. SABRAISE","DISTRICT LANDES","Libre",null,null,null,null,385]
[520819,"A. ST LAURENT BILLERE","DISTRICT PYRENEES ATLANTIQUES","Libre",null,null,null,null,386]
[520824,"S.C. FLAYAT","DISTRICT DE LA CREUSE","Libre",null,null,null,null,387]
[520874,"A.S. ST AUBIN DE MEDOC","DISTRICT DE LA GIRONDE","Libre",null,null,null,null,388]
[520962,"U.S. BRILLAC","DISTRICT DE LA  CHARENTE","Libre",null,null,null,null,389]
[520964,"S.C. VERNEUIL S/VIENNE","DISTRICT HAUTE-VIENNE","Libre",null,null,null,null,390]
[520966,"A.S. AIGUILLE BOSMIE CHARROUX","DISTRICT HAUTE-VIENNE","Libre",null,null,null,null,391]
[520967,"F.C. SAVIGNE","DISTRICT DE LA VIENNE","Libre",null,null,null,null,392]
[520968,"A.S. ST SAVIOL","DISTRICT DE LA VIENNE","Libre",null,null,null,null,393]
[520969,"AM.S. ST LEGER MONTBRILLAIS","DISTRICT DE LA VIENNE","Libre",null,null,null,null,394]
[520975,"F.C. MAZERAY","DISTRICT CHARENTE MARITIME","Libre",null,null,null,null,395]
[520976,"A.S. ST DIZIER LEYRENNE","DISTRICT DE LA CREUSE","Libre",null,null,null,null,396]
[520983,"FOOT SUD 87","DISTRICT HAUTE-VIENNE","Libre",null,null,null,null,397]
[521082,"U.S. LES TROIS MOUTIERS","DISTRICT DE LA VIENNE","Libre",null,null,null,null,398]
[521083,"ALOUETTE FOY.C. RIV.GAUCH.LIMOGE","DISTRICT HAUTE-VIENNE","Libre",null,null,null,null,399]
[521180,"U.S. DONZENACOISE","DISTRICT DE LA CORREZE","Libre",null,null,null,null,400]
[521250,"CAZAUX O.","DISTRICT DE LA GIRONDE","Libre",null,null,null,null,401]
[521254,"PAREMPUYRE F. C.","DISTRICT DE LA GIRONDE","Libre",null,null,null,null,402]
[521258,"REV. S. ST SERNIN","DISTRICT LOT ET GARONNE","Libre",null,null,null,null,403]
[521259,"STE LA JEUNESSE D'YVRAC","DISTRICT DE LA GIRONDE","Libre",null,null,null,null,404]
[521318,"S.C. SARDENTAIS","DISTRICT DE LA CREUSE","Libre",null,null,null,null,405]
[521505,"A.S. ST JUST LE MARTEL","DISTRICT HAUTE-VIENNE","Libre",null,null,null,null,406]
[521556,"F.C. BARPAIS","DISTRICT DE LA GIRONDE","Libre",null,null,null,null,407]
[521593,"A.S. LUSSAT","DISTRICT DE LA CREUSE","Libre",null,null,null,null,408]
[521736,"AM.RUR. CHERVEUX","DISTRICT DES DEUX-SEVRES","Libre",null,null,null,null,409]
[521741,"U.S. VARSOISE","DISTRICT DE LA CORREZE","Libre",null,null,null,null,410]
[521750,"L.ASSOCIES GENTE","DISTRICT DE LA  CHARENTE","Libre",null,null,null,null,411]
[521751,"A.M.S. DE STE NEOMAYE ROMANS","DISTRICT DES DEUX-SEVRES","Libre",null,null,null,null,412]
[521755,"AM.S. MIGNALOUX BEAUVOIR","DISTRICT DE LA VIENNE","Libre",null,null,null,null,413]
[521758,"AM.S. BREUILLET","DISTRICT CHARENTE MARITIME","Libre",null,null,null,null,414]
[521894,"U.S. LAGORCE","DISTRICT DE LA GIRONDE","Libre",null,null,null,null,415]
[521895,"U.S.C. LEOGNAN","DISTRICT DE LA GIRONDE","Libre",null,null,null,null,416]
[521896,"A.S. MAURRINOISE","DISTRICT LANDES","Libre",null,null,null,null,417]
[521898,"STADE PAUILLACAIS F. C.","DISTRICT DE LA GIRONDE","Libre",null,null,null,null,418]
[521899,"F. C. PESSAC ALOUETTE","DISTRICT DE LA GIRONDE","Libre",null,null,null,null,419]
[521934,"F.C. NACHAMPS","DISTRICT CHARENTE MARITIME","Libre",null,null,null,null,420]
[521936,"F. C. PAYS DE MAREUIL","DISTRICT FOOT DORDOGNE-PERIGORD","Libre",null,null,null,null,421]
[521937,"A.S. CHAMBERTOISE","DISTRICT DE LA CORREZE","Libre",null,null,null,null,422]
[521941,"ESPE.S. LAPLEAUCOISE","DISTRICT DE LA CORREZE","Libre",null,null,null,null,423]
[521943,"U.S. LA CHAPELLE BATON","DISTRICT DE LA VIENNE","Libre",null,null,null,null,424]
[522085,"AM.S. ARCHIGNY","DISTRICT DE LA VIENNE","Libre",null,null,null,null,425]
[522087,"C.S. L'ESPINASSE CHAUVIGNY","DISTRICT DE LA VIENNE","Libre",null,null,null,null,426]
[522163,"LIMOGES LANDOUGE F.","DISTRICT HAUTE-VIENNE","Libre",null,null,null,null,427]
[522182,"F.C. FONTAINE LE COMTE","DISTRICT DE LA VIENNE","Libre",null,null,null,null,428]
[522213,"C.A. CELLES","DISTRICT FOOT DORDOGNE-PERIGORD","Libre",null,null,null,null,429]
[522232,"U.S. VRERE ST LEGER DE MONTBRUN","DISTRICT DES DEUX-SEVRES","Libre",null,null,null,null,430]
[522239,"ENT. BOE BON ENCONTRE","DISTRICT LOT ET GARONNE","Libre",null,null,null,null,431]
[522240,"F.C. CASTELJALOUX","DISTRICT LOT ET GARONNE","Libre",null,null,null,null,432]
[522242,"A.S. LIMOGES ROUSSILLON","DISTRICT HAUTE-VIENNE","Libre",null,null,null,null,433]
[522271,"A.S. LIVRADAISE","DISTRICT LOT ET GARONNE","Libre",null,null,null,null,434]
[522385,"CTE S. PEYRILHAC","DISTRICT HAUTE-VIENNE","Libre",null,null,null,null,435]
[522387,"ENT.S. AUNAC","DISTRICT DE LA  CHARENTE","Libre",null,null,null,null,436]
[522389,"ET.S. LESTERPS","DISTRICT DE LA  CHARENTE","Libre",null,null,null,null,437]
[522518,"A.S. CHAMPIGNY LE ROCHEREAU","DISTRICT DE LA VIENNE","Libre",null,null,null,null,438]
[522523,"A.S. ST DENIS DU PIN","DISTRICT CHARENTE MARITIME","Libre",null,null,null,null,439]
[522527,"AM.S. COLOMBIERS","DISTRICT DE LA VIENNE","Libre",null,null,null,null,440]
[522607,"AM.S. EXOUDUN","DISTRICT DES DEUX-SEVRES","Libre",null,null,null,null,441]
[522774,"BOISSEUIL F.C.","DISTRICT HAUTE-VIENNE","Libre",null,null,null,null,442]
[522777,"AM.S. MONTHOIRON","DISTRICT DE LA VIENNE","Libre",null,null,null,null,443]
[522779,"FOY.RUR. DE BELLEGARDE","DISTRICT DE LA CREUSE","Libre",null,null,null,null,444]
[522783,"A.S. VELLECHES","DISTRICT DE LA VIENNE","Libre",null,null,null,null,445]
[522846,"ST SULPICE J.","DISTRICT DE LA GIRONDE","Libre",null,null,null,null,446]
[522853,"ET.S. USSAC","DISTRICT DE LA CORREZE","Libre",null,null,null,null,447]
[522875,"ARGAGNON S.L.","DISTRICT PYRENEES ATLANTIQUES","Libre",null,null,null,null,448]
[522899,"S.A. MAULEONAIS","DISTRICT PYRENEES ATLANTIQUES","Libre",null,null,null,null,449]
[522930,"STE JEUNESSE D ARTIGUES","DISTRICT DE LA GIRONDE","Libre",null,null,null,null,450]
[523004,"AM.LAIQ. GUIMPS","DISTRICT DE LA  CHARENTE","Libre",null,null,null,null,451]
[523005,"U.S. FRATERNELLE HAIMS","DISTRICT DE LA VIENNE","Libre",null,null,null,null,452]
[523008,"F.C. ST PRIEST SS/AIXE","DISTRICT HAUTE-VIENNE","Libre",null,null,null,null,453]
[523094,"E.S. NOUAILLE","DISTRICT DE LA VIENNE","Libre",null,null,null,null,454]
[523097,"A.S. DE SALLES D'ANGLES","DISTRICT DE LA  CHARENTE","Libre",null,null,null,null,455]
[523162,"ENT.S. AHUNOISE","DISTRICT DE LA CREUSE","Libre",null,null,null,null,456]
[523163,"U.S.A. COMPREIGNAC","DISTRICT HAUTE-VIENNE","Libre",null,null,null,null,457]
[523176,"U.S. ANTOIGNE","DISTRICT DE LA VIENNE","Libre",null,null,null,null,458]
[523288,"A.S.J. D'ESPELETTE","DISTRICT PYRENEES ATLANTIQUES","Libre",null,null,null,null,459]
[523316,"S.L. DE CHATEAUBERNARD","DISTRICT DE LA  CHARENTE","Libre",null,null,null,null,460]
[523322,"A.S. ST JUNIEN","DISTRICT HAUTE-VIENNE","Libre",null,null,null,null,461]
[523326,"C.S. MONTROL SENARD","DISTRICT HAUTE-VIENNE","Libre",null,null,null,null,462]
[523327,"F.C. ST REMY S/CREUSE","DISTRICT DE LA VIENNE","Libre",null,null,null,null,463]
[523328,"A.S. DE MERCOEUR","DISTRICT DE LA CORREZE","Libre",null,null,null,null,464]
[523443,"ENT.S. BRUGES","DISTRICT DE LA GIRONDE","Libre",null,null,null,null,465]
[523444,"ET.S. CANEJAN","DISTRICT DE LA GIRONDE","Libre",null,null,null,null,466]
[523460,"C.S. TRIZAY","DISTRICT CHARENTE MARITIME","Libre",null,null,null,null,467]
[523461,"F.C. UZERCHE","DISTRICT DE LA CORREZE","Libre",null,null,null,null,468]
[523474,"A.S. LEDEUIX","DISTRICT PYRENEES ATLANTIQUES","Libre",null,null,null,null,469]
[523518,"U.S. LAMBON","DISTRICT DES DEUX-SEVRES","Libre",null,null,null,null,470]
[523527,"U.S. HAUTEFORT","DISTRICT FOOT DORDOGNE-PERIGORD","Libre",null,null,null,null,471]
[523544,"U.S. INTERCOMMUNALE D'EYNESSE","DISTRICT DE LA GIRONDE","Libre",null,null,null,null,472]
[523568,"LES LABOURDINS D'USTARITZ","DISTRICT PYRENEES ATLANTIQUES","Libre",null,null,null,null,473]
[523777,"U.S. BACHELIERE","DISTRICT FOOT DORDOGNE-PERIGORD","Libre",null,null,null,null,474]
[523779,"J.S. MAUTOISE","DISTRICT DE LA CREUSE","Libre",null,null,null,null,475]
[523786,"ET.S. CLUGNAT","DISTRICT DE LA CREUSE","Libre",null,null,null,null,476]
[523898,"A. LES JEUNES D'ABET LAHONTAN","DISTRICT PYRENEES ATLANTIQUES","Libre",null,null,null,null,477]
[523899,"F.C. PETIT PALAIS/PUISSEGUIN","DISTRICT DE LA GIRONDE","Libre",null,null,null,null,478]
[523943,"U.S. VICQ S/GARTEMPE","DISTRICT DE LA VIENNE","Libre",null,null,null,null,479]
[523946,"EV. LE TALLUD","DISTRICT DES DEUX-SEVRES","Libre",null,null,null,null,480]
[523950,"ET.S. CHATEAU LARCHER","DISTRICT DE LA VIENNE","Libre",null,null,null,null,481]
[523951,"A.S. RAZES","DISTRICT HAUTE-VIENNE","Libre",null,null,null,null,482]
[524050,"F.C. CLAIRACAIS","DISTRICT LOT ET GARONNE","Libre",null,null,null,null,483]
[524054,"PRIGONRIEUX F.C.","DISTRICT FOOT DORDOGNE-PERIGORD","Libre",null,null,null,null,484]
[524055,"F.C. SAINTE EULALIE OMNISPORTS","DISTRICT DE LA GIRONDE","Libre",null,null,null,null,485]
[524057,"C.A. CARIGNANAIS","DISTRICT DE LA GIRONDE","Libre",null,null,null,null,486]
[524058,"HASPARREN F.C.","DISTRICT PYRENEES ATLANTIQUES","Libre",null,null,null,null,487]
[524060,"A.S.C. STE SUZANNE","DISTRICT PYRENEES ATLANTIQUES","Libre",null,null,null,null,488]
[524071,"S.A.SOUVIGNE ST MARTIN ST MAIXEN","DISTRICT DES DEUX-SEVRES","Libre",null,null,null,null,489]
[524072,"VARETZ A.C.","DISTRICT DE LA CORREZE","Libre",null,null,null,null,490]
[524114,"A.S. MAZERES UZOS RONTIGNON","DISTRICT PYRENEES ATLANTIQUES","Libre",null,null,null,null,491]
[524118,"U.S. LA PORCHERIE","DISTRICT HAUTE-VIENNE","Libre",null,null,null,null,492]
[524139,"ST PERDON S.","DISTRICT LANDES","Libre",null,null,null,null,493]
[524151,"A.S. ST VIANCE","DISTRICT DE LA CORREZE","Libre",null,null,null,null,494]
[524152,"U.S. DEUX RIVES ARS GIMEUX","DISTRICT DE LA  CHARENTE","Libre",null,null,null,null,495]
[524232,"ENT.S. MAZERES ROAILLAN","DISTRICT DE LA GIRONDE","Libre",null,null,null,null,496]
[524276,"F.C. CHATILLON","DISTRICT DES DEUX-SEVRES","Libre",null,null,null,null,497]
[524278,"A.S. LES BISONS","DISTRICT FOOT DORDOGNE-PERIGORD","Libre",null,null,null,null,498]
[524281,"S.C. SEREILHAC","DISTRICT HAUTE-VIENNE","Libre",null,null,null,null,499]
[524364,"F.C. JARDRES","DISTRICT DE LA VIENNE","Libre",null,null,null,null,500]
[524367,"LES EPIS MONTREM MONTANCEIX","DISTRICT FOOT DORDOGNE-PERIGORD","Libre",null,null,null,null,501]
[524369,"J.S. ROSIEROISE","DISTRICT DE LA CORREZE","Libre",null,null,null,null,502]
[524370,"AM.S. ST CHRISTOPHE","DISTRICT DE LA VIENNE","Libre",null,null,null,null,503]
[524437,"U.S. BROCAS","DISTRICT LANDES","Libre",null,null,null,null,504]
[524438,"F.C. LONS","DISTRICT PYRENEES ATLANTIQUES","Libre",null,null,null,null,505]
[524439,"F.C. ESPAGNOL DE PAU","DISTRICT PYRENEES ATLANTIQUES","Libre",null,null,null,null,506]
[524575,"U.S. AVANTON","DISTRICT DE LA VIENNE","Libre",null,null,null,null,507]
[524576,"F.C. FONTAFIE","DISTRICT DE LA  CHARENTE","Libre",null,null,null,null,508]
[524580,"A.S. SEVRES ANXAUMONT","DISTRICT DE LA VIENNE","Libre",null,null,null,null,509]
[524586,"LA ROCHELLE VILLENEUVE F. C.","DISTRICT CHARENTE MARITIME","Libre",null,null,null,null,510]
[524589,"J.S. SEMUSSACAISE","DISTRICT CHARENTE MARITIME","Libre",null,null,null,null,511]
[524725,"ESPE.S. DES PORTUGAIS","DISTRICT DE LA CORREZE","Libre",null,null,null,null,512]
[524740,"U.S. VERSILLACOISE","DISTRICT DE LA CREUSE","Libre",null,null,null,null,513]
[524976,"A.S. BRIE","DISTRICT DE LA  CHARENTE","Libre",null,null,null,null,514]
[524977,"AM.S. BRUX","DISTRICT DE LA VIENNE","Libre",null,null,null,null,515]
[524978,"C.S. CHATAIN","DISTRICT DE LA VIENNE","Libre",null,null,null,null,516]
[524980,"U.S. DROUX","DISTRICT HAUTE-VIENNE","Libre",null,null,null,null,517]
[524981,"AM.S. FLAVIGNAC","DISTRICT HAUTE-VIENNE","Libre",null,null,null,null,518]
[524982,"A.S. FROMENTAL","DISTRICT HAUTE-VIENNE","Libre",null,null,null,null,519]
[524990,"SP.A. SANILHACOIS","DISTRICT FOOT DORDOGNE-PERIGORD","Libre",null,null,null,null,520]
[524991,"A.S. QUINCAY","DISTRICT DE LA VIENNE","Libre",null,null,null,null,521]
[524994,"ESPE. ST ROBERTOISE","DISTRICT DE LA CORREZE","Libre",null,null,null,null,522]
[524996,"U.S. TAPONNAT","DISTRICT DE LA  CHARENTE","Libre",null,null,null,null,523]
[524999,"U.S. BALZAC","DISTRICT DE LA  CHARENTE","Libre",null,null,null,null,524]
[525003,"U.S. LEIGNE S/USSEAU","DISTRICT DE LA VIENNE","Libre",null,null,null,null,525]
[525006,"A.S. MARITIME DE NIEUL S/MER","DISTRICT CHARENTE MARITIME","Libre",null,null,null,null,526]
[525140,"A.S. ANDILLY","DISTRICT CHARENTE MARITIME","Libre",null,null,null,null,527]
[525141,"U.S. RETAUD","DISTRICT CHARENTE MARITIME","Libre",null,null,null,null,528]
[525144,"A.S. RETERRE FONTANIERES","DISTRICT DE LA CREUSE","Libre",null,null,null,null,529]
[525145,"U.S. ST MARTIN ANGOULEME","DISTRICT DE LA  CHARENTE","Libre",null,null,null,null,530]
[525223,"ENT.S. BLANQUEFORTAISE","DISTRICT DE LA GIRONDE","Libre",null,null,null,null,531]
[525226,"A.S.U. ST JEAN","DISTRICT DE LA GIRONDE","Libre",null,null,null,null,532]
[525228,"S.A. G. CESTAS","DISTRICT DE LA GIRONDE","Libre",null,null,null,null,533]
[525237,"F.C. ST JUSTINOIS","DISTRICT LANDES","Libre",null,null,null,null,534]
[525239,"A.S. MORIZES","DISTRICT DE LA GIRONDE","Libre",null,null,null,null,535]
[525268,"U.S. BEUXES","DISTRICT DE LA VIENNE","Libre",null,null,null,null,536]
[525269,"F.C. CHAURAY","DISTRICT DES DEUX-SEVRES","Libre",null,null,null,null,537]
[525270,"AM.S. PUYMOYEN","DISTRICT DE LA  CHARENTE","Libre",null,null,null,null,538]
[525273,"U.S. THORS SONNAC","DISTRICT CHARENTE MARITIME","Libre",null,null,null,null,539]
[525274,"U.S. AGRIS","DISTRICT DE LA  CHARENTE","Libre",null,null,null,null,540]
[525277,"A.S.AM. DES COURONNERIES POITIERS","DISTRICT DE LA VIENNE","Libre",null,null,null,null,541]
[525279,"ET.S. BOURCEFRANC LE CHAPUS","DISTRICT CHARENTE MARITIME","Libre",null,null,null,null,542]
[525286,"ESPE. ST BONNET DE BELLAC","DISTRICT HAUTE-VIENNE","Libre",null,null,null,null,543]
[525408,"F.C. D'ESCOURCE","DISTRICT LANDES","Libre",null,null,null,null,544]
[525410,"F.C. VALLEE DE L'OUSSE","DISTRICT PYRENEES ATLANTIQUES","Libre",null,null,null,null,545]
[525445,"U.S. BOUSSAIS","DISTRICT DES DEUX-SEVRES","Libre",null,null,null,null,546]
[525447,"J.S. LA CANEDA","DISTRICT FOOT DORDOGNE-PERIGORD","Libre",null,null,null,null,547]
[525452,"A.S. AIXOISE","DISTRICT DE LA CORREZE","Libre",null,null,null,null,548]
[525455,"J.S. DOUZILLACOISE","DISTRICT FOOT DORDOGNE-PERIGORD","Libre",null,null,null,null,549]
[525459,"F. C. DES 2 VALLEES","DISTRICT HAUTE-VIENNE","Libre",null,null,null,null,550]
[525468,"A.S. CHANIERS","DISTRICT CHARENTE MARITIME","Libre"]
[525469,"J.S. CHAPELLOISE","DISTRICT FOOT DORDOGNE-PERIGORD","Libre"]
[525569,"AM. COUSSAY LES BOIS","DISTRICT DE LA VIENNE","Libre"]
[525570,"U.S. ST GENIS DE SAINTONGE","DISTRICT CHARENTE MARITIME","Libre"]
[525571,"A.S. SARRAZACOISE","DISTRICT FOOT DORDOGNE-PERIGORD","Libre"]
[525600,"R.C. CHAMBERY","DISTRICT DE LA GIRONDE","Libre"]
[525606,"U.S. DE MEASNES","DISTRICT DE LA CREUSE","Libre"]
[525619,"A.S. PORTUGAIS CERIZAY","DISTRICT DES DEUX-SEVRES","Libre"]
[525639,"A.S. LAVERGNE MIRAMONT","DISTRICT LOT ET GARONNE","Libre"]
[525660,"ENT.A.S. PASSAGE F.C. GARONNAIS","DISTRICT LOT ET GARONNE","Libre"]
[525668,"ET.S. PRANZAC","DISTRICT DE LA  CHARENTE","Libre"]
[525781,"ET.S. LIGINIACOISE","DISTRICT DE LA CORREZE","Libre"]
[525838,"F.C. ATUR","DISTRICT FOOT DORDOGNE-PERIGORD","Libre"]
[525841,"ESPE. LES GONDS","DISTRICT CHARENTE MARITIME","Libre"]
[525850,"AM.S. STE OUENNE","DISTRICT DES DEUX-SEVRES","Libre"]
[526007,"J. S. ANGOULINS","DISTRICT CHARENTE MARITIME","Libre"]
[526009,"ET.S. CHAMPAGNAC LA RIVIERE","DISTRICT HAUTE-VIENNE","Libre"]
[526010,"U.S. CHANTILLAC","DISTRICT DE LA  CHARENTE","Libre"]
[526120,"C.A. PONDAURAT","DISTRICT DE LA GIRONDE","Libre"]
[526121,"U.S. SALAUNAISE","DISTRICT DE LA GIRONDE","Libre"]
[526154,"A.S. PORTUGAIS DE TULLE","DISTRICT DE LA CORREZE","Libre"]
[526158,"ENT.S. NONARDAISE","DISTRICT DE LA CORREZE","Libre"]
[526282,"BLEUETS DE NOTRE DAME DE PAU","DISTRICT PYRENEES ATLANTIQUES","Libre"]
[526314,"U.S. ST VINCENT DE CONNEZAC","DISTRICT FOOT DORDOGNE-PERIGORD","Libre"]
[526317,"LA GAULOISE D ARCAIS","DISTRICT DES DEUX-SEVRES","Libre"]
[526318,"AM.S. D'ASSAIS","DISTRICT DES DEUX-SEVRES","Libre"]
[526326,"A.S. ST MARTIAL DE GIMEL","DISTRICT DE LA CORREZE","Libre"]
[526327,"U.S. SAMMARCOLLES","DISTRICT DE LA VIENNE","Libre"]
[526527,"U.S. GUITRES","DISTRICT DE LA GIRONDE","Libre"]
[526554,"FOY.RUR.EDUC.POP. ST VINCENT PAU","DISTRICT LANDES","Libre"]
[526571,"U. PORTUGAISE DE PAU","DISTRICT PYRENEES ATLANTIQUES","Libre"]
[526616,"DES PORTIVO PORTUG ST PAUL DAX","DISTRICT LANDES","Libre"]
[526761,"AM.LAIQ.S. CHAMPNETERY","DISTRICT HAUTE-VIENNE","Libre"]
[526763,"A.S. COURSAC FOOT","DISTRICT FOOT DORDOGNE-PERIGORD","Libre"]
[526765,"STE EDUC.POP.C. EXIREUIL","DISTRICT DES DEUX-SEVRES","Libre"]
[526770,"U.S. ORCHES","DISTRICT DE LA VIENNE","Libre"]
[526773,"ST.O. NEGRONDES","DISTRICT FOOT DORDOGNE-PERIGORD","Libre"]
[526779,"ST. RUFFEC","DISTRICT DE LA  CHARENTE","Libre"]
[526784,"U.S. SORNAC","DISTRICT DE LA CORREZE","Libre"]
[526786,"MOISSANNES C.SP.L.","DISTRICT HAUTE-VIENNE","Libre"]
[526961,"ET.S. LOUZY","DISTRICT DES DEUX-SEVRES","Libre"]
[526972,"A.S. MOSNAC CHAMPMILLON","DISTRICT DE LA  CHARENTE","Libre"]
[526974,"U.S. VIEILLEVILLOISE","DISTRICT DE LA CREUSE","Libre"]
[526976,"BREUIL MAGNE F.C.","DISTRICT CHARENTE MARITIME","Libre"]
[526982,"FOOTBALL CLUB ST HILAIRE DE VILLEFRANCHE","DISTRICT CHARENTE MARITIME","Libre"]
[527155,"U. S. ARTHEZ D'ASSON","DISTRICT PYRENEES ATLANTIQUES","Libre"]
[527179,"U.S. BEAUSSAC","DISTRICT FOOT DORDOGNE-PERIGORD","Libre"]
[527235,"A.S. MOURENX BOURG","DISTRICT PYRENEES ATLANTIQUES","Libre"]
[527236,"ET.S. ALVEROISE","DISTRICT FOOT DORDOGNE-PERIGORD","Libre"]
[527359,"AM. FRANCO PORTUGAISE LIMOGES","DISTRICT HAUTE-VIENNE","Libre"]
[527360,"A.S. PARCOUL CHENAUD","DISTRICT FOOT DORDOGNE-PERIGORD","Libre"]
[527361,"A.S. PORTUGAIS CHATELLERAULT","DISTRICT DE LA VIENNE","Libre"]
[527446,"J.S. CASTELLEVEQUOIS","DISTRICT FOOT DORDOGNE-PERIGORD","Libre"]
[527451,"U.S. MARIGNY ST LEGER","DISTRICT DE LA VIENNE","Libre"]
[527459,"A.S. ST SULPICE LE GUERETOIS","DISTRICT DE LA CREUSE","Libre"]
[527460,"ESP. LA GENEYTOUSE","DISTRICT HAUTE-VIENNE","Libre"]
[527573,"A.S. LAURENTINE","DISTRICT FOOT DORDOGNE-PERIGORD","Libre"]
[527576,"ANTRAN S.L.","DISTRICT DE LA VIENNE","Libre"]
[527584,"C.S. PORTUGAIS POITIERS","DISTRICT DE LA VIENNE","Libre"]
[527825,"PEYREHORADE S. SECTION F.","DISTRICT LANDES","Libre"]
[527827,"U.S. OS MARSILLON","DISTRICT PYRENEES ATLANTIQUES","Libre"]
[527850,"ENT. GENNETON","DISTRICT DES DEUX-SEVRES","Libre"]
[527855,"AM. ST HILAIRE VENARSAL","DISTRICT DE LA CORREZE","Libre"]
[527856,"A.S.S. PORTUGAIS LA ROCHELLE","DISTRICT CHARENTE MARITIME","Libre"]
[527857,"E.S. ST HIPPOLYTE","DISTRICT CHARENTE MARITIME","Libre"]
[527927,"S.A. ST SEVERIN","DISTRICT LANDES","Libre"]
[527933,"A.S. OUZILLY","DISTRICT DE LA VIENNE","Libre"]
[527934,"GPE S. FRANCO PORTUGAIS ANGOULEM","DISTRICT DE LA  CHARENTE","Libre"]
[528074,"U.S. GAREIN","DISTRICT LANDES","Libre"]
[528157,"U.S. ETAGNAC","DISTRICT DE LA  CHARENTE","Libre"]
[528301,"F.C. LA JARNE","DISTRICT CHARENTE MARITIME","Libre"]
[528308,"U.S. LES COQUELICOTS DE MEYRALS","DISTRICT FOOT DORDOGNE-PERIGORD","Libre"]
[528316,"F.C. ST HILAIRE","DISTRICT DE LA  CHARENTE","Libre"]
[528317,"F.J.EDUC.POP.S. BUXEUIL","DISTRICT DE LA VIENNE","Libre"]
[528318,"SECTION A. CHAMPAGNACOISE","DISTRICT FOOT DORDOGNE-PERIGORD","Libre"]
[528321,"E.S. ST JUST LUZAC","DISTRICT CHARENTE MARITIME","Libre"]
[528325,"A.S. SAVIGNY L'EVESCAULT","DISTRICT DE LA VIENNE","Libre"]
[528532,"F.C. DE LIMEUIL","DISTRICT FOOT DORDOGNE-PERIGORD","Libre"]
[528537,"AM.LAIQ. POEY DE LESCAR","DISTRICT PYRENEES ATLANTIQUES","Libre"]
[528538,"A.S. CHAMBERY","DISTRICT DE LA GIRONDE","Libre"]
[528723,"ENT.S. BOURNOS DOUMY","DISTRICT PYRENEES ATLANTIQUES","Libre"]
[528724,"ETOILE BEARNAISE F. C.","DISTRICT PYRENEES ATLANTIQUES","Libre"]
[528727,"US JOURNET","DISTRICT DE LA VIENNE","Libre"]
[528883,"ASPTT DIRAC FOOT","DISTRICT DE LA  CHARENTE","Libre"]
[528884,"A.S. ALTILLACOISE","DISTRICT DE LA CORREZE","Libre"]
[528897,"U.S. ST CLEMENTOISE","DISTRICT DE LA CORREZE","Libre"]
[528898,"FOY.RUR.EDUC.POP. ST GERMAIN","DISTRICT DE LA CORREZE","Libre"]
[528905,"A.S.F.C. VINDELLE","DISTRICT DE LA  CHARENTE","Libre"]
[529015,"AV. DE CAUMONT FOURQUES","DISTRICT LOT ET GARONNE","Libre"]
[529022,"A.S. MONBAHUSIENNE","DISTRICT LOT ET GARONNE","Libre"]
[529258,"CHALOSSE F. C. LAUREDE","DISTRICT LANDES","Libre"]
[529261,"U.S. DE SENDETS","DISTRICT PYRENEES ATLANTIQUES","Libre"]
[529271,"F.C. LEOVILLE","DISTRICT CHARENTE MARITIME","Libre"]
[529272,"U.S. LANTEUIL","DISTRICT DE LA CORREZE","Libre"]
[529273,"F.C. ST MARTIN TERRESSUS","DISTRICT HAUTE-VIENNE","Libre"]
[529378,"U.S. ANNESSE ET BEAULIEU","DISTRICT FOOT DORDOGNE-PERIGORD","Libre"]
[529421,"ELAN SPORTIF LIMOGES","DISTRICT HAUTE-VIENNE","Libre"]
[529658,"U.S. VEYRAC","DISTRICT HAUTE-VIENNE","Libre"]
[529660,"F.C. ST JAL","DISTRICT DE LA CORREZE","Libre"]
[529662,"A.S.C. SAULGOND","DISTRICT DE LA  CHARENTE","Libre"]
[529664,"AM.LAIQ. ST LEON S/VEZERE","DISTRICT FOOT DORDOGNE-PERIGORD","Libre"]
[529666,"F.C. ST PAUL DE LIZONNE","DISTRICT FOOT DORDOGNE-PERIGORD","Libre"]
[529670,"A.S. ST JOUVENT","DISTRICT HAUTE-VIENNE","Libre"]
[529678,"BORDERIES SP. CHERAC","DISTRICT CHARENTE MARITIME","Libre"]
[529685,"ANIMATION L. ST BRICE","DISTRICT DE LA  CHARENTE","Libre"]
[529687,"A.S. VIGILANTE MALEMORT","DISTRICT DE LA CORREZE","Libre"]
[529691,"ST. BOISSEUILLAIS","DISTRICT CHARENTE MARITIME","Libre"]
[529860,"A.S. MONTFERRANDAISE","DISTRICT DE LA GIRONDE","Libre"]
[529955,"ET.S. LINARS","DISTRICT DE LA  CHARENTE","Libre"]
[529968,"U.AM. ST SULPICE DE COGNAC","DISTRICT DE LA  CHARENTE","Libre"]
[529974,"A.S. LA BAZEUGE","DISTRICT HAUTE-VIENNE","Libre"]
[530328,"F.C. PARENTIS","DISTRICT LANDES","Libre"]
[530331,"MONFLANQUIN F. C.","DISTRICT LOT ET GARONNE","Libre"]
[530332,"F.C. LESCARIEN","DISTRICT PYRENEES ATLANTIQUES","Libre"]
[530334,"J.S. LABOUHEYRE","DISTRICT LANDES","Libre"]
[530336,"F.C. NERAC","DISTRICT LOT ET GARONNE","Libre"]
[530337,"S.C. ASTAFFORTAIS","DISTRICT LOT ET GARONNE","Libre"]
[530344,"J.S. ST CHRISTOPHE DE DOUBLE","DISTRICT DE LA GIRONDE","Libre"]
[530358,"U.S. LESSAC","DISTRICT DE LA  CHARENTE","Libre"]
[530359,"F.C. MARSAIS","DISTRICT CHARENTE MARITIME","Libre"]
[530360,"ET.S. MORNAC","DISTRICT DE LA  CHARENTE","Libre"]
[530361,"A.S. PORTUGAIS NIORT","DISTRICT DES DEUX-SEVRES","Libre"]
[530417,"ENT. LATRILLE ST AGNET","DISTRICT LANDES","Libre"]
[530435,"A.S. VILLACOISE","DISTRICT FOOT DORDOGNE-PERIGORD","Libre"]
[530480,"A. PORTUGAIS DE PARTHENAY","DISTRICT DES DEUX-SEVRES","Libre"]
[530633,"GARAZI F.C. ST JEAN PIED DE PORT","DISTRICT PYRENEES ATLANTIQUES","Libre"]
[530681,"F.C. GAURIAGUET PEUJARD","DISTRICT DE LA GIRONDE","Libre"]
[530682,"LABENNE O.S.C.","DISTRICT LANDES","Libre"]
[530866,"U.S. ST SAUVEUR","DISTRICT DES DEUX-SEVRES","Libre"]
[530872,"A.S. BREUIL BERNARD","DISTRICT DES DEUX-SEVRES","Libre"]
[530876,"U.S. REUNIONNAISE CHATELLERAULT","DISTRICT DE LA VIENNE","Libre"]
[530882,"F.C. OBJATOIS","DISTRICT DE LA CORREZE","Libre"]
[531146,"S.C. CABANAC VILLAGRAIN","DISTRICT DE LA GIRONDE","Libre"]
[531175,"A.S. PETIT BERSAC","DISTRICT FOOT DORDOGNE-PERIGORD","Libre"]
[531375,"SP. PORTUGAIS VILLENAVE D'ORNON","DISTRICT DE LA GIRONDE","Libre"]
[531391,"F.C. USSEAU 79","DISTRICT DES DEUX-SEVRES","Libre"]
[531446,"SP.C. ST PIERRE DU MONT","DISTRICT LANDES","Libre"]
[531447,"F. C. MONBAZILLAC SIGOULES","DISTRICT FOOT DORDOGNE-PERIGORD","Libre"]
[531514,"C.A. SALLOIS","DISTRICT DE LA GIRONDE","Libre"]
[531523,"A. S. DE ST PANTALEON DE LARCHE","DISTRICT DE LA CORREZE","Libre"]
[531569,"U.S. PORTUGAISE TERRASSON","DISTRICT FOOT DORDOGNE-PERIGORD","Libre"]
[531588,"F.C. ST ROMAIN DE BENET","DISTRICT CHARENTE MARITIME","Libre"]
[531681,"F.C. DOAZIT","DISTRICT LANDES","Libre"]
[531682,"F.C. PENNE ST SYLVESTRE","DISTRICT LOT ET GARONNE","Libre"]
[531736,"A.S.P.O. BRIVE","DISTRICT DE LA CORREZE","Libre"]
[531747,"AM.S. ST GEORGES DES COTEAUX","DISTRICT CHARENTE MARITIME","Libre"]
[531750,"A.S. AZAT LE RIS","DISTRICT HAUTE-VIENNE","Libre"]
[531930,"U.S. ST PALAIS","DISTRICT PYRENEES ATLANTIQUES","Libre"]
[531969,"A.S. CHAMPCEVINEL","DISTRICT FOOT DORDOGNE-PERIGORD","Libre"]
[531972,"A.S. VERINOISE","DISTRICT CHARENTE MARITIME","Libre"]
[531974,"F.C. BEURLAY","DISTRICT CHARENTE MARITIME","Libre"]
[532157,"PAPILLONS DE PONTACQ","DISTRICT PYRENEES ATLANTIQUES","Libre"]
[532182,"CTE FETES S. GRANDS CHEZEAUX","DISTRICT HAUTE-VIENNE","Libre"]
[532382,"A.S. PORTUGAISE DE SARLAT","DISTRICT FOOT DORDOGNE-PERIGORD","Libre"]
[532419,"A.S. BRETAGNE MARSAN","DISTRICT LANDES","Libre"]
[532564,"A.S. FOLLES","DISTRICT HAUTE-VIENNE","Libre"]
[532567,"A.S. ST CHRISTOPHE","DISTRICT CHARENTE MARITIME","Libre"]
[532568,"A.S. ST MAIXENT DE BEUGNE","DISTRICT DES DEUX-SEVRES","Libre"]
[532569,"A.S. ST MARTIN LES MELLE","DISTRICT DES DEUX-SEVRES","Libre"]
[532570,"ENT. ST PARDOUX ST SYMPHORIEN","DISTRICT HAUTE-VIENNE","Libre"]
[532744,"F.C. MONTJOYARD","DISTRICT LOT ET GARONNE","Libre"]
[532748,"F.C. HOUEILLES","DISTRICT LOT ET GARONNE","Libre"]
[532942,"A.S. ECURAS","DISTRICT DE LA  CHARENTE","Libre"]
[532975,"F.C. ST MAURINOIS","DISTRICT LOT ET GARONNE","Libre"]
[533039,"F.C. GANTOIS","DISTRICT PYRENEES ATLANTIQUES","Libre"]
[533111,"F.C. DE CASTELMORON S/LOT","DISTRICT LOT ET GARONNE","Libre"]
[533165,"A.S. ST GENCE","DISTRICT HAUTE-VIENNE","Libre"]
[533208,"F.C. BIELLE","DISTRICT PYRENEES ATLANTIQUES","Libre"]
[533262,"J.S. GARAT-SERS-VOUZAN","DISTRICT DE LA  CHARENTE","Libre"]
[533266,"RAPID F.C. STE FEYRE","DISTRICT DE LA CREUSE","Libre"]
[533410,"F.C. ST ROGATIEN","DISTRICT CHARENTE MARITIME","Libre"]
[533573,"ARRANOAK D'OSSES","DISTRICT PYRENEES ATLANTIQUES","Libre"]
[533613,"U.S. VILLEREALAISE","DISTRICT LOT ET GARONNE","Libre"]
[533882,"A.S. LOUS MAROUS","DISTRICT LANDES","Libre"]
[533943,"A.S. TARNOS DITE A. FEDERATIVE","DISTRICT LANDES","Libre"]
[533948,"U.S. ILLADAISE DE FOOTBALL","DISTRICT DE LA GIRONDE","Libre"]
[534026,"U.S. ST FIEL","DISTRICT DE LA CREUSE","Libre"]
[534030,"U.S. BEAUNE LES MINES","DISTRICT HAUTE-VIENNE","Libre"]
[534034,"L.S.C. FEUILLADE","DISTRICT DE LA  CHARENTE","Libre"]
[534037,"COSNAC F.C.","DISTRICT DE LA CORREZE","Libre"]
[534040,"F.C. FORET DU TEMPLE","DISTRICT DE LA CREUSE","Libre"]
[534318,"O. LARCHOIS LA FEUILLADE","DISTRICT DE LA CORREZE","Libre"]
[534468,"ET.S. VALLEE DU LUY","DISTRICT PYRENEES ATLANTIQUES","Libre"]
[534716,"HIRIBURUKO AINHARA ST PIERRE IR.","DISTRICT PYRENEES ATLANTIQUES","Libre"]
[534790,"ROCHER C. ST EXUPERY","DISTRICT DE LA CORREZE","Libre"]
[534829,"ENT. HAUT BEARN","DISTRICT PYRENEES ATLANTIQUES","Libre"]
[534891,"U.S. PEYRAT DE BELLAC","DISTRICT HAUTE-VIENNE","Libre"]
[535014,"C.A. GRIGNOLAIS","DISTRICT DE LA GIRONDE","Libre"]
[535292,"ST PAUL LA ROCHE F. C.","DISTRICT FOOT DORDOGNE-PERIGORD","Libre"]
[535296,"A. VANXAINS","DISTRICT FOOT DORDOGNE-PERIGORD","Libre"]
[535300,"CIBOURE FOOTBALL CLUB","DISTRICT PYRENEES ATLANTIQUES","Libre"]
[535321,"ENT.ST SYLVAIN GARTEMPE MONTAIGU","DISTRICT DE LA CREUSE","Libre"]
[535325,"F.C. ST MAURICE LES BROUSSES","DISTRICT HAUTE-VIENNE","Libre"]
[535453,"FRONSAC F.C.","DISTRICT DE LA GIRONDE","Libre"]
[535454,"COLAYRAC F.C.","DISTRICT LOT ET GARONNE","Libre"]
[535455,"A.S. BOSSET","DISTRICT FOOT DORDOGNE-PERIGORD","Libre"]
[535618,"ET.S. ST AMAND","DISTRICT DE LA CREUSE","Libre"]
[535772,"ST PAUL S.","DISTRICT LANDES","Libre"]
[535775,"RIVEHAUTE S.","DISTRICT PYRENEES ATLANTIQUES","Libre"]
[535776,"C. MUNICIPAL OM. BASSENS","DISTRICT DE LA GIRONDE","Libre"]
[535822,"FOOTBALL CLUB DE FONTCOUVERTE","DISTRICT CHARENTE MARITIME","Libre"]
[535823,"A.S.C. LONGEVES","DISTRICT CHARENTE MARITIME","Libre"]
[536034,"A.S. LAUGNACAISE","DISTRICT LOT ET GARONNE","Libre"]
[536039,"A.S. DE PUJO LE PLAN","DISTRICT LANDES","Libre"]
[536070,"SECT.FOY.RUR. ASNIERES LA GIRAUD","DISTRICT CHARENTE MARITIME","Libre"]
[536555,"STE ANIMATION S.C. NEUVY BOUIN","DISTRICT DES DEUX-SEVRES","Libre"]
[536697,"MONEIN F.C.","DISTRICT PYRENEES ATLANTIQUES","Libre"]
[536832,"F.C. VERNOIS","DISTRICT FOOT DORDOGNE-PERIGORD","Libre"]
[537026,"U.F.C. ST COLOMB","DISTRICT LOT ET GARONNE","Libre"]
[537229,"F.C. CHERMIGNAC","DISTRICT CHARENTE MARITIME","Libre"]
[537253,"F.C. REBENACQ","DISTRICT PYRENEES ATLANTIQUES","Libre"]
[537374,"FOYER DES JEUNES ET D'EDUCATION POPULAIRE","DISTRICT DE LA CORREZE","Libre"]
[537590,"F.C. BELVESOIS","DISTRICT FOOT DORDOGNE-PERIGORD","Libre"]
[537592,"F.C. GINESTOIS","DISTRICT FOOT DORDOGNE-PERIGORD","Libre"]
[537650,"F.C. DE CUBLAC","DISTRICT DE LA CORREZE","Libre"]
[537722,"A.S. BIDACHE S.","DISTRICT PYRENEES ATLANTIQUES","Libre"]
[537723,"SP.C. TARON SEVIGNACQ","DISTRICT PYRENEES ATLANTIQUES","Libre"]
[537724,"U.S. AJAIN","DISTRICT DE LA CREUSE","Libre"]
[537774,"F.C. CUBZAC LES PONTS","DISTRICT DE LA GIRONDE","Libre"]
[537840,"J.S. TOUVRE","DISTRICT DE LA  CHARENTE","Libre"]
[537971,"F.C. BARINQUAIS","DISTRICT PYRENEES ATLANTIQUES","Libre"]
[538054,"A.S. PLACES","DISTRICT HAUTE-VIENNE","Libre"]
[538059,"F.C. ROQUEFORTAIS","DISTRICT LOT ET GARONNE","Libre"]
[538305,"E.S. DE POITIERS BEAULIEU","DISTRICT DE LA VIENNE","Libre"]
[538426,"AV. TOULENNAIS","DISTRICT DE LA GIRONDE","Libre"]
[538557,"ARBONA F.C.","DISTRICT PYRENEES ATLANTIQUES","Libre"]
[538673,"AM.LAIQ. MARSAC S/ISLE","DISTRICT FOOT DORDOGNE-PERIGORD","Libre"]
[539007,"PASSAGE F.C.","DISTRICT LOT ET GARONNE","Libre"]
[539019,"F.C. CERNAY","DISTRICT DE LA VIENNE","Libre"]
[539064,"ROQUENTIN OLYMPIQUE CLUB","DISTRICT LOT ET GARONNE","Libre"]
[539627,"CELLETTES F.C.","DISTRICT DE LA  CHARENTE","Libre"]
[539664,"FOY.RUR. DE SERRES MORLAAS","DISTRICT PYRENEES ATLANTIQUES","Libre"]
[539700,"F.C. ST GEORGES LES LANDES","DISTRICT HAUTE-VIENNE","Libre"]
[539753,"A.S. ST SEURINOISE","DISTRICT DE LA GIRONDE","Libre"]
[540182,"ASPTT DE PAU","DISTRICT PYRENEES ATLANTIQUES","Libre"]
[540349,"ENT.S. PTE CREUSE CHATELUS MALVA","DISTRICT DE LA CREUSE","Libre"]
[540403,"ET.S. DE BEAUBREUIL","DISTRICT HAUTE-VIENNE","Libre"]
[540430,"ECOLE S. DE SECTEUR INTERCOMMUNE","DISTRICT FOOT DORDOGNE-PERIGORD","Libre"]
[540445,"A.S.S.A. PAYS DU DROPT","DISTRICT LOT ET GARONNE","Libre"]
[540446,"ENT.S. DE NAY VATH VIELHA","DISTRICT PYRENEES ATLANTIQUES","Libre"]
[540655,"ENT. VOULMENTIN ST AUBIN DU PLAI","DISTRICT DES DEUX-SEVRES","Libre"]
[540658,"A.S. TREIGNACOISE F.C.","DISTRICT DE LA CORREZE","Libre"]
[540660,"F.C. ST GEORGES DE DIDONNE","DISTRICT CHARENTE MARITIME","Libre"]
[540862,"ENT. ST MARTIN D'ONEY GELOU S.","DISTRICT LANDES","Libre"]
[540957,"ASSOCIATION DE FUTSAL DES 2 CHARENTES","DISTRICT CHARENTE MARITIME","Libre"]
[541055,"F.C. MEESSOIS","DISTRICT LANDES","Libre"]
[541109,"F.C. DE BEAUPUY","DISTRICT LOT ET GARONNE","Libre"]
[541149,"AV.S. LAA MONDRANNAIS","DISTRICT PYRENEES ATLANTIQUES","Libre"]
[541394,"ENT. MARQUAY-TAMNIES","DISTRICT FOOT DORDOGNE-PERIGORD","Libre"]
[541450,"AM.S. DES BORDERIES DE LOUZAC","DISTRICT DE LA  CHARENTE","Libre"]
[541452,"A.S. CABARIOTAISE","DISTRICT CHARENTE MARITIME","Libre"]
[541490,"F.C. DU CONFOLENTAIS","DISTRICT DE LA  CHARENTE","Libre"]
[541503,"ESP.S. DE GOURGE LAGEON","DISTRICT DES DEUX-SEVRES","Libre"]
[541521,"F.C. NUEILLAUBIERS","DISTRICT DES DEUX-SEVRES","Libre"]
[541522,"ET.S. VOUNEUIL S/BIARD","DISTRICT DE LA VIENNE","Libre"]
[542263,"C.S. LEGUILLACOIS","DISTRICT FOOT DORDOGNE-PERIGORD","Libre"]
[542309,"F.C. CANCONNAIS","DISTRICT LOT ET GARONNE","Libre"]
[542328,"A.S. SAUVETERRIENNE","DISTRICT DE LA GIRONDE","Libre"]
[542329,"A.S. NEUVIC ST LEON","DISTRICT FOOT DORDOGNE-PERIGORD","Libre"]
[542347,"AV.S. DE GOUZON","DISTRICT DE LA CREUSE","Libre"]
[542360,"ENT. NAUSSANNES/STE SABINE","DISTRICT FOOT DORDOGNE-PERIGORD","Libre"]
[542420,"U.S. CHARTRONS","DISTRICT DE LA GIRONDE","Libre"]
[542515,"A.S. CONDEON REIGNAC","DISTRICT DE LA  CHARENTE","Libre"]
[542517,"TULLE FOOTBALL CORREZE","DISTRICT DE LA CORREZE","Libre"]
[542521,"F. C. LACAJUNTE TURSAN","DISTRICT LANDES","Libre"]
[542563,"F.C. DE FURSAC","DISTRICT DE LA CREUSE","Libre"]
[542564,"ENT.S. GUERETOISE","DISTRICT DE LA CREUSE","Libre"]
[542568,"U.S. VAL DE SEUGNE","DISTRICT CHARENTE MARITIME","Libre"]
[542572,"ENT. DE LA LEYRE","DISTRICT LANDES","Libre"]
[544090,"F.C. CONCHEZ DIUSSE","DISTRICT PYRENEES ATLANTIQUES","Libre"]
[544091,"F.C. LE BUGUE MAUZENS","DISTRICT FOOT DORDOGNE-PERIGORD","Libre"]
[544159,"F.C. DU LUY DE BEARN","DISTRICT PYRENEES ATLANTIQUES","Libre"]
[544160,"U. ST BRUNO F.C. SAB","DISTRICT DE LA GIRONDE","Libre"]
[544179,"CHEPNIERS F. C.","DISTRICT CHARENTE MARITIME","Libre"]
[544181,"E.F.C.V.C.  SAINT CESAIRE","DISTRICT CHARENTE MARITIME","Libre"]
[544182,"L'ESSOR DU F. CANTONAL CELLOIS","DISTRICT DES DEUX-SEVRES","Libre"]
[544185,"A.S. POITIERS GIBAUDERIE","DISTRICT DE LA VIENNE","Libre"]
[544279,"A.S. DE ST ELOI POITIERS","DISTRICT DE LA VIENNE","Libre"]
[544358,"A.S. JUGEALS NOAILLES","DISTRICT DE LA CORREZE","Libre"]
[544359,"ET. F.C. VILLEFAGNAN","DISTRICT DE LA  CHARENTE","Libre"]
[544360,"ENT.S. MARCHOISE NOTH/ST PRIEST","DISTRICT DE LA CREUSE","Libre"]
[544361,"ENT.S. DUN-NAILLAT","DISTRICT DE LA CREUSE","Libre"]
[544363,"C.D.J. POMPAIRE","DISTRICT DES DEUX-SEVRES","Libre"]
[544365,"F.C. ST JEAN MISSE","DISTRICT DES DEUX-SEVRES","Libre"]
[544366,"ENTE. S. LAVOUX LINIERS","DISTRICT DE LA VIENNE","Libre"]
[544368,"A.S. LUSSAC LES EGLISES","DISTRICT HAUTE-VIENNE","Libre"]
[544370,"AM.S. NOTH","DISTRICT DE LA CREUSE","Libre"]
[544372,"U.S. DE COUSSAY","DISTRICT DE LA VIENNE","Libre"]
[544623,"F.C. BIASSAIS","DISTRICT LOT ET GARONNE","Libre"]
[544734,"LANGON F. C.","DISTRICT DE LA GIRONDE","Libre"]
[544832,"F.C. LA RIBERE","DISTRICT PYRENEES ATLANTIQUES","Libre"]
[544883,"F.C. PIERROTON CESTAS TOCTOUCAU","DISTRICT DE LA GIRONDE","Libre"]
[544938,"ASSOCIATION SPORTIVE PUGNACAISE","DISTRICT DE LA GIRONDE","Libre"]
[545012,"ENT.S. ELAN CHARENTAIS","DISTRICT DE LA  CHARENTE","Libre"]
[545013,"A.S. ST AULAIS CHALLIGNAC","DISTRICT DE LA  CHARENTE","Libre"]
[545015,"O. MAUMONT","DISTRICT DE LA CORREZE","Libre"]
[545017,"A.S. BRIVISTE","DISTRICT DE LA CORREZE","Libre"]
[545020,"A.S. AUGE AZAYLE BRULE","DISTRICT DES DEUX-SEVRES","Libre"]
[545021,"ENT.S. FAYENOIRTERRE","DISTRICT DES DEUX-SEVRES","Libre"]
[545022,"U.S. COMBRANSSIERE","DISTRICT DES DEUX-SEVRES","Libre"]
[545024,"U.S. LES ROCHES LA VILLEDIEU","DISTRICT DE LA VIENNE","Libre"]
[545028,"ENT.S. LA CROISILLE LINARDS","DISTRICT HAUTE-VIENNE","Libre"]
[545032,"U.S. BESSINES-MORTEROLLES","DISTRICT HAUTE-VIENNE","Libre"]
[545033,"A.S. ST LOUIS VAL DE L'AURENCE","DISTRICT HAUTE-VIENNE","Libre"]
[545105,"U.S.F. VALEINE ALBUSSAC NEUVILLE MONCEAUX","DISTRICT DE LA CORREZE","Libre"]
[545142,"F.C. HAUT VAL DE SEVRE 94","DISTRICT DES DEUX-SEVRES","Libre"]
[545480,"U.S. VILLEFRANCHE DE LONCHAT","DISTRICT FOOT DORDOGNE-PERIGORD","Libre"]
[545607,"ET.S. PYRENEENNE","DISTRICT PYRENEES ATLANTIQUES","Libre"]
[545608,"ENT.S. AYGUELONGUE","DISTRICT PYRENEES ATLANTIQUES","Libre"]
[545618,"U.S. LA CATTE","DISTRICT FOOT DORDOGNE-PERIGORD","Libre"]
[545704,"F.C. JAVERLHACOIS","DISTRICT FOOT DORDOGNE-PERIGORD","Libre"]
[545718,"ET.S. ST MAURICE LA SOUTERRAINE","DISTRICT DE LA CREUSE","Libre"]
[545720,"ENT.S. LE THEIL LES BILLANGES","DISTRICT HAUTE-VIENNE","Libre"]
[545723,"F.C. MONTENDRE","DISTRICT CHARENTE MARITIME","Libre"]
[545724,"AM.S. COLLONGES CHAUFFOUR","DISTRICT DE LA CORREZE","Libre"]
[545728,"FOOTBALL CLUB STE EANNE","DISTRICT DES DEUX-SEVRES","Libre"]
[545730,"U.S. AM. DU SAUZEEN","DISTRICT DES DEUX-SEVRES","Libre"]
[545731,"EL.S. AUBINRORTHAIS","DISTRICT DES DEUX-SEVRES","Libre"]
[545732,"ENT.S. BOCAGE","DISTRICT DES DEUX-SEVRES","Libre"]
[545740,"ENT.F. AUBUSSONNAIS","DISTRICT DE LA CREUSE","Libre"]
[546127,"BURIE F.C.","DISTRICT CHARENTE MARITIME","Libre"]
[546183,"U.S. LONZAC 96","DISTRICT DE LA CORREZE","Libre"]
[546232,"U.S. DE BOUEX","DISTRICT DE LA  CHARENTE","Libre"]
[546374,"A.S. MARCELLUS COCUMONT","DISTRICT LOT ET GARONNE","Libre"]
[546376,"A.S. PERIGORDINE","DISTRICT FOOT DORDOGNE-PERIGORD","Libre"]
[546417,"U. FRATERNELLE BARBEZIEUX-BARRET","DISTRICT DE LA  CHARENTE","Libre"]
[546418,"F.C. DE ROUILLAC","DISTRICT DE LA  CHARENTE","Libre"]
[546419,"E.S.A.B. 96 F.C.","DISTRICT CHARENTE MARITIME","Libre"]
[546421,"A.S. ST SEBASTIEN-AZERABLES","DISTRICT DE LA CREUSE","Libre"]
[546422,"ENT.S. CELLES-VERRINES","DISTRICT DES DEUX-SEVRES","Libre"]
[546423,"U.S. CHAMPDENIERS-PAMPLIE","DISTRICT DES DEUX-SEVRES","Libre"]
[546424,"F.C. AIRVO ST JOUIN","DISTRICT DES DEUX-SEVRES","Libre"]
[546427,"ENT.S. PINBRECIERES","DISTRICT DES DEUX-SEVRES","Libre"]
[546429,"A.S. DE VALDIVIENNE","DISTRICT DE LA VIENNE","Libre"]
[546431,"U.S. ENT. COUZEIX-CHAPTELAT","DISTRICT HAUTE-VIENNE","Libre"]
[546434,"F.C. CANTON D'ORADOUR S/VAYRES","DISTRICT HAUTE-VIENNE","Libre"]
[546435,"ET.S. DE MOUGON","DISTRICT DES DEUX-SEVRES","Libre"]
[546458,"R.C. DE LA LAURENCE","DISTRICT DE LA GIRONDE","Libre"]
[546480,"U.S. CLOU BOUCHET","DISTRICT DES DEUX-SEVRES","Libre"]
[546487,"F.C. DU BORN","DISTRICT LANDES","Libre"]
[546497,"INTER PAYS D'AIGRE","DISTRICT DE LA  CHARENTE","Libre"]
[546513,"A.S. LAMARQUE ARCINS","DISTRICT DE LA GIRONDE","Libre"]
[546535,"U.S.ST GENIES ARCHIGNAC AUBAR","DISTRICT FOOT DORDOGNE-PERIGORD","Libre"]
[546543,"ALERTE CUSSACAISE F.C.","DISTRICT DE LA GIRONDE","Libre"]
[546556,"F.C. DE FAUX","DISTRICT FOOT DORDOGNE-PERIGORD","Libre"]
[546596,"F.C. ST SORNIN LEULAC","DISTRICT HAUTE-VIENNE","Libre"]
[546795,"CONDAT F.C.","DISTRICT FOOT DORDOGNE-PERIGORD","Libre"]
[546870,"FOY.RUR. JEUNES EDUC.POP. EYREIN","DISTRICT DE LA CORREZE","Libre"]
[546891,"AM. LAIQ. MONTAIGNAC","DISTRICT DE LA CORREZE","Libre"]
[547003,"J.S. DES TROIS VALLEES","DISTRICT DE LA  CHARENTE","Libre"]
[547071,"F.C. ST LAURENT D'ARCE/ST GERVAIS","DISTRICT DE LA GIRONDE","Libre"]
[547084,"PERIGUEUX F.","DISTRICT FOOT DORDOGNE-PERIGORD","Libre"]
[547094,"O. MOUTERRE SILLY","DISTRICT DE LA VIENNE","Libre"]
[547099,"F.C. HAUTE CHARENTE","DISTRICT DE LA  CHARENTE","Libre"]
[547100,"ENT. ST SEVERIN PALLUAUD","DISTRICT DE LA  CHARENTE","Libre"]
[547101,"AM. BEAUVAIS CRESSE","DISTRICT CHARENTE MARITIME","Libre"]
[547105,"ENT. PERPEZAC SADROC","DISTRICT DE LA CORREZE","Libre"]
[547106,"ENT.S. ST CERBOUILLE","DISTRICT DES DEUX-SEVRES","Libre"]
[547108,"ENT.S. FOMPERRON MENIGOUTE","DISTRICT DES DEUX-SEVRES","Libre"]
[547111,"AMIS S. QUEAUX MOUSSAC","DISTRICT DE LA VIENNE","Libre"]
[547537,"L'AVAL","DISTRICT PYRENEES ATLANTIQUES","Libre"]
[547546,"A.S. VILLANDRAUT PRECHAC","DISTRICT DE LA GIRONDE","Libre"]
[547571,"U.S. PORT STE MARIE FEUGAROLLES","DISTRICT LOT ET GARONNE","Libre"]
[547583,"A.S. PAYS DE MONTAIGNE ET GURCON","DISTRICT FOOT DORDOGNE-PERIGORD","Libre"]
[547606,"AV. ST VINCENT CHAIL MAISONNAIS","DISTRICT DES DEUX-SEVRES","Libre"]
[547656,"A.S. GUITTINIERES LE VIROUIL","DISTRICT CHARENTE MARITIME","Libre"]
[547676,"U. S. MONPAZIER FOOTBALL","DISTRICT FOOT DORDOGNE-PERIGORD","Libre"]
[547677,"TARGON SOULIGNAC F.C.","DISTRICT DE LA GIRONDE","Libre"]
[547777,"ENT.S. MAINSAT SANNAT","DISTRICT DE LA CREUSE","Libre"]
[548135,"R.C. PARTHENAY VIENNAY","DISTRICT DES DEUX-SEVRES","Libre"]
[548184,"F.C. DES 2 VALLEES","DISTRICT PYRENEES ATLANTIQUES","Libre"]
[548194,"S.C. DE SAINT CLAUD","DISTRICT DE LA  CHARENTE","Libre"]
[548199,"F.C. BRIGUEUIL","DISTRICT DE LA  CHARENTE","Libre"]
[548275,"F.C. EXCIDEUIL ST MEDARD","DISTRICT FOOT DORDOGNE-PERIGORD","Libre"]
[548276,"C.S. COLAIS","DISTRICT FOOT DORDOGNE-PERIGORD","Libre"]
[548277,"LANDES GIRONDINES F.C.","DISTRICT DE LA GIRONDE","Libre"]
[548285,"U.S. CASTETIS GOUZE","DISTRICT PYRENEES ATLANTIQUES","Libre"]
[548286,"NAY F.C.","DISTRICT PYRENEES ATLANTIQUES","Libre"]
[548289,"PORTETS F. C.","DISTRICT DE LA GIRONDE","Libre"]
[548307,"U.S. AILLAS AUROS","DISTRICT DE LA GIRONDE","Libre"]
[548327,"AM.S.C. DE LA MEYZE","DISTRICT HAUTE-VIENNE","Libre"]
[548344,"F. GENERATION 2000","DISTRICT DE LA CREUSE","Libre"]
[548345,"F.C. PAYS ARGENTONNAIS","DISTRICT DES DEUX-SEVRES","Libre"]
[548357,"ENT. GENIS SALAGNAC F.","DISTRICT FOOT DORDOGNE-PERIGORD","Libre"]
[548371,"F.C. ST JULIEN LE PETIT","DISTRICT HAUTE-VIENNE","Libre"]
[548390,"CASTELNAU F.C.","DISTRICT DE LA GIRONDE","Libre"]
[548459,"A. BALLE AU PIED","DISTRICT DE LA GIRONDE","Libre"]
[548484,"A.S. NORD EST CREUSE","DISTRICT DE LA CREUSE","Libre"]
[548521,"A.S. ARGENTEUIL ANGERIEN POURSAY-GARNAUD","DISTRICT CHARENTE MARITIME","Libre"]
[548555,"AUVEZERE MAYNE F. C.","DISTRICT DE LA CORREZE","Libre"]
[548738,"A.S. PLAZACOISE","DISTRICT FOOT DORDOGNE-PERIGORD","Libre"]
[548757,"A.S. MIREPEIX","DISTRICT PYRENEES ATLANTIQUES","Libre"]
[548772,"FOOT. CLUB DE LA VALLEE DU LOT- VILLENEUVE S/ LOT","DISTRICT LOT ET GARONNE","Libre"]
[548779,"ENT.S. VENDELOGNE","DISTRICT DE LA VIENNE","Libre"]
[548823,"US FRATERNELLE FOOT","DISTRICT HAUTE-VIENNE","Libre"]
[548897,"ENT. BERNEUIL SALLES BARBEZIEUX","DISTRICT DE LA  CHARENTE","Libre"]
[548907,"ROYAN VAUX ATLANTIQUE F.C.","DISTRICT CHARENTE MARITIME","Libre"]
[548924,"C.LAIQ.NOIRLIEU CHAMBROUTET BRES","DISTRICT DES DEUX-SEVRES","Libre"]
[548940,"ENT.S. DES BEAUX PINS","DISTRICT DE LA  CHARENTE","Libre"]
[548944,"ET.S. JAVREZAC F.C. JARNOUZEAU","DISTRICT DE LA  CHARENTE","Libre"]
[548981,"R. C. HASTIGNAN FOOTBALL","DISTRICT DE LA GIRONDE","Libre"]
[549032,"U.S. BETETE ROCHES","DISTRICT DE LA CREUSE","Libre"]
[549284,"F.C. OUSSE","DISTRICT PYRENEES ATLANTIQUES","Libre"]
[549380,"CAP AUNIS ASPTT F.C.","DISTRICT CHARENTE MARITIME","Libre"]
[549406,"ENT. SUD EST CREUSOIS","DISTRICT DE LA CREUSE","Libre"]
[549489,"F.C. MEDOC OCEAN","DISTRICT DE LA GIRONDE","Libre"]
[549490,"C.M.S. HAUT MEDOC","DISTRICT DE LA GIRONDE","Libre"]
[549491,"U.S.J. ST AUGUSTIN C. PYRENEES A","DISTRICT DE LA GIRONDE","Libre"]
[549492,"A. S. VILLETOUREIX","DISTRICT FOOT DORDOGNE-PERIGORD","Libre"]
[549494,"F.C. COMMUNES DU CREONNAIS","DISTRICT DE LA GIRONDE","Libre"]
[549608,"ENT. PERIGORD NOIR","DISTRICT FOOT DORDOGNE-PERIGORD","Libre"]
[549611,"A.S. VILLEBOIS HAUTE BOEME","DISTRICT DE LA  CHARENTE","Libre"]
[549619,"F. COGNACOIS CYRIEN LAURENTAIS","DISTRICT HAUTE-VIENNE","Libre"]
[549639,"F.C. ST GERMAIN MONTBRON","DISTRICT DE LA  CHARENTE","Libre"]
[549643,"ALLIANCE ESTIVAUX ST PARDOUX","DISTRICT DE LA CORREZE","Libre"]
[549706,"F.C. ST MARTIN DE SEIGNANX","DISTRICT LANDES","Libre"]
[549868,"AV.F.CASSENEUIL PAILLOLES LEDAT 47","DISTRICT LOT ET GARONNE","Libre"]
[549980,"ECOLE DE F. DU VAL DE VIENNE","DISTRICT HAUTE-VIENNE","Libre"]
[550009,"A.S. ANTONNE LE CHANGE","DISTRICT FOOT DORDOGNE-PERIGORD","Libre"]
[550045,"F.C. DE DONTREIX","DISTRICT DE LA CREUSE","Libre"]
[550080,"AM. S. GENSAC MONTCARET","DISTRICT DE LA GIRONDE","Libre"]
[550083,"F.C. BARSAC PREIGNAC","DISTRICT DE LA GIRONDE","Libre"]
[550105,"F.C. PONT DU CASSE FOULAYRONNES","DISTRICT LOT ET GARONNE","Libre"]
[550106,"AM. S. AVENSAN MOULIS LISTRAC","DISTRICT DE LA GIRONDE","Libre"]
[550168,"NORD DORDOGNE CHALAIS ST JORY A.L.","DISTRICT FOOT DORDOGNE-PERIGORD","Libre"]
[550170,"STELLA J. BERGERAC","DISTRICT FOOT DORDOGNE-PERIGORD","Libre"]
[550209,"U.S. DES CLUBS DE BOURGANEUF","DISTRICT DE LA CREUSE","Libre"]
[550210,"OCCITANE F.C.","DISTRICT HAUTE-VIENNE","Libre"]
[550333,"A.S. LUSITANOS CENON","DISTRICT DE LA GIRONDE","Libre"]
[550366,"F.C. ST ANGEL","DISTRICT DE LA CORREZE","Libre"]
[550403,"A.S. FRANCO PORTUG ST PARDOUX","DISTRICT LOT ET GARONNE","Libre"]
[550411,"G.J. VALLEES DU MIOSSON","DISTRICT DE LA VIENNE","Groupement rural"]
[550423,"GROUPEMENT NORD LANDES","DISTRICT LANDES","Groupement rural"]
[550424,"G.J. BRUILHOIS 47","DISTRICT LOT ET GARONNE","Groupement rural"]
[550504,"DYNAMO DE LIER","DISTRICT LANDES","Futsal"]
[550523,"FC VALLEE DE L'ISLE 24","DISTRICT FOOT DORDOGNE-PERIGORD","Libre"]
[550537,"F. C. DES ENCLAVES ET DU PLATEAU","DISTRICT PYRENEES ATLANTIQUES","Libre"]
[550574,"A. S. CHADENAC JARNAC MARIGNAC","DISTRICT CHARENTE MARITIME","Libre"]
[550637,"A. S. C. MAYOTTE ANGOULEME","DISTRICT DE LA  CHARENTE","Libre"]
[550662,"LES BLEUETS MACARIENS","DISTRICT DE LA GIRONDE","Libre"]
[550666,"ESPOIR MAIXENTAIS F.","DISTRICT DES DEUX-SEVRES","Libre"]
[550682,"LIMOGES FOOTBALL CLUB","DISTRICT HAUTE-VIENNE","Libre"]
[550698,"ESMAN","DISTRICT PYRENEES ATLANTIQUES","Libre"]
[550739,"F. C. DE ST AMANT DE BOIXE","DISTRICT DE LA  CHARENTE","Libre"]
[550743,"C.S. DE LA VENISE VERTE","DISTRICT DES DEUX-SEVRES","Libre"]
[550784,"ENT.S. AMBARESIENNE","DISTRICT DE LA GIRONDE","Libre"]
[550805,"F.C. SEVIGNE JONZAC ST GERMAIN","DISTRICT CHARENTE MARITIME","Libre"]
[550807,"ROCHEFORT F. C.","DISTRICT CHARENTE MARITIME","Libre"]
[550816,"CAMPAGNAC DAGLAN ST LAURENT F.","DISTRICT FOOT DORDOGNE-PERIGORD","Libre"]
[550818,"F.C. SARLAT MARCILLAC","DISTRICT FOOT DORDOGNE-PERIGORD","Libre"]
[550819,"U.S. MARSANEIX MANOIRE","DISTRICT FOOT DORDOGNE-PERIGORD","Libre"]
[550826,"F.C. GENAC-MARCILLAC-GOURVILLE","DISTRICT DE LA  CHARENTE","Libre"]
[550847,"ENT.S. NERCILLAC REPARSAC","DISTRICT DE LA  CHARENTE","Libre"]
[550850,"SUD VIENNE REGION DE COUHE","DISTRICT DE LA VIENNE","Libre"]
[550868,"AV.S. CHAUNAY","DISTRICT DE LA VIENNE","Libre"]
[550894,"A.S. BORD ST GEORGES","DISTRICT DE LA CREUSE","Libre"]
[550899,"U.S. BERTRICOISE BUREE","DISTRICT FOOT DORDOGNE-PERIGORD","Libre"]
[550934,"U.S. VERGENTONNAISE","DISTRICT DES DEUX-SEVRES","Libre"]
[550935,"F.C. 2 MESCHERS MORTAGNE","DISTRICT CHARENTE MARITIME","Libre"]
[550999,"A.S. PESSAC CHÂTAIGNERAIE","DISTRICT DE LA GIRONDE","Libre"]
[551006,"U. S. NORD GIRONDE","DISTRICT DE LA GIRONDE","Libre"]
[551060,"G.J. VAL DE VONNE","DISTRICT DE LA VIENNE","Groupement rural"]
[551098,"SUD GIRONDE F.C.","DISTRICT DE LA GIRONDE","Libre"]
[551139,"A. S. ST GERMAIN CHANTERAC","DISTRICT FOOT DORDOGNE-PERIGORD","Libre"]
[551216,"ET.S. DE DARNAC","DISTRICT HAUTE-VIENNE","Libre"]
[551236,"A.S. ST LOUIS S/ SOURZAC","DISTRICT FOOT DORDOGNE-PERIGORD","Libre"]
[551238,"F.C. JEUNES OREE DE L AUTIZE","DISTRICT DES DEUX-SEVRES","Libre"]
[551395,"G.J. FUN 87 HL","DISTRICT HAUTE-VIENNE","Groupement rural"]
[551459,"CARRESSE SALIES F. C.","DISTRICT PYRENEES ATLANTIQUES","Libre"]
[551473,"F.C. COTEAUX BORDELAIS","DISTRICT DE LA GIRONDE","Libre"]
[551528,"F.C. FOYER RURAL LA FORCE","DISTRICT FOOT DORDOGNE-PERIGORD","Libre"]
[551597,"F.C. SUD GATINE","DISTRICT DES DEUX-SEVRES","Libre"]
[551602,"G.J. VALLEE DE L ECHELLE FOOT","DISTRICT DE LA  CHARENTE","Groupement rural"]
[551659,"F.  C. DE L' OLYMPIQUE EYMETOISE","DISTRICT FOOT DORDOGNE-PERIGORD","Libre"]
[551759,"OZON F. C.","DISTRICT DE LA VIENNE","Libre"]
[551776,"F.C. TEAM LADORNAC","DISTRICT FOOT DORDOGNE-PERIGORD","Libre"]
[551788,"F.C. LE PIZOU","DISTRICT FOOT DORDOGNE-PERIGORD","Libre"]
[551864,"MAINE DE BOIXE S.","DISTRICT DE LA  CHARENTE","Libre"]
[551878,"E.S. CEAUX LA ROCHE","DISTRICT DE LA VIENNE","Libre"]
[551941,"S.  C. LARUSCADE","DISTRICT DE LA GIRONDE","Libre"]
[552012,"F.C. MARTIGNAS ILLAC","DISTRICT DE LA GIRONDE","Libre"]
[552034,"F.C. ARSAC LEPIAN MEDOC","DISTRICT DE LA GIRONDE","Libre"]
[552060,"U.S. LEGE CAP FERRET","DISTRICT DE LA GIRONDE","Libre"]
[552084,"CREUSE AVENIR 2005","DISTRICT DE LA CREUSE","Libre"]
[552085,"TRELISSAC F. C.","DISTRICT FOOT DORDOGNE-PERIGORD","Libre"]
[552099,"S. C.  ARTHEZ LACQ AUDEJOS","DISTRICT PYRENEES ATLANTIQUES","Libre"]
[552100,"OLERON F. C.","DISTRICT CHARENTE MARITIME","Libre"]
[552109,"A.C. DE GOND PONTOUVRE","DISTRICT DE LA  CHARENTE","Libre"]
[552158,"ECOLE DE FOOTBALL BELLE ET DRONNE","DISTRICT FOOT DORDOGNE-PERIGORD","Groupement rural"]
[552163,"ANGOULEME CHARENTE F.C","DISTRICT DE LA  CHARENTE","Libre"]
[552256,"F.C. CANTON MIRAMBEAU","DISTRICT CHARENTE MARITIME","Libre"]
[552330,"C.S. ALLASSACOIS","DISTRICT DE LA CORREZE","Libre"]
[552379,"F.C. PALUDEEN","DISTRICT DES DEUX-SEVRES","Libre"]
[552407,"A. S. CYRSEK","DISTRICT PYRENEES ATLANTIQUES","Libre"]
[552446,"F.C. DE MAGNE","DISTRICT DE LA VIENNE","Libre"]
[552504,"G.J. VAL DE BOUTONNE","DISTRICT CHARENTE MARITIME","Groupement rural"]
[552505,"G.J. VALLEE VIENNE ET MOULIERE","DISTRICT DE LA VIENNE","Groupement rural"]
[552517,"G.J. FOOT VAL VERT","DISTRICT DE LA VIENNE","Groupement rural"]
[552520,"G.J. BOCAFOOT 79","DISTRICT DES DEUX-SEVRES","Groupement rural"]
[552522,"FOOTBALL CLUB SAINT CIERS D'ABZAC - MARANSIN","DISTRICT DE LA GIRONDE","Libre"]
[552605,"E.S. SAINTES FOOTBALL","DISTRICT CHARENTE MARITIME","Libre"]
[552606,"SAINT SEURIN JUNIOR CLUB","DISTRICT DE LA GIRONDE","Libre"]
[552608,"G.J. POLE SUD CREUSE","DISTRICT DE LA CREUSE","Groupement rural"]
[552611,"F.C. DE ROYERE VASSIVIERE","DISTRICT DE LA CREUSE","Libre"]
[552644,"F. C.  ARTIGUELOUVE ARBUS AUBERTIN","DISTRICT PYRENEES ATLANTIQUES","Libre"]
[552652,"E.S. CHANTELOUP-CHAPELLE","DISTRICT DES DEUX-SEVRES","Libre"]
[552666,"F. C. MEDOC ATLANTIQUE","DISTRICT DE LA GIRONDE","Libre"]
[552675,"U. S. VALLEE DE GARONNE","DISTRICT DE LA GIRONDE","Libre"]
[552681,"F. C. LA MENAURIE","DISTRICT FOOT DORDOGNE-PERIGORD","Libre"]
[552697,"A.P.C.S. MAHORAIS DE BRIVE","DISTRICT DE LA CORREZE","Libre"]
[552703,"ENT. S. NOUZIERS-LA CELLETTE","DISTRICT DE LA CREUSE","Libre"]
[552732,"GIRONDINS FUTSAL","DISTRICT DE LA GIRONDE","Futsal"]
[552770,"U.S. ANGLOISE","DISTRICT DE LA VIENNE","Libre"]
[552775,"F. C. DE BEGADAN","DISTRICT DE LA GIRONDE","Libre"]
[552840,"F.C. LAVAVEIX","DISTRICT DE LA CREUSE","Libre"]
[552905,"LOISIRS ET JEUNESSE LE THOU","DISTRICT CHARENTE MARITIME","Libre"]
[552910,"A.J. FUTSAL","DISTRICT DE LA GIRONDE","Futsal"]
[552940,"G.J. VAL DE GARTEMPE ET CREUSE","DISTRICT DE LA VIENNE","Groupement rural"]
[552941,"F. C. BOUGNEAU MONTILS PERIGNAC","DISTRICT CHARENTE MARITIME","Libre"]
[552977,"A. S. ST PIERRE DE CHIGNAC","DISTRICT FOOT DORDOGNE-PERIGORD","Libre"]
[553035,"FOOTBALL CLUB CUBNEZAIS","DISTRICT DE LA GIRONDE","Libre"]
[553111,"STADE POITEVIN F. C.","DISTRICT DE LA VIENNE","Libre"]
[553134,"JEUNESSE SPORTIVE FOOT VAL DE CLOUERE","DISTRICT DE LA VIENNE","Groupement rural"]
[553156,"U.S. NORD VIENNE","DISTRICT DE LA VIENNE","Libre"]
[553165,"F.C. DE MONTRAVERS","DISTRICT DES DEUX-SEVRES","Libre"]
[553177,"GARDONNE ST LAURENT DES VIGNES F. C.","DISTRICT FOOT DORDOGNE-PERIGORD","Libre"]
[553245,"ENT. S. LA ROCHELLE","DISTRICT CHARENTE MARITIME","Libre"]
[553247,"MONTPON MENESPLET F. C.","DISTRICT FOOT DORDOGNE-PERIGORD","Libre"]
[553257,"FC ESTUAIRE/ HAUTE GIRONDE","DISTRICT DE LA GIRONDE","Libre"]
[553258,"F.C. DES PORTES DE L' ENTRE DEUX MERS","DISTRICT DE LA GIRONDE","Libre"]
[553273,"L' ENTENTE CALES TREMOLAT","DISTRICT FOOT DORDOGNE-PERIGORD","Libre"]
[553322,"ET.S. SAINT AMAND MAGNAZEIX","DISTRICT HAUTE-VIENNE","Libre"]
[553371,"SOLIDARITE DES TURCS DE BRIVE","DISTRICT DE LA CORREZE","Libre"]
[553375,"CEP POITIERS 1892","DISTRICT DE LA VIENNE","Libre"]
[553387,"GJ DU PAYS D' AUROS","DISTRICT DE LA GIRONDE","Groupement rural"]
[553423,"G.J. LA  COULEE D'OC","DISTRICT DE LA  CHARENTE","Groupement rural"]
[553439,"U. S. THURE BESSE","DISTRICT DE LA VIENNE","Libre"]
[553441,"ENT. S. CHARROUX - MAUPREVOIR","DISTRICT DE LA VIENNE","Libre"]
[553446,"U. S. LA PUYE LA BUSSIERE","DISTRICT DE LA VIENNE","Libre"]
[553448,"BUSLAURS THIREUIL","DISTRICT DES DEUX-SEVRES","Libre"]
[553454,"ENT. S. BEAULIEU - BREUIL","DISTRICT DES DEUX-SEVRES","Libre"]
[553504,"ENT. SAINT MAURICE GENCAY","DISTRICT DE LA VIENNE","Libre"]
[553586,"A. S. C. DE MAYOTTE","DISTRICT DE LA GIRONDE","Libre"]
[553587,"U. S. CHENAY CHEY SEPVRET","DISTRICT DES DEUX-SEVRES","Libre"]
[553642,"G.J. DU PAYS MARENNAIS","DISTRICT CHARENTE MARITIME","Groupement rural"]
[553654,"G.J. ENTENTE DES VERGERS FOOT 19","DISTRICT DE LA CORREZE","Groupement rural"]
[553657,"U. S. DE VALLIERE","DISTRICT DE LA CREUSE","Libre"]
[553675,"G.J. ALLIANCE FOOT 3 B","DISTRICT DE LA  CHARENTE","Groupement rural"]
[553676,"G.J. FOOT ACC 23","DISTRICT DE LA CREUSE","Groupement rural"]
[553678,"GJ ECOLE DE FOOT DU PAYS DE NEXON","DISTRICT HAUTE-VIENNE","Groupement rural"]
[553679,"ENT. S. BRION ST SECONDIN","DISTRICT DE LA VIENNE","Libre"]
[553732,"U.S CREYSSE LEMBRAS ST SAUVEUR LAMONZIE MONTASTRUC","DISTRICT FOOT DORDOGNE-PERIGORD","Libre"]
[553735,"PAYS EYRAUD LE FLEIX ST PIERRE D EYRAUD","DISTRICT FOOT DORDOGNE-PERIGORD","Libre"]
[553747,"ENT. GRIGNOLS VILLAMBLARD","DISTRICT FOOT DORDOGNE-PERIGORD","Libre"]
[553756,"SAINT PEE UNION CLUB FOOT","DISTRICT PYRENEES ATLANTIQUES","Libre"]
[553785,"A. S. VIGNOLS VOUTEZAC","DISTRICT DE LA CORREZE","Libre"]
[553787,"U. ST MAURICE GRENADE FOOTBALL","DISTRICT LANDES","Libre"]
[553791,"ENT. NANTEUIL-VERTEUIL","DISTRICT DE LA  CHARENTE","Libre"]
[553792,"F.C. DES COTEAUX DU LIBOURNAIS","DISTRICT DE LA GIRONDE","Libre"]
[553794,"F.C. FOURAS ST LAURENT","DISTRICT CHARENTE MARITIME","Libre"]
[553801,"U.S. VASLEENNE","DISTRICT DES DEUX-SEVRES","Libre"]
[553835,"TYS FUTSAL CLUB","DISTRICT DES DEUX-SEVRES","Futsal"]
[553849,"A. MUSICALE ARTISTIQUE CULTURELLE ET SPOR","DISTRICT DE LA CORREZE","Libre"]
[553888,"VAL DE BOUTONNE FOOT 79","DISTRICT DES DEUX-SEVRES","Libre"]
[553933,"EX-TENSION FUTSAL ECHIRE","DISTRICT DES DEUX-SEVRES","Futsal"]
[553945,"U. S. LIDONNAISE","DISTRICT CHARENTE MARITIME","Libre"]
[554003,"S.C. DAUSSOIS OMNISPORT","DISTRICT LOT ET GARONNE","Libre"]
[554041,"KEFILM F.S.","DISTRICT DES DEUX-SEVRES","Futsal"]
[554145,"S. C. DE LOUBIGNE","DISTRICT DES DEUX-SEVRES","Libre"]
[554150,"A. DES ANCIENS DE L'A.M. LALEU LA PALLICE","DISTRICT CHARENTE MARITIME","Libre"]
[554163,"G.J. CAP OUEST FOOTBALL","DISTRICT DE LA VIENNE","Groupement rural"]
[554180,"F. C. GIRONDE LA REOLE","DISTRICT DE LA GIRONDE","Libre"]
[554200,"C.A. CASTETS EN DORTHE","DISTRICT DE LA GIRONDE","Libre"]
[554232,"ENT. S. MURON GENOUILLE","DISTRICT CHARENTE MARITIME","Libre"]
[554243,"G.J. SUD SAINTONGE","DISTRICT CHARENTE MARITIME","Groupement rural"]
[554244,"GJ FOOT SUD 86","DISTRICT DE LA VIENNE","Groupement rural"]
[554258,"G.J. ESPOIR NORD-EST 79","DISTRICT DES DEUX-SEVRES","Groupement rural"]
[554293,"C. A. S. BOURESSE","DISTRICT DE LA VIENNE","Libre"]
[554345,"RACING CLUB DE DAX","DISTRICT LANDES","Libre"]
[554376,"F.C. BAIGTS BERENX","DISTRICT PYRENEES ATLANTIQUES","Libre"]
[554411,"F. C. AVENIR DE SAINTONGE","DISTRICT CHARENTE MARITIME","Libre"]
[554416,"F.C. VALLEE DE LA DORDOGNE","DISTRICT DE LA GIRONDE","Libre"]
[554424,"TAIZE-AIZIE - LES ADJOTS","DISTRICT DE LA  CHARENTE","Libre"]
[554433,"OLYMPIQUE SPORTIF AGENAIS","DISTRICT LOT ET GARONNE","Libre"]
[554466,"SOSTRA FUTSAL","DISTRICT DE LA CREUSE","Futsal"]
[563562,"NEW TEAM GUERET","DISTRICT DE LA CREUSE","Futsal"]
[563636,"BESSINES ASPTT","DISTRICT DES DEUX-SEVRES","Libre"]
[563677,"ET. S. SUSSACOISE","DISTRICT HAUTE-VIENNE","Libre"]
[563682,"OLYMPIQUE DE MONTBOYER","DISTRICT DE LA  CHARENTE","Libre"]
[563689,"G.J. AVENIR FOOT 87","DISTRICT HAUTE-VIENNE","Groupement rural"]
[563716,"BERGERAC PERIGORD F.C.","DISTRICT FOOT DORDOGNE-PERIGORD","Libre"]
[563725,"LA ROCHE-RIVIERES FOOTBALL CLUB TARDOIRE","DISTRICT DE LA  CHARENTE","Libre"]
[563729,"E.S. COURS DE PILE","DISTRICT FOOT DORDOGNE-PERIGORD","Libre"]
[563730,"ASSOCIATION SPORTIVE MARCILLAC CLERGOUX","DISTRICT DE LA CORREZE","Libre"]
[563742,"ESP. S. LA COURTINE CROCQ LA VILLENEUVE","DISTRICT DE LA CREUSE","Libre"]
[563775,"AVENIR SPORTIF DE LA BAIE","DISTRICT CHARENTE MARITIME","Libre"]
[563787,"FOOTBALL CLUB BOUTONNAIS","DISTRICT DES DEUX-SEVRES","Libre"]
[563792,"SAINT AULAYE SPORTS","DISTRICT FOOT DORDOGNE-PERIGORD","Libre"]
[563794,"F. C. DU CANTON DE COURCON","DISTRICT CHARENTE MARITIME","Libre"]
[563803,"F.C. DES GRAVES","DISTRICT DE LA GIRONDE","Libre"]
[563812,"U.S. MOULEYDIER","DISTRICT FOOT DORDOGNE-PERIGORD","Libre"]
[563836,"ASSO. PROMOTION INSERTION SPORT EN AQUITAINE","DISTRICT DE LA GIRONDE","Libre"]
[563838,"FOOTBALL CLUB NORD 17","DISTRICT CHARENTE MARITIME","Libre"]
[563865,"ENTENTE SPORTIVE LUTAIZIEN-OIRON","DISTRICT DES DEUX-SEVRES","Libre"]
[563917,"U. S. C.  DE PESSAC","DISTRICT DE LA GIRONDE","Futsal"]
[564012,"A.S. MAZEROLLES - LUSSAC-LES-CHATEAUX","DISTRICT DE LA VIENNE","Libre"]
[564015,"THENEZAY FUTSAL CLUB","DISTRICT DES DEUX-SEVRES","Libre"]
[564019,"CESTAS FOOT LOISIRS","DISTRICT DE LA GIRONDE","Libre"]
[580425,"BASTIDE BENAUGE FUTSAL","DISTRICT DE LA GIRONDE","Futsal"]
[580434,"ENT. DU PIEMONT FOOTBALL CLUB","DISTRICT PYRENEES ATLANTIQUES","Libre"]
[580441,"A. S.  BEAUTIRANAISE DE FOOTBALL","DISTRICT DE LA GIRONDE","Libre"]
[580500,"GJ VALLEES DEUX-SEVRES","DISTRICT DES DEUX-SEVRES","Groupement rural"]
[580518,"F. C. TAIZE AIZIE","DISTRICT DE LA  CHARENTE","Libre"]
[580527,"GUE DE SENAC F. C.","DISTRICT DE LA GIRONDE","Libre"]
[580551,"F.C.  A.S.M.","DISTRICT DE LA VIENNE","Libre"]
[580553,"CONFLUENT FOOTBALL 47","DISTRICT LOT ET GARONNE","Libre"]
[580554,"E.S. PERIGORD VERT","DISTRICT FOOT DORDOGNE-PERIGORD","Libre"]
[580555,"U.LAMPONAISE CARSACOISE","DISTRICT FOOT DORDOGNE-PERIGORD","Libre"]
[580561,"ARDANAVY F. C.","DISTRICT PYRENEES ATLANTIQUES","Libre"]
[580582,"G.J. ASSOCIATION OUEST CHARENTE","DISTRICT DE LA  CHARENTE","Groupement rural"]
[580587,"FC BASSIMILHACOIS","DISTRICT FOOT DORDOGNE-PERIGORD","Libre"]
[580591,"NEUVIC FUTSAL CLUB","DISTRICT DE LA CORREZE","Futsal"]
[580598,"F.C. BASSIN D'ARCACHON","DISTRICT DE LA GIRONDE","Libre"]
[580608,"US ALLIANCE TALENCAISE","DISTRICT DE LA GIRONDE","Libre"]
[580609,"ENT. S. BOISME CLESSE","DISTRICT DES DEUX-SEVRES","Libre"]
[580622,"A. S. BONNAC LA COTE","DISTRICT HAUTE-VIENNE","Libre"]
[580630,"F.C. DU GRAND SAINT EMILIONNAIS","DISTRICT DE LA GIRONDE","Libre"]
[580631,"A.S. DU PAYS GRANITIQUE","DISTRICT FOOT DORDOGNE-PERIGORD","Libre"]
[580637,"G.J. SUD DEUX-SEVRES FOOT","DISTRICT DES DEUX-SEVRES","Groupement rural"]
[580643,"F. C. PAYS BEAUMONTOIS","DISTRICT FOOT DORDOGNE-PERIGORD","Libre"]
[580700,"THE FUTSAL O. C. VOUILLETAIS","DISTRICT DES DEUX-SEVRES","Futsal"]
[580706,"U. S. ARTIGUAISE","DISTRICT DE LA GIRONDE","Libre"]
[580760,"ASSOCIATION CREUSE MAGHREB","DISTRICT DE LA CREUSE","Futsal"]
[580780,"A. VIGENAL F. C. LIMOGES","DISTRICT HAUTE-VIENNE","Libre"]
[580846,"U.S. DE L'ENVIGNE","DISTRICT DE LA VIENNE","Libre"]
[580848,"F.C. LALINDE COUZE SAUVEBOEUF","DISTRICT FOOT DORDOGNE-PERIGORD","Libre"]
[580850,"AV. BELLAC BERNEUIL ST JUNIEN LES COMBES","DISTRICT HAUTE-VIENNE","Libre"]
[580851,"F.C. CHAILLAC SAILLAT","DISTRICT HAUTE-VIENNE","Libre"]
[580853,"U.S. VERNONAISE","DISTRICT DE LA VIENNE","Libre"]
[580868,"ESPOIR HAUT VALS DE SAINTONGE","DISTRICT CHARENTE MARITIME","Libre"]
[580878,"U.S. MA CAMPAGNE ANGOULEME","DISTRICT DE LA  CHARENTE","Libre"]
[580881,"SOCIETE S. DE BONNAT SECTION FOOT","DISTRICT DE LA CREUSE","Libre"]
[580890,"FC CENDRIEUX LA DOUZE","DISTRICT FOOT DORDOGNE-PERIGORD","Libre"]
[580915,"F.C. SAINT FRAIGNE","DISTRICT DE LA  CHARENTE","Libre"]
[580925,"MERIGNAC ATHLETIC CLUB","DISTRICT DE LA GIRONDE","Libre"]
[580938,"A. CULTURELLE DES KURDES DE LIMOGES","DISTRICT HAUTE-VIENNE","Libre"]
[580939,"U. AM. COGNAC FOOTBALL","DISTRICT DE LA  CHARENTE","Libre"]
[580944,"VALLEE LEMANCE F. C.","DISTRICT LOT ET GARONNE","Libre"]
[580954,"MEDIOLANUM SANTONUM FUTSAL","DISTRICT CHARENTE MARITIME","Futsal"]
[580963,"A. S. BONZACAISE","DISTRICT DE LA GIRONDE","Foot loisir"]
[581007,"F. C. DU VALLON DE L'ARTOLIE","DISTRICT DE LA GIRONDE","Libre"]
[581011,"GINGA ACADEMIA","DISTRICT DE LA GIRONDE","Futsal"]
[581012,"U. S. SAINT YAGUEN FUTSAL","DISTRICT LANDES","Futsal"]
[581057,"A. GENERATION DUPATY","DISTRICT DE LA GIRONDE","Libre"]
[581070,"ATSC DES ADMINISTRATIONS FINANCIERES  HTE VIENNE","DISTRICT HAUTE-VIENNE","Foot loisir"]
[581209,"A. S. SORGES MAYOTTE","DISTRICT FOOT DORDOGNE-PERIGORD","Libre"]
[581211,"ET. LA ROCHE-CHALAIS","DISTRICT FOOT DORDOGNE-PERIGORD","Libre"]
[581233,"ENT. DES BARRAGES DE LA XAINTRIE","DISTRICT DE LA CORREZE","Libre"]
[581234,"U. S. PAYS MAIXENTAIS","DISTRICT DES DEUX-SEVRES","Libre"]
[581247,"O. CLUB SOMMIERES ST ROMAIN","DISTRICT DE LA VIENNE","Libre"]
[581252,"ENT. ST SORNIN NIEULLE / SEUDRE - LE GUA","DISTRICT CHARENTE MARITIME","Libre"]
[581269,"U. S. CHATEAUNEUF TARGE","DISTRICT DE LA VIENNE","Libre"]
[581270,"U. S. SAINT VARENT PIERREGEAY","DISTRICT DES DEUX-SEVRES","Libre"]
[581278,"A. S. COTEAUX DE DORDOGNE","DISTRICT DE LA GIRONDE","Libre"]
[581293,"GROUPEMENT DE JEUNES VAL DE NOUERE","DISTRICT DE LA  CHARENTE","Groupement rural"]
[581294,"GROUPEMENT DE JEUNES AVENIR SEVRE BOCAGE","DISTRICT DES DEUX-SEVRES","Groupement rural"]
[581309,"GJ VAL DE GUYENNE 47","DISTRICT LOT ET GARONNE","Groupement rural"]
[581310,"GJ MEDOC ESTUAIRE","DISTRICT DE LA GIRONDE","Groupement rural"]
[581312,"GJ CASTETIS GOUZE ES PYRENEENE","DISTRICT PYRENEES ATLANTIQUES","Groupement rural"]
[581314,"AVENIR NORD FOOT 87","DISTRICT HAUTE-VIENNE","Libre"]
[581319,"F. A. MORLAAS EST BEARN","DISTRICT PYRENEES ATLANTIQUES","Libre"]
[581323,"CROUTELLE FOOTBALL CLUB","DISTRICT DE LA VIENNE","Libre"]
[581325,"SEIGNOSSE CAPBRETON SOUSTONS F. C.","DISTRICT LANDES","Libre"]
[581341,"U.S. VIRAZEIL PUYMICLAN","DISTRICT LOT ET GARONNE","Libre"]
[581342,"BOIVRE SPORTING CLUB 2015","DISTRICT DE LA VIENNE","Libre"]
[581375,"LES EPIS DE ROYERES","DISTRICT HAUTE-VIENNE","Libre"]
[581382,"U. S. FRONTENAY SAINT SYMPH.","DISTRICT DES DEUX-SEVRES","Libre"]
[581427,"F. C. SEUDRE OCEAN","DISTRICT CHARENTE MARITIME","Libre"]
[581428,"GATI-FOOT","DISTRICT DES DEUX-SEVRES","Libre"]
[581429,"AVENIR 79 F.C.","DISTRICT DES DEUX-SEVRES","Libre"]
[581431,"ASSOCIATION CULTURE SPORT","DISTRICT CHARENTE MARITIME","Libre"]
[581446,"A. S. BEL AIR","DISTRICT DE LA  CHARENTE","Libre"]
[581483,"ASSOCIATION SPORTIVES DES TURC D'USSEL","DISTRICT DE LA CORREZE","Libre"]
[581512,"FOOT LOISIRS ARCHIGNY","DISTRICT DE LA VIENNE","Libre"]
[581519,"AGEN RACING CLUB","DISTRICT LOT ET GARONNE","Libre"]
[581523,"F. C. PAYS DE BUCH","DISTRICT DE LA GIRONDE","Libre"]
[581560,"ECOLE SPORTIVE NORD EST BEARN","DISTRICT PYRENEES ATLANTIQUES","Libre"]
[581561,"A.F.C.  DU HAMEAU","DISTRICT PYRENEES ATLANTIQUES","Libre"]
[581685,"C. J. FOOTBALLEURS EN COEUR DE SAINTONGE","DISTRICT CHARENTE MARITIME","Libre"]
[581687,"G.J. ESTUAIRE SUD CHARENTE","DISTRICT CHARENTE MARITIME","Groupement rural"]
[581693,"PRESQU'ILE F.C.","DISTRICT CHARENTE MARITIME","Libre"]
[581694,"U.S. CHEVANCEAUX MONTLIEU","DISTRICT CHARENTE MARITIME","Libre"]
[581711,"GJ CLUB OLYMPIQUE BIGANOS AUDENGE MARCHEPRIME MIOS","DISTRICT DE LA GIRONDE","Groupement rural"]
[581721,"BAIONA F.C.","DISTRICT PYRENEES ATLANTIQUES","Libre"]
[581749,"F. C. CHARENTE LIMOUSINE","DISTRICT DE LA  CHARENTE","Libre"]
[581750,"F. C. SUD CHARENTE","DISTRICT DE LA  CHARENTE","Libre"]
[581766,"F. C. BRIZAMBOURG ECOYEUX","DISTRICT CHARENTE MARITIME","Libre"]
[581781,"GROUPEMENT DE JEUNES M.B.C.R.","DISTRICT DE LA  CHARENTE","Groupement rural"]
[581787,"U. S. AUNISIEN PUYRAVAULT","DISTRICT CHARENTE MARITIME","Libre"]
[581802,"ENTENTE SPORTIVE THENEZAY PEYRATTE FERRIERE","DISTRICT DES DEUX-SEVRES","Libre"]
[581814,"ENTENTE FOOT 16","DISTRICT DE LA  CHARENTE","Libre"]
[581833,"ESPOIR FOOTBALL CLUB DB2S","DISTRICT CHARENTE MARITIME","Libre"]
[581834,"LES DIABLES ROUGES BOUCHOLEURS CHATELAILLON YVES","DISTRICT CHARENTE MARITIME","Libre"]
[581837,"F. C. SAINT MAURICE MANOT ANSAC","DISTRICT DE LA  CHARENTE","Libre"]
[581839,"CHABANAIS EXIDEUIL FOOTBALL CLUB","DISTRICT DE LA  CHARENTE","Libre"]
[581847,"G.J. ESPOIRS COMBRAILLES","DISTRICT DE LA CREUSE","Groupement rural"]
[581856,"F. C. GRADIGNAN","DISTRICT DE LA GIRONDE","Libre"]
[581870,"ST PORCHAIRE - CORME ROYAL F. C.","DISTRICT CHARENTE MARITIME","Libre"]
[581872,"F. C. OZILLAC CHAMPAGNAC","DISTRICT CHARENTE MARITIME","Libre"]
[581887,"ET. S. NOUIC MEZIERES","DISTRICT HAUTE-VIENNE","Libre"]
[581921,"A. S. LA JONCHERE ST MAURICE","DISTRICT HAUTE-VIENNE","Libre"]
[581922,"G.J. FOOT ACC 23","DISTRICT DE LA CREUSE","Groupement rural"]
[581923,"LES DIABLES BLEUS DE BERSAC","DISTRICT HAUTE-VIENNE","Libre"]
[581937,"A. COMORIENNE DEVELOPPEMENT DE BRESSUIRE","DISTRICT DES DEUX-SEVRES","Libre"]
[581955,"U.S. RIVERAINE MANSACOISE","DISTRICT DE LA CORREZE","Libre"]
[581961,"A.S. LAGUENNE / SAINTE-FORTUNADE / LAGARDE-ENVAL","DISTRICT DE LA CORREZE","Libre"]
[581991,"ENTENTE TROCHE-VIGEOIS","DISTRICT DE LA CORREZE","Libre"]
[581993,"COLLECTIF CHARENTE ANGOULEME BASSEAU","DISTRICT DE LA  CHARENTE","Futsal"]
[582001,"U.S. SAINT GERMAIN D' ESTEUIL","DISTRICT DE LA GIRONDE","Libre"]
[582002,"F.C. ARC EN CIEL SOTIATE","DISTRICT LOT ET GARONNE","Libre"]
[582017,"VILLENAVE D'ORNON FUTSAL","DISTRICT DE LA GIRONDE","Futsal"]
[582054,"VETERANS STEPHANOIS","DISTRICT DE LA GIRONDE","Libre"]
[582055,"F.C. FOOTGOAL","DISTRICT DE LA GIRONDE","Libre"]
[582056,"F. C. TROPICAL","DISTRICT DE LA GIRONDE","Libre"]
[582067,"PANA FUTSAL ASSOCIATION","DISTRICT HAUTE-VIENNE","Futsal"]
[582077,"CHALOSSE FUTSAL","DISTRICT LANDES","Futsal"]
[582107,"A.S. COUZE FOOT","DISTRICT FOOT DORDOGNE-PERIGORD","Libre"]
[582115,"LA CAGOUILLE SPORTIVE DE CHASSORS","DISTRICT DE LA  CHARENTE","Libre"]
[582146,"F. C. SAINT VIVIEN DE MEDOC","DISTRICT DE LA GIRONDE","Libre"]
[582147,"F. C. COLY","DISTRICT FOOT DORDOGNE-PERIGORD","Libre"]
[582160,"GROUPEMENT DE JEUNES COEUR DE BOCAGE","DISTRICT DES DEUX-SEVRES","Groupement rural"]
[582161,"GROUPEMENT DE JEUNES DES 3 VALLEES 86","DISTRICT DE LA VIENNE","Groupement rural"]
[582232,"FOOTBALL CLUB MEDOC COTE D'ARGENT","DISTRICT DE LA GIRONDE","Libre"]
[582233,"LIMENS JSA","DISTRICT FOOT DORDOGNE-PERIGORD","Libre"]
[582235,"G.J. FC LAUGNAC LAROQUE","DISTRICT LOT ET GARONNE","Groupement rural"]
[582236,"G.J. AVENIR SAUTERNAIS","DISTRICT DE LA GIRONDE","Groupement rural"]
[582239,"U. S. SAINT-MATHIEU","DISTRICT HAUTE-VIENNE","Libre"]
[582241,"F. C. DE SAINTE PRIVAS EN PERIGORD","DISTRICT FOOT DORDOGNE-PERIGORD","Libre"]
[582244,"COSMOS FUTSAL","DISTRICT DES DEUX-SEVRES","Futsal"]
[582245,"A. S. C.  MAYOTTE CREUSE","DISTRICT DE LA CREUSE","Libre"]
[582261,"JEUNESSE SPORTIVE LALUQUE RION FOOTBALL CLUB","DISTRICT LANDES","Libre"]
[582264,"ELAN SALIGNACOIS PAYS DE FENELON","DISTRICT FOOT DORDOGNE-PERIGORD","Libre"]
[582266,"ECOLE DE FOOTBALL JEUNESSE ARENGOSSAISE","DISTRICT LANDES","Libre"]
[582280,"UNION SPORTIVE DU MARSAN","DISTRICT LANDES","Libre"]
[582297,"F.C. SAINT AVIT","DISTRICT LANDES","Libre"]
[582300,"UNION SPORTIVE AMICALE DE CUBLAC","DISTRICT DE LA CORREZE","Libre"]
[582306,"FOOTBALL CLUB PINEUILH","DISTRICT DE LA GIRONDE","Libre"]
[582332,"F. C. DE LA SOIE","DISTRICT CHARENTE MARITIME","Libre"]
[582344,"ENT. S. TONNACQUOISE LUSSANTAISE","DISTRICT CHARENTE MARITIME","Libre"]
[582346,"CHASSENEUIL SAINT GEORGES FOOTBALL CLUB","DISTRICT DE LA VIENNE","Libre"]
[582359,"US. AMICALE DE TERRASSON","DISTRICT FOOT DORDOGNE-PERIGORD","Libre"]
[582365,"F. C. USSON DU POITOU L'ISLE JOURDAIN","DISTRICT DE LA VIENNE","Libre"]
[582367,"F. C. DE SENILLE - SAINT SAUVEUR","DISTRICT DE LA VIENNE","Libre"]
[582370,"F.C. OLORON BEARN","DISTRICT PYRENEES ATLANTIQUES","Libre"]
[582371,"F. C. PORTES D'OCEAN 17","DISTRICT CHARENTE MARITIME","Libre"]
[582376,"S.C L'ABSIE LARGEASSE MOUTIERS SOUS CHANTEMERLE","DISTRICT DES DEUX-SEVRES","Libre"]
[582381,"JEUNESSE SPORTIVE GRANDE CHAMPAGNE","DISTRICT DE LA  CHARENTE","Libre"]
[582400,"ENTENTE SPORTIVE ST SULPICE - ST GEORGES","DISTRICT DE LA CREUSE","Libre"]
[582432,"SAINTONGE FUTSAL","DISTRICT CHARENTE MARITIME","Futsal"]
[582433,"SACOCHES ATLANTIQUE ROYAN FUTSAL","DISTRICT CHARENTE MARITIME","Futsal"]
[582442,"ASSOCIATION JEUNESSE AULNAYSIENNE FUTSAL","DISTRICT CHARENTE MARITIME","Futsal"]
[582468,"SANGUINET FOOTBALL CLUB","DISTRICT LANDES","Libre"]
[582470,"CTRE  COMMUNAUTE DEMOCRATIQUE KURDE BORDEAUX","DISTRICT DE LA GIRONDE","Futsal"]
[582478,"UNION SPORTIVE BUNZAC","DISTRICT DE LA  CHARENTE","Libre"]
[582485,"FUTSAL SPORT SAINT XANDRAIS","DISTRICT CHARENTE MARITIME","Futsal"]
[582529,"SPORTING CLUB SAUGNAC","DISTRICT LANDES","Futsal"]
[582548,"ENTENTE DU BORN FUTSAL","DISTRICT LANDES","Futsal"]
[582595,"ENT. SOUBISE PORT DES BARQUES","DISTRICT CHARENTE MARITIME","Libre"]
[582599,"FOOTBALL CLUB AMOU / POUDENX","DISTRICT LANDES","Libre"]
[582637,"GROUPEMENT DE JEUNES MONEIN - PARDIES","DISTRICT PYRENEES ATLANTIQUES","Groupement rural"]
[582648,"LA JEUNESSE DU PERIGORD CENTRE","DISTRICT FOOT DORDOGNE-PERIGORD","Libre"]
[582682,"FOOTBALL CLUB ALLONNE","DISTRICT DES DEUX-SEVRES","Libre"]
[582685,"ET. S. LA PALLU","DISTRICT DE LA VIENNE","Libre"]
[582698,"GROUPEMENT JEUNES AVENIR 86","DISTRICT DE LA VIENNE","Groupement rural"]
[582708,"GROUPEMENT F.C. RIVE DROITE","DISTRICT DE LA GIRONDE","Groupement rural"]
[582728,"UNION SPORTIVE LIMOGES BASTIDE","DISTRICT HAUTE-VIENNE","Libre"]
[582732,"CANTON AUNISIEN FOOTBALL CLUB","DISTRICT CHARENTE MARITIME","Libre"]
[582752,"ET. S. DU FRONSADAIS FOOTBALL","DISTRICT DE LA GIRONDE","Libre"]
[582766,"U. S. VERDONNAISE","DISTRICT DE LA GIRONDE","Libre"]
[582767,"F. C. SAINT ANTOINE","DISTRICT DE LA GIRONDE","Libre"]
[582770,"GROUPEMENT DE JEUNES PAYS DES SOURCES","DISTRICT LANDES","Groupement rural"]
[582771,"ET. S. JARNAGES PARSAC","DISTRICT DE LA CREUSE","Libre"]
[590172,"FC THENON LIMEYRAT FOSSEMAGNE","DISTRICT FOOT DORDOGNE-PERIGORD","Libre"]
[590174,"IZON VAYRES F. C.","DISTRICT DE LA GIRONDE","Libre"]
[590193,"U.S. CERCOUX CLOTTAISE","DISTRICT CHARENTE MARITIME","Libre"]
[590194,"YCHOUX FOOTBALL CLUB","DISTRICT LANDES","Libre"]
[590217,"A.S. DU PAYS MELLOIS","DISTRICT DES DEUX-SEVRES","Libre"]
[590227,"U.S. AUREIL EYJEAUX","DISTRICT HAUTE-VIENNE","Libre"]
[590228,"A.C.G. FOOT SUD 86","DISTRICT DE LA VIENNE","Libre"]
[590232,"ELAN SPORTIF OYRE DANGE","DISTRICT DE LA VIENNE","Libre"]
[590241,"F.C. PAYS DE L'OUIN","DISTRICT DES DEUX-SEVRES","Libre"]
[590246,"R.C. NIORTAIS","DISTRICT DES DEUX-SEVRES","Futsal"]
[590250,"F.C. TARTAS SAINT YAGUEN","DISTRICT LANDES","Libre"]
[590252,"A.S. NONTRON SAINT PARDOUX","DISTRICT FOOT DORDOGNE-PERIGORD","Libre"]
[590285,"G.J. AVENIR CHARENTE EST","DISTRICT DE LA  CHARENTE","Groupement rural"]
[590314,"CLERAC ORIGNOLLES ST MARTIN DU LARY","DISTRICT CHARENTE MARITIME","Libre"]
[590330,"A.S. ROUFFIGNAC PLAZAC","DISTRICT FOOT DORDOGNE-PERIGORD","Libre"]
[590336,"MONTESQUIEU F.C.","DISTRICT DE LA GIRONDE","Libre"]
[590364,"AUNIS AVENIR F. C.","DISTRICT CHARENTE MARITIME","Libre"]
[590366,"DRAGONS VERTS F.C.B. V. T.","DISTRICT CHARENTE MARITIME","Libre"]
[590378,"A.C.S. MAHORAIS FOOT 79","DISTRICT DES DEUX-SEVRES","Libre"]
[590439,"FUTSAL ANGOULEME","DISTRICT DE LA  CHARENTE","Futsal"]
[590485,"A.S.C. PESSAC ALOUETTE FUTSAL","DISTRICT DE LA GIRONDE","Futsal"]
[590517,"JEUNESSE ASSOCIATION BEL-AIR","DISTRICT DE LA  CHARENTE","Libre"]
[590682,"U. S.  FEUILLARDIERS","DISTRICT HAUTE-VIENNE","Libre"]
[590687,"A. S. LE BEUGNON BECELEUF FAYE","DISTRICT DES DEUX-SEVRES","Libre"]
[590688,"MAYOTTE F. C. DE LIMOGES","DISTRICT HAUTE-VIENNE","Libre"]
[590696,"FOOTHISLECOLE ECOLE DE FOOT","DISTRICT FOOT DORDOGNE-PERIGORD","Libre"]
[590699,"G.J. LES DEUX RIVES 47","DISTRICT LOT ET GARONNE","Groupement rural"]
[600544,"SECURITE SOCIALE C.A.F.","DISTRICT DE LA GIRONDE","Foot entreprise"]
[601096,"CTRE HOSP.SP. TALENCE","DISTRICT DE LA GIRONDE","Foot entreprise"]
[601196,"ASPTT & C.P. BORDEAUX","DISTRICT DE LA GIRONDE","Foot entreprise"]
[601986,"AVIA C. BORDEAUX","DISTRICT DE LA GIRONDE","Foot entreprise"]
[602407,"DASSAULT BORDEAUX SP.","DISTRICT DE LA GIRONDE","Foot entreprise"]
[602459,"A. S. SAFRAN BORDEAUX","DISTRICT DE LA GIRONDE","Foot entreprise"]
[602635,"A.S. MICHELIN BASSENS","DISTRICT DE LA GIRONDE","Foot entreprise"]
[603110,"TRANSPORTS EN COMMUN BORDEAUX","DISTRICT DE LA GIRONDE","Foot entreprise"]
[603159,"UNION BORDEAUX METROPOLE","DISTRICT DE LA GIRONDE","Foot entreprise"]
[603457,"SANOFI AMBARES A.C.","DISTRICT DE LA GIRONDE","Foot entreprise"]
[605438,"A.S. STE LYONNAISE EAUX BORDEAUX","DISTRICT DE LA GIRONDE","Foot entreprise"]
[605953,"MACIF NIORT","DISTRICT DES DEUX-SEVRES","Foot entreprise"]
[606646,"F.C. ETIENNE SABATIE","DISTRICT DE LA GIRONDE","Foot entreprise"]
[607240,"A. S. CAMPUS THALES BORDEAUX","DISTRICT DE LA GIRONDE","Foot entreprise"]
[608960,"ASPTT POITIERS","DISTRICT DE LA VIENNE","Foot entreprise"]
[609945,"A.L.S. C.E.M.A.I.F. NIORT","DISTRICT DES DEUX-SEVRES","Foot entreprise"]
[610375,"A.S. MAAF CHAURAY","DISTRICT DES DEUX-SEVRES","Foot entreprise"]
[610554,"E.S. CONSEIL GENERAL","DISTRICT DE LA GIRONDE","Foot entreprise"]
[611038,"A.S. I.M. NIORT","DISTRICT DES DEUX-SEVRES","Foot entreprise"]
[614357,"E.S. GIRONDINS DE LIBOURNE","DISTRICT DE LA GIRONDE","Foot loisir"]
[614583,"AM.S. SAFT","DISTRICT DE LA VIENNE","Foot entreprise"]
[614931,"PAGES JAUNES BORDEAUX","DISTRICT DE LA GIRONDE","Foot entreprise"]
[615723,"BOUYGUES TELECOM F. MERIGNAC","DISTRICT DE LA GIRONDE","Foot entreprise"]
[615826,"A. SPATIALE S. AQUITAINE","DISTRICT DE LA GIRONDE","Foot entreprise"]
[615987,"A. S. PREPARATION O. DU MIDI","DISTRICT DE LA GIRONDE","Foot entreprise"]
[651621,"A. S. C. L. HOPITAL","DISTRICT DES DEUX-SEVRES","Foot entreprise"]
[652837,"CDISCOUNT@SPORT","DISTRICT DE LA GIRONDE","Foot entreprise"]
[653403,"A.S. EDF GAZELEC FOOTBALL POITIERS","DISTRICT DE LA VIENNE","Foot entreprise"]
[654003,"CGI BORDEAUX FOOTBALL CLUB","DISTRICT DE LA GIRONDE","Foot entreprise"]
[654472,"AM. PERSONNEL DES HOPITAUX DE LA VIENNE","DISTRICT DE LA VIENNE","Foot entreprise"]
[663835,"ASSO. DU PERSONNEL DE L'OPERA NATIONAL DE BX","DISTRICT DE LA GIRONDE","Foot entreprise"]
[663850,"SAGE BORDEAUX CLUB","DISTRICT DE LA GIRONDE","Foot entreprise"]
[663855,"A.S. LOVENTA AUTOMATIQUE","DISTRICT DE LA GIRONDE","Foot entreprise"]
[680652,"AM. S. DE L' INSTITUT BERGONIE","DISTRICT DE LA GIRONDE","Foot entreprise"]
[680731,"AMATEURS F. C. AQUITAIN","DISTRICT DE LA GIRONDE","Foot entreprise"]
[680957,"A. S. DU BARREAU DE BORDEAUX","DISTRICT DE LA GIRONDE","Foot entreprise"]
[681545,"BORDELEKO ESKUAL ETXEA FOOTBALL","DISTRICT DE LA GIRONDE","Foot entreprise"]
[681878,"ASSOCIATION 2C SPORTS","DISTRICT DE LA GIRONDE","Foot entreprise"]
[681923,"F. C. LE BON JOUET","DISTRICT DE LA GIRONDE","Foot entreprise"]
[682456,"FOOTBALL NOBI NOBI","DISTRICT DE LA GIRONDE","Foot entreprise"]
[682765,"F. C. ESPACE FOOT","DISTRICT DE LA GIRONDE","Foot entreprise"]
[690453,"CARROSSERIE BALLON","DISTRICT DE LA GIRONDE","Foot entreprise"]
[690567,"F. C. GROUPE PICHET","DISTRICT DE LA GIRONDE","Foot entreprise"]
[732373,"A.S. GRAYAN NORD MEDOC","DISTRICT DE LA GIRONDE","Féminin"]
[734317,"A.S.J. SOYAUX-CHARENTE","DISTRICT DE LA  CHARENTE","Féminin"]
[751630,"ET. FEMININE DE SAINTONGE","DISTRICT CHARENTE MARITIME","Féminin"]
[781210,"ÉTOILE AMOLLOISE FOOTBALL","DISTRICT LANDES","Féminin"]
[837594,"C.F. MJC BRUGES","DISTRICT DE LA GIRONDE","Foot loisir"]
[840932,"U.S. DE CHENECHE","DISTRICT DE LA VIENNE","Foot loisir"]
[840978,"LES SALINIERES","DISTRICT DE LA GIRONDE","Foot loisir"]
[841270,"BOA","DISTRICT DE LA GIRONDE","Foot loisir"]
[841597,"A.S. DE MAGONTY","DISTRICT DE LA GIRONDE","Foot loisir"]
[842628,"A. MUNICIPAUX DU BOUSCAT","DISTRICT DE LA GIRONDE","Foot loisir"]
[846151,"U.S. COIMERES","DISTRICT DE LA GIRONDE","Foot loisir"]
[846263,"C.S. GAZELEC GIRONDIN","DISTRICT DE LA GIRONDE","Foot loisir"]
[846609,"O.C. DE BORDEAUX","DISTRICT DE LA GIRONDE","Foot loisir"]
[847382,"A. DES FOOTBALLEURS DU VENDREDI","DISTRICT DE LA  CHARENTE","Foot loisir"]
[849118,"ULTRAMARINES BORDEAUX","DISTRICT DE LA GIRONDE","Foot loisir"]
[849121,"F.C. PRESSE BORDELAISE","DISTRICT DE LA GIRONDE","Foot loisir"]
[849324,"A.S. LEGRAND LIMOGES","DISTRICT HAUTE-VIENNE","Foot loisir"]
[849966,"A.F.C. BEAUDESERT","DISTRICT DE LA GIRONDE","Foot loisir"]
[850401,"F.C. BAYON L.","DISTRICT DE LA GIRONDE","Foot loisir"]
[850402,"A.F.L. DES BILLAUX","DISTRICT DE LA GIRONDE","Foot loisir"]
[851050,"A.S. SECOURS CATHOLIQUE","DISTRICT DE LA VIENNE","Foot loisir"]
[851085,"W. I. S. E. S. ET CULTURAL A.","DISTRICT DE LA GIRONDE","Foot loisir"]
[851118,"A.S. F.C. PORTO DE BORDEAUX","DISTRICT DE LA GIRONDE","Foot loisir"]
[851805,"NIORT ATHLETIC FUTSAL CLUB","DISTRICT DES DEUX-SEVRES","Foot loisir"]
[852890,"LES VETERANS DE ST JULIEN DE BEYCHEVELLE","DISTRICT DE LA GIRONDE","Foot loisir"]
[853338,"A. F. PLAISIR PRIGNAC MARCAMPS","DISTRICT DE LA GIRONDE","Libre"]
[854049,"ET. S.  DE LA PERUSE","DISTRICT DE LA  CHARENTE","Foot loisir"]
[854203,"F.C. BORDEAUX OCEAN","DISTRICT DE LA GIRONDE","Foot loisir"]
[881060,"LES VIEUX FUTS DE SAINT SAUVEUR","DISTRICT DE LA GIRONDE","Foot loisir"]
[881068,"F. L. DES AUTHENTIQUES SPORTIFS HOSTENSOIS","DISTRICT DE LA GIRONDE","Foot loisir"]
[881569,"CTRE ENTRAINEMENT DES GARDIENS DE BUT","DISTRICT DE LA CORREZE","Foot loisir"]
[881983,"VETERANS FOOT-BALL CLUB","DISTRICT DE LA GIRONDE","Foot loisir"]
[882036,"SAINT ELOI LOISIRS","DISTRICT DE LA VIENNE","Foot loisir"]
[882052,"KEMITE UNITED","DISTRICT DE LA GIRONDE","Foot loisir"]
[882145,"ST GIRONS LOISIRS","DISTRICT DE LA GIRONDE","Foot loisir"]
[882417,"FOOTBALL CLUB FOYER RURAL ANGAIS","DISTRICT PYRENEES ATLANTIQUES","Foot loisir"]